Workbook

Sheet Eingabemaske
B1: Eltako Professional Smart Home 2024 Geräteermittlung und Kalkulationshilfe (Stand 10.07.2024) Preise gültig für Lieferungen ab 01.01.2024
A3: A | B3: Ermittlung der gewünschten Funktionen bzw. Verbraucher | D3: Eingabehilfe | E3: Eingabe | L3: Eingabehilfe | M3: Eingabe
A4: 1 | B4: Soll das System grundsätzlich funkfähig sein? | D4: ja/nein | E4: Ja | L4: ja/nein | M4: Ja
A5: 2 | B5: Sind Sensoren für den 4-Draht Bussystem gewünscht? | D5: ja/nein | E5: Auswählen | L5: ja/nein | M5: Auswählen
A6: 3 | B6: Sind Funktionen mit Powerline gewünscht? | D6: ja/nein | E6: Auswählen | L6: ja/nein | M6: Auswählen
A7: 4 | B7: Welches Schalterprogramm wird geplant? | D7: Größe/Farbe | E7: Auswählen | L7: Größe/Farbe | M7: Auswählen
A8: 5 | B8: Wieviele weitere UV´s werden am Bus angebunden? | D8: Zahl | E8: 0 | L8: Zahl | M8: 0
A9: 6 | B9: Sollen geräuschlose Halbleiter-Schaltaktoren bevorzugt werden? | D9: ja/nein | E9: Auswählen | L9: ja/nein | M9: Auswählen
A10: 7 | B10: Dimmkreise 400W (bei LED max. 100W oder max. 8 Leuchtmittel) REG | D10: Zahl | E10: 0 | L10: Zahl | M10: 0
A11: 8 | B11: Dimmkreise 800W (bei LED max. 200W oder max. 16 Leuchtmittel) REG | D11: Zahl | E11: 0 | L11: Zahl | M11: 0
A12: 9 | B12: Dimmkreise 1-10V REG | D12: Zahl | E12: 0 | L12: Zahl | M12: 0
A13: 10 | B13: DALI-Kreise (max 16 Gruppen mit 64 Tln. in einer Linie möglich) REG | D13: Zahl | E13: 0 | L13: Zahl | M13: 0
A14: 11 | B14: RGBW Farbsteuerung PWM-Dimmschalter (4A pro Kanal) REG | D14: Zahl | E14: 0 | L14: Zahl | M14: 0
A15: 12 | B15: Schaltkreise bis 8A speziell für LED-Beleuchtung bis 400W REG | D15: Zahl | E15: 0 | L15: Zahl | M15: 0
A16: 13 | B16: Schalt- und Stromkreise bis 16 A REG | D16: Zahl | E16: 0 | L16: Zahl | M16: 0
A17: 14 | B17: Motoren (Rollo, Jalousie, Markise) REG | D17: Zahl | E17: 0 | L17: Zahl | M17: 0
A18: B | B18: Einzelraumregelung Fußbodenheizung über Heizkreisverteiler | D18: ja/nein | E18: Auswählen | L18: ja/nein | M18: Auswählen
A19: 15 | B19: Funk-Temperaturregelung mit Display (rückmeldefähig) | D19: Zahl | E19: 0 | L19: Zahl | M19: 0
A20: 16 | B20: Funk-Temperaturregelung mit Display und Schaltkontakt (rückmeldefähig) | D20: Zahl | E20: 0 | L20: Zahl | M20: 0
A21: 17 | B21: Funk-Temperaturregelung mit Hand-Drehrad | D21: Zahl | E21: 0 | L21: Zahl | M21: 0
A22: 18 | B22: Funk-Temperaturfühler (Sollwert nur über App wählbar) | D22: Zahl | E22: 0 | L22: Zahl | M22: 0
A23: 19 | B23: 4-Draht-Bus Temperaturregelung mit Display (rückmeldefähig) | D23: Zahl | E23: 0 | L23: Zahl | M23: 0
A24: 20 | B24: 4-Draht-Bus Temperaturregelung mit Hand-Drehrad | D24: Zahl | E24: 0 | L24: Zahl | M24: 0
A25: 21 | B25: 4-Draht-Bus Temperaturfühler (Sollwert nur über App wählbar) | D25: Zahl | E25: 0 | L25: Zahl | M25: 0
A26: 22 | B26: Powerline Temperaturregler mit Display (rückmeldefähig) nur 55mm | D26: Zahl | E26: 0 | L26: Zahl | M26: 0
A27: 23 | B27: Anzahl der Stellantriebe 230V (Wurde autom. ermittelt, bitte anpassen) | D27: Zahl | E27: 0 | L27: Zahl | M27: 0
A28: 24 | B28: Anzahl der Stellantriebe 24V (bitte auf Wunsch alternativ abändern) | D28: Zahl | E28: 0 | L28: Zahl | M28: 0
A29: C | B29: Einzelraumregelung mit Funk-Stellantriebe für Heizkörper | D29: ja/nein | E29: Auswählen | L29: ja/nein | M29: Auswählen
A30: 25
A31: 26
A32: 27
A33: 28 | B33: Funk-Kleinstellantrieb Smart Valve, ohne Batterien | D33: Zahl | E33: 0 | L33: Zahl | M33: 0
A34: D | B34: Konventioneller Verdrahtung mit Binäreingänge FTS14EM-System | D34: ja/nein | E34: Auswählen | L34: ja/nein | M34: Auswählen
A35: 29 | B35: Wird für die Tasterspannung ein Kleinspannungsnetzteil benötigt? | D35: ja/nein | E35: Nein | L35: ja/nein | M35: Nein
A36: 30 | B36: Anzahl aller Eingänge für Beleuchtung und andere Schaltkreise pro Funktion 1 Eingang (wurde autom. ermittelt, Änderung möglich | D36: Zahl | E36: =IF(E34="Ja",((E10+E11+E12+E13+E15+E16+(Stückliste!C52*2)+Stückliste!C53+Stückliste!C54)),0) -> 0 | L36: Zahl | M36: =IF(M34="Ja",((M10+M11+M12+M13+M15+M16+(Stückliste!K52*2)+Stückliste!K53+Stückliste!K54)),0) -> 0
A37: 31 | B37: Anzahl aller Eingänge für Rollos oder Jalousien pro Rollo 2 Eingänge (wurde autom. ermittelt, Änderung möglich) | D37: Zahl | E37: =IF(E34="Ja",(E17*2),0) -> 0 | L37: Zahl | M37: =IF(M34="Ja",(M17*2),0) -> 0
A38: 32 | B38: weitere Eingänge für Zentral-, Gruppen- oder Szenensteuerung manuel eintragen, für jede weitere Funktion je 1 Eingang zählen! | D38: manuelle Zahleingabe | E38: 0 | L38: manuelle Zahleingabe | M38: 0
A39: E | B39: 2-Draht BUS-Verdrahtung mit Buskoppler und Tastergateway | D39: ja/nein | E39: Auswählen | L39: ja/nein | M39: Auswählen
A40: 33 | B40: Anzahl Buslinien (bis 3 Linien möglich) pro Linie 30 Busgeräte | D40: Zahl | E40: 0 | L40: Zahl | M40: 0
A41: 34 | B41: Anzahl UP Bus-Tasterkoppler (4 Eingänge) FTS61BTK | D41: Zahl | E41: 0 | L41: Zahl | M41: 0
A42: 35 | B42: Anzahl UP Bus-Tasterkoppler (8 Eingänge) FTS61BTK/8 | D42: Zahl | E42: 0 | L42: Zahl | M42: 0
A43: 36 | B43: Anzahl UP Bus-Tasterkoppler (4 Eingänge) mit Rückmeld. FTS61BTKL | D43: Zahl | E43: 0 | L43: Zahl | M43: 0
A44: 37 | B44: Anzahl 2-Draht Bustaster 4-fach mit Wippen | D44: Zahl | E44: 0 | L44: Zahl | M44: 0
A45: F | B45: Ansteuerung mit Funktaster | D45: ja/nein | E45: Auswählen | L45: ja/nein | M45: Auswählen
A46: 38 | B46: AP Funktaster (2 bzw. 4-fach) für 55er Schaltersysteme | D46: Zahl | E46: 0 | L46: Zahl | M46: 0
A47: 39 | B47: AP Funktaster (2 bzw. 4-fach) für Busch-Jaeger Solo/Future | D47: Zahl | E47: 0 | L47: Zahl | M47: 0
A48: 40 | B48: AP Funktaster (2 bzw. 4-fach) für Busch-Jaeger Reflex Si | D48: Zahl | E48: 0 | L48: Zahl | M48: 0
A49: G | B49: Wetterauswertung mit Sensoren | D49: ja/nein | E49: Auswählen | L49: ja/nein | M49: Auswählen
A50: 41 | B50: Auswertung über mehrere Einzelsensoren oder einen Multisensor | D50: Einzel/Multi | E50: keine | L50: Einzel/Multi | M50: keine
A51: 42 | B51: Wählen Sie Sonne, Regen, Wind | D51: Sonne,Regen,Wind | E51: keine | L51: Sonne,Regen,Wind | M51: keine
A52: 43 | B52: =IF(E50="Multi","Übertragungsweg der Wetterdaten vom Multisensor an den Bus","diese Zeile überspringen, nur relevant bei Multisensor") -> diese Zeile überspringen, nur relevant bei Multisensor | D52: Funk/Draht | E52: Draht | L52: Funk/Draht | M52: Draht
A53: 44 | B53: =IF(E50="Multi","zusätzliche Auswerteinheit mit Dispay für bis zu 3 Himmelsrichtungen","diese Zeile überspringen, nur relevant bei Multisensor") -> diese Zeile überspringen, nur relevant bei Multisensor | D53: Zahl | E53: 0 | L53: Zahl | M53: 0
A54: 45 | B54: Sollen auch dezentrale UP- Aktoren witterungsgeführt angesteuert werden? | D54: ja/nein | E54: nein | L54: ja/nein | M54: nein
B55: =IF(E4="nein","dann wählen sie auch in Zeile 1 Funkfähigkeit!","") -> 
A56: H | B56: Türen- oder Fensterüberwachung | D56: ja/nein | E56: Auswählen | L56: ja/nein | M56: Auswählen
A57: 46 | B57: drahtgebunde Fensterkontakte (müssen bauseits bereitgestellt werden) | D57: Zahl | E57: 0 | L57: Zahl | M57: 0
A58: 47 | B58: Sensor mit Reedkontakt incl. Solar FTK | D58: Zahl | E58: 0 | L58: Zahl | M58: 0
A59: 48 | B59: Sensor mit Reedkontakt incl. Batterie FTKB | D59: Zahl | E59: 0 | L59: Zahl | M59: 0
A60: 49 | B60: Sensor verdeckter Einbau mit Batterie FTKB-hg | D60: Zahl | E60: 0 | L60: Zahl | M60: 0
A61: 50 | B61: Fenstergriffsensor FFG7B | D61: Zahl | E61: 0 | L61: Zahl | M61: 0
A62: 51 | B62: Sensor mit Energiegenerator mit Tastkontakt FFTE | D62: Zahl | E62: 0 | L62: Zahl | M62: 0
A63: 52 | B63: Sensor mit Energiegenerator mit Hebel FTKE | D63: Zahl | E63: 0 | L63: Zahl | M63: 0
A64: I | B64: Bewegungsmelder | D64: ja/nein | E64: Auswählen | L64: ja/nein | M64: Auswählen
A65: 53 | B65: drahtgebunde Bewegungsmelder (müssen bereitgestellt werden) | D65: Zahl | E65: 0 | L65: Zahl | M65: 0
A66: 54 | B66: 4-Draht-Bus Bewegungsmelder | D66: Zahl | E66: 0 | L66: Zahl | M66: 0
A67: 55 | B67: Funk-BM für Aussen mit Helligkeit; Solar | D67: Zahl | E67: 0 | L67: Zahl | M67: 0
A68: 56 | B68: Funk mit Helligkeit; Solar und Batterie | D68: Zahl | E68: 0 | L68: Zahl | M68: 0
A69: 57 | B69: Funk ohne Helligkeit; Batterie | D69: Zahl | E69: 0 | L69: Zahl | M69: 0
A70: 58
A71: J | B71: Warnmelder | D71: ja/nein | E71: Auswählen | L71: ja/nein | M71: Auswählen
A72: 59 | B72: Sensor Luftgüte CO2 und Temperatur | D72: Zahl | E72: 0 | L72: Zahl | M72: 0
A73: 60 | B73: Wassermelder | D73: Zahl | E73: 0 | L73: Zahl | M73: 0
A74: 61 | B74: Rauchmelder | D74: Zahl | E74: 0 | L74: Zahl | M74: 0
A75: 62 | B75: Hitzemelder | D75: Zahl | E75: 0 | L75: Zahl | M75: 0
A76: K | B76: Zählererfassung | D76: ja/nein | E76: Auswählen | L76: ja/nein | M76: Auswählen
A77: 63
A78: 64 | B78: Erfassung mit optischem IR-Abtaster z.B. EHZ | D78: Zahl | E78: 0 | L78: Zahl | M78: 0
A79: 65 | B79: Erfassung über S0-Schnittstelle | D79: Zahl | E79: 0 | L79: Zahl | M79: 0
A80: 66 | B80: Wechselstrom-Buszähler | D80: Zahl | E80: 0 | L80: Zahl | M80: 0
A81: 67 | B81: Drehstrom-Buszähler | D81: Zahl | E81: 0 | L81: Zahl | M81: 0
A82: 68 | B82: Drehstrom-Wandler-Buszähler | D82: Zahl | E82: 0 | L82: Zahl | M82: 0
A83: L | B83: weiteres Systemzubehör | D83: ja/nein | E83: Auswählen | L83: ja/nein | M83: Auswählen
A84: 69 | B84: Schaltuhr (Eingabe der Kanäle bzw. Gruppen) kann entfallen bei Servereinsatz | D84: Zahl | E84: 0 | L84: Zahl | M84: 0
A85: 70 | B85: Ist eine Funkzusatz-Antenne nötig (bei Verteilung mit Blechtüre) | D85: ja/nein | E85: Ja | L85: ja/nein | M85: Ja
A86: 71 | B86: HF-Platte für Zusatzantenne; optimiert die Sende-/Empfangsqualität | D86: ja/nein | E86: Auswählen | L86: ja/nein | M86: Auswählen
A87: 72 | B87: Werden weitere Sub-Antennen benötigt? (bis 3 Stück möglich) | D87: Zahl | E87: 0 | L87: Zahl | M87: 0
A88: 73 | B88: Sollen drahtgebundene Tasterbefehle über Funkausgabemodul an GFVS Software oder dezentrale Aktoren gesendet werden? | D88: ja/nein | E88: Auswählen | L88: ja/nein | M88: Auswählen
A89: 74 | B89: Wir empfehlen zusätzlich Ersatz-Steckbrücken (je Set= 2x kurz, 1x lang) | D89: Zahl | E89: 0 | L89: Zahl | M89: 0
A90: 75 | B90: Handsender mit Display 50 Kanäle FFD | D90: Zahl | E90: 0 | L90: Zahl | M90: 0
A91: 76 | B91: Handsender 8-Kanal FF8 | D91: Zahl | E91: 0 | L91: Zahl | M91: 0
A92: 77 | B92: Minihandsender 8-Kanal FMH8 | D92: Zahl | E92: 0 | L92: Zahl | M92: 0
A93: M | B93: dezentrale Baugruppen für Doseneinbau BR62 und BR61 | D93: ja/nein | E93: Auswählen | L93: ja/nein | M93: Auswählen
A94: 79 | B94: Funk-Lichtaktor potentialfrei (Baureihe 62) | D94: Zahl | E94: 0 | L94: Zahl | M94: 0
A95: 80 | B95: Funk-Lichtaktor nicht potentialfrei (Baureihe 62) | D95: Zahl | E95: 0 | L95: Zahl | M95: 0
A96: 81 | B96: Funk-Universal-Dimmaktor mit N-Anschluss (Baureihe 62) | D96: Zahl | E96: 0 | L96: Zahl | M96: 0
A97: 82 | B97: Funk-Jalousie- und Rolloaktor (Baureihe 62) | D97: Zahl | E97: 0 | L97: Zahl | M97: 0
A98: 83 | B98: Funkaktor Stromstoß-Schaltrelais nicht potentialfrei (Baureihe 61) | D98: Zahl | E98: 0 | L98: Zahl | M98: 0
A99: 84 | B99: Funk-Multifunktions-Stromstoßschalter 1+1 Schließer (Baureihe 61) | D99: Zahl | E99: 0 | L99: Zahl | M99: 0
A100: 85 | B100: Funk-Universal-Dimmschalter mit N-Anschluss (Baureihe 61) | D100: Zahl | E100: 0 | L100: Zahl | M100: 0
A101: 86 | B101: Funk-Universal-Dimmschalter ohne N-Anschluss (Baureihe 61) | D101: Zahl | E101: 0 | L101: Zahl | M101: 0
A102: 87 | B102: Funk-PWM-LED-Dimmschalter (Baureihe 61) | D102: Zahl | E102: 0 | L102: Zahl | M102: 0
A103: 88 | B103: Funk-Konststantstrom-LED-Dimmschalter (Baureihe 61) | D103: Zahl | E103: 0 | L103: Zahl | M103: 0
A104: 89 | B104: Funk-Jalousie- und Rolloaktor mit N-Anschluss (Baureihe 61) | D104: Zahl | E104: 0 | L104: Zahl | M104: 0
A105: 90 | B105: Funk-Heiz-Kühl-Relais (Baureihe 61) | D105: Zahl | E105: 0 | L105: Zahl | M105: 0
A106: 91 | B106: Funk-Sendemodul FSM61-UC | D106: Zahl | E106: 0 | L106: Zahl | M106: 0
A107: 92 | B107: Repeater FRP61-230V | D107: Zahl | E107: 0 | L107: Zahl | M107: 0
A108: 93 | B108: Funkrepeater im Gehäuse FRP65/230V-wg | D108: Zahl | E108: 0 | L108: Zahl | M108: 0
A109: N | B109: dezentrale Funkaktoren Aufbau BR71 | D109: ja/nein | E109: Auswählen | L109: ja/nein | M109: Auswählen
A110: 94 | B110: Funk-DALI-Gateway FDG71L | D110: Zahl | E110: 0 | L110: Zahl | M110: 0
A111: 95 | B111: Funk-PWM-Dimmschalter für RGBW FRGBW71L | D111: Zahl | E111: 0 | L111: Zahl | M111: 0 | O111: Logik prüfen da 2x
A112: 96 | B112: Funkrepeater FRP70-230V | D112: Zahl | E112: 0 | L112: Zahl | M112: 0
A113: O | B113: dezentrale Funkaktoren für Steckdose | D113: ja/nein | E113: Auswählen | L113: ja/nein | M113: Auswählen
A114: 97 | B114: FSSA Funk-Steckdosen-Schaltaktor | D114: Zahl | E114: 0 | L114: Zahl | M114: 0
A115: 98 | B115: FSUD Funk-Universal-Steckdosen-Dimmschalter | D115: Zahl | E115: 0 | L115: Zahl | M115: 0
A116: 99
A117: 100 | B117: FSRP-230V Funk-Repeater-Zwischenstecker | D117: Zahl | E117: 0 | L117: Zahl | M117: 0
A118: P | B118: dezentrale Powerline-Aktoren bzw. Sensoren | D118: ja/nein | E118: Auswählen | L118: ja/nein | M118: Auswählen
A119: 101 | B119: Schaltaktor 1-Kanal | D119: Zahl | E119: 0 | L119: Zahl | M119: 0
A120: 102 | B120: Schaltaktor 2-Kanal | D120: Zahl | E120: 0 | L120: Zahl | M120: 0
A121: 103 | B121: Jalousie-Aktor | D121: Zahl | E121: 0 | L121: Zahl | M121: 0
A122: 104 | B122: Dimm-Aktor | D122: Zahl | E122: 0 | L122: Zahl | M122: 0
A123: 105 | B123: Dimm-Aktor 1-10V | D123: Zahl | E123: 0 | L123: Zahl | M123: 0
A124: 10 | B124: 1-Kanal Sensormodul | D124: Zahl | E124: 0 | L124: Zahl | M124: 0
A125: 107 | B125: 8-Kanal Sensormodul | D125: Zahl | E125: 0 | L125: Zahl | M125: 0
A126: Q | B126: Home-Server | D126: ja/nein | E126: Auswählen | L126: ja/nein | M126: Auswählen
A127: 108 | D127: Zahl | L127: Zahl
A128: 109 | B128: MiniSafe2 Smart home Server | D128: Zahl | E128: 0 | L128: Zahl | M128: 0
A129: 110 | B129: MiniSafe2 REG Smart home Server mit Halterung und Zusatzantenne | D129: Zahl | E129: 0 | L129: Zahl | M129: 0
A130: 111 | B130: HDR-30-5 Netzteil für Minisafe2 REG (optional) | D130: Zahl | E130: 0 | L130: Zahl | M130: 0
A131: 112 | B131: wibutler Pro2 Smart Home-Zentrale | D131: Zahl | E131: 0 | L131: Zahl | M131: 0
A132: 113
A133: R | B133: Wandhalterung für iPad zur Steuerung des Home-Servers | D133: ja/nein | E133: Auswählen | L133: ja/nein | M133: Auswählen
A134: 114 | B134: Universal-Wand-Dockingstation für USB-C- iPads, Alu natur | D134: Zahl | E134: 0 | L134: Zahl | M134: 0
A135: 115 | B135: Universal-Wand-Dockingstation für USB-C- iPads, schwarz | D135: Zahl | E135: 0 | L135: Zahl | M135: 0
A136: 116 | B136: InWall-10 Alu schwarz eloxiert mit schwarzer Glasblende | D136: Zahl | E136: 0 | L136: Zahl | M136: 0
A137: 117
A138: 118
A139: 119 | B139: Austausch-Set Lightning auf USB-C | D139: Zahl | E139: 0 | L139: Zahl | M139: 0

Sheet Stückliste
B1: Eltako Professional Smart Home 2024 Stückliste und Preisliste (gültig für Lieferungen ab 01.01.2024) | D1: alle Angaben sind unverbindlich und ohne Gewähr | L1: alle Angaben sind unverbindlich und ohne Gewähr
B2: Artikelbezeichnung | D2: Menge | E2: Teilungs- einheiten | F2: Brutto EP | G2: Brutto Wert | I2: Leistungsbedarf | J2: Gesamt | L2: Menge | M2: Teilungs- einheiten | O2: Prüfung: Preise, EAN und Bestellnr. | AA2: Art-Nr. | AB2: EAN Nummer
A4: 101 | B4: BBV14 flexible Busverbinder (altern. auch FBA14 möglich) | C4: =IF(SUM(E5:E124)<13,0,(SUM(E5:E50,E121:E122)-1)/12) -> 0 | D4: =ROUNDDOWN(C4,0) -> 0 | E4: =D4 -> 0 | F4: 24.3 | G4: =D4*F4 -> 0 | K4: =IF(D4>0,D4,"") ->  | L4: =ROUNDDOWN(K4,0) ->  | M4: =L4 ->  | O4: =VLOOKUP(AB4,Gesamtpreisliste!$A$7:$E$888,2,FALSE) -> 30014053 | P4: =EXACT(O4,AA4) -> TRUE | Q4: =VLOOKUP(AB4,Gesamtpreisliste!$A$7:$E$888,3,FALSE) -> BBV14 | R4: =VLOOKUP(AB4,Gesamtpreisliste!$A$7:$E$888,5,FALSE) -> 24.3 | S4: =EXACT(F4,R4) -> TRUE | AA4: 30014053 | AB4: 4010312315248
A5: 102 | B5: FBA14 Busankoppler (bitte bei Bedarf manuell eintragen) | C5: =2*Eingabemaske!E8+(IF(AND(OR(Eingabemaske!E81>0,Eingabemaske!E82>0),Eingabemaske!E8=0),1,0)) -> 0 | D5: =C5 -> 0 | E5: 0 | F5: 33.4 | G5: 0 | K5: =IF(D5>0,D5,"") ->  | L5: =K5 ->  | O5: =VLOOKUP(AB5,Gesamtpreisliste!$A$7:$E$888,2,FALSE) -> 30014018 | P5: =EXACT(O5,AA5) -> TRUE | Q5: =VLOOKUP(AB5,Gesamtpreisliste!$A$7:$E$888,3,FALSE) -> FBA14 | R5: =VLOOKUP(AB5,Gesamtpreisliste!$A$7:$E$888,5,FALSE) -> 33.4 | S5: =EXACT(F5,R5) -> TRUE | AA5: 30014018 | AB5: 4010312313862
A6: 103 | B6: WNT61-24VDC/10W Schaltnetzteil (für FWS61 oder FUTH55ED 12-24V) | C6: =C56 -> 0 | D6: =C6 -> 0 | E6: 0 | F6: 47.2 | G6: 0 | L6: =K6 ->  | O6: =VLOOKUP(AB6,Gesamtpreisliste!$A$7:$E$888,2,FALSE) -> 61000264 | P6: TRUE | Q6: =VLOOKUP(AB6,Gesamtpreisliste!$A$7:$E$888,3,FALSE) -> WNT61-12VDC/10W | R6: =VLOOKUP(AB6,Gesamtpreisliste!$A$7:$E$888,5,FALSE) -> 47.2 | S6: TRUE | AA6: 61000264 | AB6: 4010312401934
A7: 104 | B7: WNT61-12VDC/10W Schaltnetzteil (für UP-Sensoren 12-24V) | D7: 0 | E7: 0 | F7: 47.2 | G7: 0 | O7: =VLOOKUP(AB7,Gesamtpreisliste!$A$7:$E$888,2,FALSE) -> 61000265 | P7: TRUE | Q7: =VLOOKUP(AB7,Gesamtpreisliste!$A$7:$E$888,3,FALSE) -> WNT61-24VDC/10W | R7: =VLOOKUP(AB7,Gesamtpreisliste!$A$7:$E$888,5,FALSE) -> 47.2 | S7: TRUE | AA7: 61000265 | AB7: 4010312401941
A8: 105 | B8: FSNT14-12V/12W Schaltnetzteil (Leistungserw.) | C8: =IF(SUM(J9:J184)>41,4,IF(SUM(J9:J184)>29,3,IF(SUM(J9:J184)>17,2,IF(SUM(J9:J184)>5,1,0)))) -> 0 | D8: 0 | E8: 0 | F8: 55.6 | G8: 0 | O8: =VLOOKUP(AB8,Gesamtpreisliste!$A$7:$E$888,2,FALSE) -> 30014062 | P8: TRUE | Q8: =VLOOKUP(AB8,Gesamtpreisliste!$A$7:$E$888,3,FALSE) -> FSNT14-12V/12W | R8: =VLOOKUP(AB8,Gesamtpreisliste!$A$7:$E$888,5,FALSE) -> 55.6 | S8: TRUE | AA8: 30014062 | AB8: 4010312315095
A9: 106 | B9: FGW14 Gateway | C9: =IF(Eingabemaske!E87>0,1,0) -> 0 | D9: 0 | E9: 0 | F9: 68.5 | G9: 0 | I9: 0.5 | J9: =D9*I9 -> 0 | O9: =VLOOKUP(AB9,Gesamtpreisliste!$A$7:$E$888,2,FALSE) -> 30014017 | P9: TRUE | Q9: =VLOOKUP(AB9,Gesamtpreisliste!$A$7:$E$888,3,FALSE) -> FGW14 | R9: =VLOOKUP(AB9,Gesamtpreisliste!$A$7:$E$888,5,FALSE) -> 68.5 | S9: TRUE | AA9: 30014017 | AB9: 4010312313855
A10: 107 | B10: FGW14-USB Gateway mit USB-Anbindung für Serveranbindung | D10: 0 | E10: 0 | F10: 64.9 | G10: 0 | I10: 0.5 | J10: 0 | O10: =VLOOKUP(AB10,Gesamtpreisliste!$A$7:$E$888,2,FALSE) -> 30014049 | P10: TRUE | Q10: =VLOOKUP(AB10,Gesamtpreisliste!$A$7:$E$888,3,FALSE) -> FGW14-USB | R10: =VLOOKUP(AB10,Gesamtpreisliste!$A$7:$E$888,5,FALSE) -> 64.9 | S10: TRUE | AA10: 30014049 | AB10: 4010312316054
A11: 108 | B11: BGW14 Busgateway für Raumtemperaturregler | C11: =IF(OR(AND(Eingabemaske!E5="ja",Eingabemaske!E18="ja"),AND(Eingabemaske!E5="ja",Eingabemaske!E64="ja")),SUM((Eingabemaske!E23+Eingabemaske!E24+Eingabemaske!E25+Eingabemaske!E66)/16),0) -> 0 | D11: =ROUNDUP(C11,0) -> 0 | E11: 0 | F11: 64.9 | G11: 0 | I11: 0.3 | J11: 0 | L11: =ROUNDUP(K11,0) ->  | O11: =VLOOKUP(AB11,Gesamtpreisliste!$A$7:$E$888,2,FALSE) -> 30014046 | P11: TRUE | Q11: =VLOOKUP(AB11,Gesamtpreisliste!$A$7:$E$888,3,FALSE) -> BGW14 | R11: =VLOOKUP(AB11,Gesamtpreisliste!$A$7:$E$888,5,FALSE) -> 64.9 | S11: TRUE | AA11: 30014046 | AB11: 4010312319062
A12: 109 | B12: FTD14 Telegrammduplizierer zur Wetterdatenübertragung an die GFVS | C12: =IF(OR(AND(Eingabemaske!E49="ja",Eingabemaske!E50="Multi",Eingabemaske!E52="Draht",Eingabemaske!E126="ja",C13>0),AND(Eingabemaske!E5="ja",C13>0)),1,0) -> 0 | D12: =C12 -> 0 | E12: 0 | F12: 92.6 | G12: 0 | I12: 0.53 | J12: 0 | L12: =K12 ->  | O12: =VLOOKUP(AB12,Gesamtpreisliste!$A$7:$E$888,2,FALSE) -> 30014057 | P12: TRUE | Q12: =VLOOKUP(AB12,Gesamtpreisliste!$A$7:$E$888,3,FALSE) -> FTD14 | R12: =VLOOKUP(AB12,Gesamtpreisliste!$A$7:$E$888,5,FALSE) -> 92.6 | S12: TRUE | AA12: 30014057 | AB12: 4010312315705
A13: 110 | B13: "Zwischenrechnung Merker " | C13: =IF(OR(Eingabemaske!E130>0,Eingabemaske!E131>0,AND(Eingabemaske!E127>0,NOT(Eingabemaske!E132="ja")),AND(Eingabemaske!E129>0,NOT(Eingabemaske!E132="ja"))),1,0) -> 0 | D13: 0 | E13: 0 | G13: 0 | L13: 0 | M13: 0 | O13: =VLOOKUP(AB13,Gesamtpreisliste!$A$7:$E$888,2,FALSE) ->  | Q13: =VLOOKUP(AB13,Gesamtpreisliste!$A$7:$E$888,3,FALSE) ->  | R13: =VLOOKUP(AB13,Gesamtpreisliste!$A$7:$E$888,5,FALSE) -> 
A14: 111 | B14: USB-Kabel 2m für FGW14-USB Typ A St/Bu | C14: =IF(Eingabemaske!E132="ja",1,0) -> 0 | D14: =C14 -> 0 | F14: 15.9 | G14: =D14*F14 -> 0 | L14: =K14 ->  | O14: =VLOOKUP(AB14,Gesamtpreisliste!$A$7:$E$888,2,FALSE) -> 30000020 | P14: TRUE | Q14: =VLOOKUP(AB14,Gesamtpreisliste!$A$7:$E$888,3,FALSE) -> USB-Verlängerungskabel | R14: =VLOOKUP(AB14,Gesamtpreisliste!$A$7:$E$888,5,FALSE) -> 15.9 | S14: TRUE | AA14: 30000020 | AB14: 4010312907702
A15: 112 | B15: FAM14 Funk-Antennenmodul | C15: =IF(AND(Eingabemaske!E4="ja")*OR(C20>0,Eingabemaske!E10>0,Eingabemaske!E11>0,Eingabemaske!E12>0,Eingabemaske!E13>0,Eingabemaske!E15>0,Eingabemaske!E16>0,Eingabemaske!E17>0,Eingabemaske!E19>0,Eingabemaske!E20>0,Eingabemaske!E21>0,Eingabemaske!E22>0,Eingabemaske!E23>0,Eingabemaske!E24>0,Eingabemaske!E25>0,Eingabemaske!E26>0,AND(Eingabemaske!E49="ja",NOT(Eingabemaske!E50="keine")),Eingabemaske!E77>0,Eingabemaske!E78>0,Eingabemaske!E79>0,Eingabemaske!E80>0,Eingabemaske!E81>0,Eingabemaske!E82>0,Eingabemaske!E84>0),1,0) -> 0 | D15: 0 | E15: =D15*2 -> 0 | F15: 123.4 | G15: 0 | I15: 1 | M15: =L15*2 ->  | O15: =VLOOKUP(AB15,Gesamtpreisliste!$A$7:$E$888,2,FALSE) -> 30014000 | P15: TRUE | Q15: =VLOOKUP(AB15,Gesamtpreisliste!$A$7:$E$888,3,FALSE) -> FAM14 | R15: =VLOOKUP(AB15,Gesamtpreisliste!$A$7:$E$888,5,FALSE) -> 123.4 | S15: TRUE | AA15: 30014000 | AB15: 4010312313695
A16: 113 | B16: FTS14KS FTS14-Kommunikationsschnittstelle | C16: =IF(AND(Eingabemaske!E4="nein")*OR(Eingabemaske!E10>0,Eingabemaske!E11>0,Eingabemaske!E12>0,Eingabemaske!E13,Eingabemaske!E15,Eingabemaske!E16>0,Eingabemaske!E17>0,Eingabemaske!E19>0,Eingabemaske!E84>0),1,0) -> 0 | D16: 0 | E16: =D16*2 -> 0 | F16: 91.5 | G16: 0 | M16: =L16*2 ->  | O16: =VLOOKUP(AB16,Gesamtpreisliste!$A$7:$E$888,2,FALSE) -> 30014065 | P16: TRUE | Q16: =VLOOKUP(AB16,Gesamtpreisliste!$A$7:$E$888,3,FALSE) -> FTS14KS | R16: =VLOOKUP(AB16,Gesamtpreisliste!$A$7:$E$888,5,FALSE) -> 91.5 | S16: TRUE | AA16: 30014065 | AB16: 4010312315651
A17: 114 | B17: FA250 Funkantenne mit 2,5 Meter Koax-Kabel | C17: =IF(AND(Eingabemaske!E83="ja",Eingabemaske!E85="ja",C15>0),1,0) -> 0 | D17: 0 | F17: 31.7 | G17: 0 | O17: =VLOOKUP(AB17,Gesamtpreisliste!$A$7:$E$888,2,FALSE) -> 30000550 | P17: TRUE | Q17: =VLOOKUP(AB17,Gesamtpreisliste!$A$7:$E$888,3,FALSE) -> FA250 | R17: =VLOOKUP(AB17,Gesamtpreisliste!$A$7:$E$888,5,FALSE) -> 31.7 | S17: TRUE | AA17: 30000550 | AB17: 4010312300244
A18: 115 | B18: FHM175 HF-Masse für FA250 | C18: =IF(AND(Eingabemaske!E83="ja",Eingabemaske!E86="ja",C15>0),1,0) -> 0 | D18: 0 | F18: 91.8 | G18: 0 | O18: =VLOOKUP(AB18,Gesamtpreisliste!$A$7:$E$888,2,FALSE) -> 30000555 | P18: TRUE | Q18: =VLOOKUP(AB18,Gesamtpreisliste!$A$7:$E$888,3,FALSE) -> FHM175 | R18: =VLOOKUP(AB18,Gesamtpreisliste!$A$7:$E$888,5,FALSE) -> 91.8 | S18: TRUE | AA18: 30000555 | AB18: 4010312313121
A19: 116 | B19: FEM Funk-Empfangsmodul für Sub-Bus (Zusatzantenne) | C19: =IF(AND(Eingabemaske!E83="ja",Eingabemaske!E87>0),Eingabemaske!E87,0) -> 0 | D19: 0 | F19: 95.4 | G19: 0 | O19: =VLOOKUP(AB19,Gesamtpreisliste!$A$7:$E$888,2,FALSE) -> 30014016 | P19: TRUE | Q19: =VLOOKUP(AB19,Gesamtpreisliste!$A$7:$E$888,3,FALSE) -> FEM | R19: =VLOOKUP(AB19,Gesamtpreisliste!$A$7:$E$888,5,FALSE) -> 95.4 | S19: TRUE | AA19: 30014016 | AB19: 4010312313848
A20: 117 | B20: FTS14EM Taster-Eingabemodul | C20: =IF(AND(Eingabemaske!E34="Ja",Eingabemaske!E56="ja",Eingabemaske!E64="ja"),ROUNDUP((Eingabemaske!E36+Eingabemaske!E37+Eingabemaske!E38+C52*2+C53+C54)/10,0)+ROUNDUP(Eingabemaske!E57/10,0)+ROUNDUP(Eingabemaske!E65/10,0),IF(AND(Eingabemaske!E34="Ja",NOT(Eingabemaske!E56="ja"),NOT(Eingabemaske!E64="ja")),ROUNDUP((Eingabemaske!E36+Eingabemaske!E37+Eingabemaske!E38+C52*2+C53+C54)/10,0),IF(AND(NOT(Eingabemaske!E34="Ja"),Eingabemaske!E56="ja",NOT(Eingabemaske!E64="ja")),ROUNDUP(Eingabemaske!E57/10,0),IF(AND(NOT(Eingabemaske!E34="Ja"),NOT(Eingabemaske!E56="ja"),Eingabemaske!E64="ja"),ROUNDUP(Eingabemaske!E65/10,0),IF(AND(Eingabemaske!E34="Ja",Eingabemaske!E56="ja",NOT(Eingabemaske!E64="ja")),ROUNDUP((Eingabemaske!E36+Eingabemaske!E37+Eingabemaske!E38+C52*2+C53+C54)/10,0)+ROUNDUP(Eingabemaske!E57/10,0),IF(AND(Eingabemaske!E34="Ja",NOT(Eingabemaske!E56="ja"),Eingabemaske!E64="ja"),ROUNDUP((Eingabemaske!E36+Eingabemaske!E37+Eingabemaske!E38+C52*2+C53+C54)/10,0)+ROUNDUP(Eingabemaske!E65/10,0),IF(AND(NOT(Eingabemaske!E34="Ja"),Eingabemaske!E56="ja",Eingabemaske!E64="ja"),(ROUNDUP(Eingabemaske!E57/10,0)+ROUNDUP(Eingabemaske!E65/10,0)),0))))))) -> 0 | D20: 0 | E20: =D20*2 -> 0 | F20: 68.9 | G20: 0 | I20: 0.13 | J20: 0 | M20: =L20*2 ->  | O20: =VLOOKUP(AB20,Gesamtpreisliste!$A$7:$E$888,2,FALSE) -> 30014060 | P20: TRUE | Q20: =VLOOKUP(AB20,Gesamtpreisliste!$A$7:$E$888,3,FALSE) -> FTS14EM | R20: =VLOOKUP(AB20,Gesamtpreisliste!$A$7:$E$888,5,FALSE) -> 68.9 | S20: TRUE | AA20: 30014060 | AB20: 4010312315071
A21: 118 | B21: FTS14TG Taster-Gateway für Bus-Tasterkoppler | C21: =IF(Eingabemaske!E39="Ja",Eingabemaske!E40,0) -> 0 | D21: 0 | E21: =D21*2 -> 0 | F21: 111.1 | G21: 0 | I21: 0.42 | J21: 0 | M21: =L21*2 ->  | O21: =VLOOKUP(AB21,Gesamtpreisliste!$A$7:$E$888,2,FALSE) -> 30014061 | P21: TRUE | Q21: =VLOOKUP(AB21,Gesamtpreisliste!$A$7:$E$888,3,FALSE) -> FTS14TG | R21: =VLOOKUP(AB21,Gesamtpreisliste!$A$7:$E$888,5,FALSE) -> 111.1 | S21: TRUE | AA21: 30014061 | AB21: 4010312315088
A22: 119 | B22: FPLG14 Powerline-Gateway | C22: =IF(OR(Eingabemaske!E26>0,AND(Eingabemaske!E118="ja")*OR(Eingabemaske!E119>0,Eingabemaske!E120>0,Eingabemaske!E121>0,Eingabemaske!E122>0,Eingabemaske!E123,Eingabemaske!E124>0,Eingabemaske!E125>0)),1,0) -> 0 | D22: 0 | E22: =D22*2 -> 0 | F22: 100 | G22: 0 | I22: 0.4 | J22: 0 | M22: =L22*2 ->  | O22: =VLOOKUP(AB22,Gesamtpreisliste!$A$7:$E$888,2,FALSE) -> 30014070 | P22: TRUE | Q22: =VLOOKUP(AB22,Gesamtpreisliste!$A$7:$E$888,3,FALSE) -> FPLG14 | R22: =VLOOKUP(AB22,Gesamtpreisliste!$A$7:$E$888,5,FALSE) -> 100 | S22: TRUE | AA22: 30014070 | AB22: 4010312316771
A23: 120 | B23: FTS61BTK Bus-Tasterkoppler 4-fach | C23: =IF(Eingabemaske!E$39="Ja",Eingabemaske!E41,0) -> 0 | D23: 0 | F23: 57.1 | G23: 0 | O23: =VLOOKUP(AB23,Gesamtpreisliste!$A$7:$E$888,2,FALSE) -> 30014064 | P23: TRUE | Q23: =VLOOKUP(AB23,Gesamtpreisliste!$A$7:$E$888,3,FALSE) -> FTS61BTK | R23: =VLOOKUP(AB23,Gesamtpreisliste!$A$7:$E$888,5,FALSE) -> 57.1 | S23: TRUE | AA23: 30014064 | AB23: 4010312315668
A24: 121 | B24: FTS61BTK/8 Bus-Tasterkoppler 8-fach | C24: =IF(Eingabemaske!E$39="Ja",Eingabemaske!E42,0) -> 0 | D24: 0 | F24: 93.5 | G24: =D24*F24 -> 0 | O24: =VLOOKUP(AB24,Gesamtpreisliste!$A$7:$E$888,2,FALSE) -> 30014075 | P24: =EXACT(O24,AA24) -> TRUE | Q24: =VLOOKUP(AB24,Gesamtpreisliste!$A$7:$E$888,3,FALSE) -> FTS61BTK/8 | R24: =VLOOKUP(AB24,Gesamtpreisliste!$A$7:$E$888,5,FALSE) -> 93.5 | S24: =EXACT(F24,R24) -> TRUE | AA24: 30014075 | AB24: 4010312326015
A25: 122 | B25: FTS61BTKL Bus-Tasterkoppler für LED Rückmeldungen | C25: =IF(Eingabemaske!E$39="Ja",Eingabemaske!E43,0) -> 0 | D25: 0 | F25: 62.5 | G25: 0 | O25: =VLOOKUP(AB25,Gesamtpreisliste!$A$7:$E$888,2,FALSE) -> 30014074 | P25: TRUE | Q25: =VLOOKUP(AB25,Gesamtpreisliste!$A$7:$E$888,3,FALSE) -> FTS61BTKL | R25: =VLOOKUP(AB25,Gesamtpreisliste!$A$7:$E$888,5,FALSE) -> 62.5 | S25: TRUE | AA25: 30014074 | AB25: 4010312316801
A26: 124 | B26: B4T55E-pg 2-Draht Bustaster 4-fach | C26: =IF(AND(Eingabemaske!E$39="ja",Eingabemaske!E$7="55mm E pg"),Eingabemaske!E$44,0) -> 0 | D26: 0 | F26: 59.8 | G26: =D26*F26 -> 0 | O26: =VLOOKUP(AB26,Gesamtpreisliste!$A$7:$E$888,2,FALSE) -> 30055651 | P26: =EXACT(O26,AA26) -> TRUE | Q26: =VLOOKUP(AB26,Gesamtpreisliste!$A$7:$E$888,3,FALSE) -> B4T55E-pg | R26: =VLOOKUP(AB26,Gesamtpreisliste!$A$7:$E$888,5,FALSE) -> 59.8 | S26: =EXACT(F26,R26) -> TRUE | AA26: 30055651 | AB26: 4010312326046
A27: 125 | B27: B4T55E-pm 2-Draht Bustaster 4-fach | C27: =IF(AND(Eingabemaske!E$39="ja",Eingabemaske!E$7="55mm E pm"),Eingabemaske!E$44,0) -> 0 | D27: 0 | F27: 59.8 | G27: 0 | O27: =VLOOKUP(AB27,Gesamtpreisliste!$A$7:$E$888,2,FALSE) -> 30055652 | P27: TRUE | Q27: =VLOOKUP(AB27,Gesamtpreisliste!$A$7:$E$888,3,FALSE) -> B4T55E-pm | R27: =VLOOKUP(AB27,Gesamtpreisliste!$A$7:$E$888,5,FALSE) -> 59.8 | S27: TRUE | AA27: 30055652 | AB27: 4010312326039
A28: 126 | B28: B4T55E-wg 2-Draht Bustaster 4-fach | C28: =IF(AND(Eingabemaske!E$39="ja",Eingabemaske!E$7="55mm E wg"),Eingabemaske!E$44,0) -> 0 | D28: 0 | F28: 59.8 | G28: 0 | O28: =VLOOKUP(AB28,Gesamtpreisliste!$A$7:$E$888,2,FALSE) -> 30055653 | P28: TRUE | Q28: =VLOOKUP(AB28,Gesamtpreisliste!$A$7:$E$888,3,FALSE) -> B4T55E-wg | R28: =VLOOKUP(AB28,Gesamtpreisliste!$A$7:$E$888,5,FALSE) -> 59.8 | S28: TRUE | AA28: 30055653 | AB28: 4010312326022
A29: 127 | B29: B4T55E-am 2-Draht Bustaster 4-fach | C29: =IF(AND(Eingabemaske!E$39="ja",Eingabemaske!E$7="55mm E am"),Eingabemaske!E$44,0) -> 0 | D29: =C29 -> 0 | F29: 59.8 | G29: =D29*F29 -> 0 | L29: =K29 ->  | O29: =VLOOKUP(AB29,Gesamtpreisliste!$A$7:$E$888,2,FALSE) -> 30055650 | P29: =EXACT(O29,AA29) -> TRUE | Q29: =VLOOKUP(AB29,Gesamtpreisliste!$A$7:$E$888,3,FALSE) -> B4T55E-am | R29: =VLOOKUP(AB29,Gesamtpreisliste!$A$7:$E$888,5,FALSE) -> 59.8 | S29: =EXACT(F29,R29) -> TRUE | AA29: 30055650 | AB29: 4010312326152
A30: 129 | B30: FTS14FA Funk-Ausgabemodul | C30: =IF(OR(AND(Eingabemaske!E4="ja",Eingabemaske!E49="ja",Eingabemaske!E50="Einzel",Eingabemaske!E54="ja"),AND(Eingabemaske!E4="ja",OR(Eingabemaske!E57>0,Eingabemaske!E65>0),OR(Eingabemaske!E130>0,Eingabemaske!E131>0)),AND(Eingabemaske!E4="ja",Eingabemaske!E83="ja",Eingabemaske!E88="ja")),1,0) -> 0 | D30: =C30 -> 0 | E30: =D30 -> 0 | F30: 95.4 | G30: 0 | I30: 0.5 | J30: 0 | L30: =K30 ->  | M30: =L30 ->  | O30: =VLOOKUP(AB30,Gesamtpreisliste!$A$7:$E$888,2,FALSE) -> 30014063 | P30: TRUE | Q30: =VLOOKUP(AB30,Gesamtpreisliste!$A$7:$E$888,3,FALSE) -> FTS14FA | R30: =VLOOKUP(AB30,Gesamtpreisliste!$A$7:$E$888,5,FALSE) -> 95.4 | S30: TRUE | AA30: 30014063 | AB30: 4010312315101
A31: 130 | B31: WNT15-24VDC/24W (für Taster-Steuerspannung und Wetterstation) | C31: =IF(OR((Eingabemaske!E34="ja"),AND(Eingabemaske!E49="ja",C6=0,OR(C51>0,C53>0))),1,0) -> 0 | D31: 0 | E31: =D31 -> 0 | F31: 52.5 | G31: 0 | M31: =L31 ->  | O31: =VLOOKUP(AB31,Gesamtpreisliste!$A$7:$E$888,2,FALSE) -> 20000073 | P31: TRUE | Q31: =VLOOKUP(AB31,Gesamtpreisliste!$A$7:$E$888,3,FALSE) -> WNT15-24VDC/24W | R31: =VLOOKUP(AB31,Gesamtpreisliste!$A$7:$E$888,5,FALSE) -> 52.5 | S31: TRUE | AA31: 20000073 | AB31: 4010312401910
A32: 131 | B32: WNT15-12VDC/24W (für separate 4-Draht Busspannung) | C32: =D11 -> 0 | D32: 0 | E32: =D32 -> 0 | F32: 52.5 | G32: =D32*F32 -> 0 | M32: =L32 ->  | O32: =VLOOKUP(AB32,Gesamtpreisliste!$A$7:$E$888,2,FALSE) -> 20000072 | P32: TRUE | Q32: =VLOOKUP(AB32,Gesamtpreisliste!$A$7:$E$888,3,FALSE) -> WNT15-12VDC/24W | R32: =VLOOKUP(AB32,Gesamtpreisliste!$A$7:$E$888,5,FALSE) -> 52.5 | S32: TRUE | AA32: 20000072 | AB32: 4010312401880
A33: 132 | B33: FSR14-4x Bus-Aktor-4-Kanal-Stromstoß-Schaltrelais | D33: 0 | E33: =D33 -> 0 | F33: 65.4 | G33: 0 | I33: 0.7 | J33: 0 | M33: =L33 ->  | O33: =VLOOKUP(AB33,Gesamtpreisliste!$A$7:$E$888,2,FALSE) -> 30014001 | P33: TRUE | Q33: =VLOOKUP(AB33,Gesamtpreisliste!$A$7:$E$888,3,FALSE) -> FSR14-4x | R33: =VLOOKUP(AB33,Gesamtpreisliste!$A$7:$E$888,5,FALSE) -> 65.4 | S33: TRUE | AA33: 30014001 | AB33: 4010312313701
A34: 133 | B34: FSR14SSR Bus-Aktor 2-Kanal-Stromstoss-Schaltrelais geräuschlos | C34: =IF(Eingabemaske!E9="ja",(Eingabemaske!E16/2),0) -> 0 | D34: =ROUNDUP(C34,0) -> 0 | E34: =D34 -> 0 | F34: 66 | G34: 0 | I34: 0.42 | J34: 0 | L34: =ROUNDUP(K34,0) ->  | M34: =L34 ->  | O34: =VLOOKUP(AB34,Gesamtpreisliste!$A$7:$E$888,2,FALSE) -> 30014020 | P34: TRUE | Q34: =VLOOKUP(AB34,Gesamtpreisliste!$A$7:$E$888,3,FALSE) -> FSR14SSR | R34: =VLOOKUP(AB34,Gesamtpreisliste!$A$7:$E$888,5,FALSE) -> 66 | S34: TRUE | AA34: 30014020 | AB34: 4010312313893
A35: 134 | B35: F4SR14-LED Bus-Aktor-4-Kanal-Stromstoß-Schaltrelais für LED | C35: =(Eingabemaske!E15)/4 -> 0 | D35: =ROUNDUP(C35,0) -> 0 | E35: =D35*2 -> 0 | F35: 76.3 | G35: 0 | I35: 1 | J35: 0 | L35: =ROUNDUP(K35,0) ->  | M35: =L35*2 ->  | O35: =VLOOKUP(AB35,Gesamtpreisliste!$A$7:$E$888,2,FALSE) -> 30014076 | P35: TRUE | Q35: =VLOOKUP(AB35,Gesamtpreisliste!$A$7:$E$888,3,FALSE) -> F4SR14-LED | R35: =VLOOKUP(AB35,Gesamtpreisliste!$A$7:$E$888,5,FALSE) -> 76.3 | S35: TRUE | AA35: 30014076 | AB35: 4010312317006
A36: 135 | B36: FSR14-2x Bus-Aktor-2-Kanal-Stromstoß-Schaltrelais | C36: =IF(Eingabemaske!E9="ja",0,(Eingabemaske!E16/2)) -> 0 | D36: =ROUNDUP(C36,0) -> 0 | E36: =D36 -> 0 | F36: 65.4 | G36: 0 | I36: 0.14 | J36: 0 | L36: =ROUNDUP(K36,0) ->  | M36: =L36 ->  | O36: =VLOOKUP(AB36,Gesamtpreisliste!$A$7:$E$888,2,FALSE) -> 30014002 | P36: TRUE | Q36: =VLOOKUP(AB36,Gesamtpreisliste!$A$7:$E$888,3,FALSE) -> FSR14-2x | R36: =VLOOKUP(AB36,Gesamtpreisliste!$A$7:$E$888,5,FALSE) -> 65.4 | S36: TRUE | AA36: 30014002 | AB36: 4010312313718
A37: 136 | B37: FSR14M-2x Bus-Aktor-2-Kanal-Stromstoß-Schaltrelais mit Leistungsmessung | D37: =ROUNDUP(C37,0) -> 0 | E37: 0 | F37: 95.5 | G37: 0 | I37: 0.14 | J37: =D37*I37 -> 0 | L37: =ROUNDUP(K37,0) ->  | M37: 0 | O37: =VLOOKUP(AB37,Gesamtpreisliste!$A$7:$E$888,2,FALSE) -> 30014039 | P37: TRUE | Q37: =VLOOKUP(AB37,Gesamtpreisliste!$A$7:$E$888,3,FALSE) -> FSR14M-2x | R37: =VLOOKUP(AB37,Gesamtpreisliste!$A$7:$E$888,5,FALSE) -> 95.5 | S37: TRUE | AA37: 30014039 | AB37: 4010312327692
A38: 137 | B38: FSB14 Aktor für Rollo/Jalousie/Markise (Doppelaktor für 2 Motoren) | C38: =Eingabemaske!E17/2 -> 0 | D38: =ROUNDUP(C38,0) -> 0 | E38: =D38*2 -> 0 | F38: 64.9 | G38: 0 | I38: 0.42 | J38: 0 | L38: =ROUNDUP(K38,0) ->  | M38: =L38*2 ->  | O38: =VLOOKUP(AB38,Gesamtpreisliste!$A$7:$E$888,2,FALSE) -> 30014004 | P38: TRUE | Q38: =VLOOKUP(AB38,Gesamtpreisliste!$A$7:$E$888,3,FALSE) -> FSB14 | R38: =VLOOKUP(AB38,Gesamtpreisliste!$A$7:$E$888,5,FALSE) -> 64.9 | S38: TRUE | AA38: 30014004 | AB38: 4010312313732
A39: 138 | B39: FUD14 Universal-Dimmschalter 400W (LED max. 100W) | C39: =Eingabemaske!E10 -> 0 | D39: =C39 -> 0 | E39: =ROUNDUP(C39*1.5,0) -> 0 | F39: 74.5 | G39: 0 | I39: 0.2 | J39: 0 | L39: =K39 ->  | M39: =ROUNDUP(K39*1.5,0) ->  | O39: =VLOOKUP(AB39,Gesamtpreisliste!$A$7:$E$888,2,FALSE) -> 30014005 | P39: TRUE | Q39: =VLOOKUP(AB39,Gesamtpreisliste!$A$7:$E$888,3,FALSE) -> FUD14 | R39: =VLOOKUP(AB39,Gesamtpreisliste!$A$7:$E$888,5,FALSE) -> 74.5 | S39: TRUE | AA39: 30014005 | AB39: 4010312313749
A40: 139 | B40: FUD14/800W Universal-Dimmschalter 800W (LED max 400W) | C40: =Eingabemaske!E11 -> 0 | D40: =C40 -> 0 | E40: =ROUNDUP(C40*2.5,0) -> 0 | F40: 100.3 | G40: 0 | I40: 0.2 | J40: 0 | L40: =K40 ->  | M40: =ROUNDUP(K40*2.5,0) ->  | O40: =VLOOKUP(AB40,Gesamtpreisliste!$A$7:$E$888,2,FALSE) -> 30014006 | P40: TRUE | Q40: =VLOOKUP(AB40,Gesamtpreisliste!$A$7:$E$888,3,FALSE) -> FUD14/800W | R40: =VLOOKUP(AB40,Gesamtpreisliste!$A$7:$E$888,5,FALSE) -> 100.3 | S40: TRUE | AA40: 30014006 | AB40: 4010312313756
A41: 140 | B41: FSG14/1-10V Dimmschalter-Steuergerät | C41: =Eingabemaske!E12 -> 0 | D41: =C41 -> 0 | E41: =ROUNDUP(C41*1.5,0) -> 0 | F41: 69.9 | G41: 0 | I41: 0.2 | J41: 0 | L41: =K41 ->  | M41: =ROUNDUP(K41*1.5,0) ->  | O41: =VLOOKUP(AB41,Gesamtpreisliste!$A$7:$E$888,2,FALSE) -> 30014008 | P41: TRUE | Q41: =VLOOKUP(AB41,Gesamtpreisliste!$A$7:$E$888,3,FALSE) -> FSG14/1-10V | R41: =VLOOKUP(AB41,Gesamtpreisliste!$A$7:$E$888,5,FALSE) -> 69.9 | S41: TRUE | AA41: 30014008 | AB41: 4010312313770
A42: 141 | B42: FDG14 DALI-Gateway | C42: =Eingabemaske!E13/16 -> 0 | D42: =ROUNDUP(C42,0) -> 0 | E42: =D42*2 -> 0 | F42: 95.6 | G42: 0 | I42: 0.4 | J42: 0 | L42: =ROUNDUP(K42,0) ->  | M42: =L42*2 ->  | O42: =VLOOKUP(AB42,Gesamtpreisliste!$A$7:$E$888,2,FALSE) -> 30014047 | P42: TRUE | Q42: =VLOOKUP(AB42,Gesamtpreisliste!$A$7:$E$888,3,FALSE) -> FDG14 | R42: =VLOOKUP(AB42,Gesamtpreisliste!$A$7:$E$888,5,FALSE) -> 95.6 | S42: TRUE | AA42: 30014047 | AB42: 4010312316085
A43: 142 | B43: FRGBW14 Funk-PWM-Dimmschalter für LED 4-Kanal | C43: =Eingabemaske!E14 -> 0 | D43: 0 | E43: =D43*2 -> 0 | F43: 110.6 | G43: 0 | I43: 0.2 | J43: =D43*I43 -> 0 | M43: =L43*2 ->  | O43: =VLOOKUP(AB43,Gesamtpreisliste!$A$7:$E$888,2,FALSE) -> 30014068 | P43: TRUE | Q43: =VLOOKUP(AB43,Gesamtpreisliste!$A$7:$E$888,3,FALSE) -> FRGBW14 | R43: =VLOOKUP(AB43,Gesamtpreisliste!$A$7:$E$888,5,FALSE) -> 110.6 | S43: TRUE | AA43: 30014068 | AB43: 4010312324097
A44: 143 | B44: F4HK14 Heiz-Kühl-Relais 4-Kanal | C44: =IF(Eingabemaske!E9="ja",0,(SUM(Stückliste!C57:C60,Stückliste!C61:C64,Stückliste!C65:C68,Stückliste!C73:C84,Stückliste!C85:C88,Stückliste!C93,Stückliste!C110)/4)) -> 0 | D44: 0 | E44: =D44 -> 0 | F44: 62.9 | G44: 0 | I44: 0.7 | J44: 0 | M44: =L44 ->  | O44: =VLOOKUP(AB44,Gesamtpreisliste!$A$7:$E$888,2,FALSE) -> 30014010 | P44: TRUE | Q44: =VLOOKUP(AB44,Gesamtpreisliste!$A$7:$E$888,3,FALSE) -> F4HK14 | R44: =VLOOKUP(AB44,Gesamtpreisliste!$A$7:$E$888,5,FALSE) -> 62.9 | S44: TRUE | AA44: 30014010 | AB44: 4010312314982
A45: 144 | B45: FAE14SSR Heiz-Kühl-Relais 2-Kanal geräuschlos | C45: =IF(Eingabemaske!E9="ja",(SUM(Stückliste!C57:C60,Stückliste!C61:C64,Stückliste!C65:C68,Stückliste!C73:C84,Stückliste!C85:C88,Stückliste!C93,Stückliste!C110)/2),0) -> 0 | D45: 0 | E45: 0 | F45: 67.9 | G45: 0 | I45: 0.4 | J45: 0 | O45: =VLOOKUP(AB45,Gesamtpreisliste!$A$7:$E$888,2,FALSE) -> 30014029 | P45: TRUE | Q45: =VLOOKUP(AB45,Gesamtpreisliste!$A$7:$E$888,3,FALSE) -> FAE14SSR | R45: =VLOOKUP(AB45,Gesamtpreisliste!$A$7:$E$888,5,FALSE) -> 67.9 | S45: TRUE | AA45: 30014029 | AB45: 4010312314173
A46: 145 | B46: FSU14 Bus-Display-Schaltuhr | C46: =IF(Eingabemaske!E83="ja",Eingabemaske!E84/8,0) -> 0 | D46: 0 | E46: 0 | F46: 64 | G46: 0 | I46: 0.14 | J46: 0 | O46: =VLOOKUP(AB46,Gesamtpreisliste!$A$7:$E$888,2,FALSE) -> 30014015 | P46: TRUE | Q46: =VLOOKUP(AB46,Gesamtpreisliste!$A$7:$E$888,3,FALSE) -> FSU14 | R46: =VLOOKUP(AB46,Gesamtpreisliste!$A$7:$E$888,5,FALSE) -> 64 | S46: TRUE | AA46: 30014015 | AB46: 4010312313831
A47: 146 | B47: FMSR14 Multifunktions-Sensorrelais für Wetterdatenauswertung | C47: =IF(AND(Eingabemaske!E49="ja",Eingabemaske!E53>0,C51>0),Eingabemaske!E53,0) -> 0 | D47: 0 | E47: 0 | F47: 64 | G47: 0 | I47: 0.1 | J47: 0 | O47: =VLOOKUP(AB47,Gesamtpreisliste!$A$7:$E$888,2,FALSE) -> 30014028 | P47: TRUE | Q47: =VLOOKUP(AB47,Gesamtpreisliste!$A$7:$E$888,3,FALSE) -> FMSR14 | R47: =VLOOKUP(AB47,Gesamtpreisliste!$A$7:$E$888,5,FALSE) -> 64 | S47: TRUE | AA47: 30014028 | AB47: 4010312314111
A48: 147 | B48: FWG14MS Bus-Wetterdaten-Gateway | C48: =IF(AND(Eingabemaske!E49="ja",Eingabemaske!E50="Multi",Eingabemaske!E52="Draht"),1,0) -> 0 | D48: =C48 -> 0 | E48: 0 | F48: 61.8 | G48: =D48*F48 -> 0 | I48: 0.3 | J48: 0 | L48: =K48 ->  | O48: =VLOOKUP(AB48,Gesamtpreisliste!$A$7:$E$888,2,FALSE) -> 30014072 | P48: TRUE | Q48: =VLOOKUP(AB48,Gesamtpreisliste!$A$7:$E$888,3,FALSE) -> FWG14MS | R48: =VLOOKUP(AB48,Gesamtpreisliste!$A$7:$E$888,5,FALSE) -> 61.8 | S48: TRUE | AA48: 30014072 | AB48: 4010312316887
A49: 148 | B49: FSDG14 Bus-Funk-Stromzähler-Datengateway | C49: =IF(Eingabemaske!E76="ja",Eingabemaske!E78,0) -> 0 | D49: =C49 -> 0 | E49: 0 | F49: 59.6 | G49: =D49*F49 -> 0 | I49: 0.4 | J49: 0 | L49: =K49 ->  | O49: =VLOOKUP(AB49,Gesamtpreisliste!$A$7:$E$888,2,FALSE) -> 30014066 | P49: TRUE | Q49: =VLOOKUP(AB49,Gesamtpreisliste!$A$7:$E$888,3,FALSE) -> FSDG14 | R49: =VLOOKUP(AB49,Gesamtpreisliste!$A$7:$E$888,5,FALSE) -> 59.6 | S49: TRUE | AA49: 30014066 | AB49: 4010312316146
A50: 149 | B50: F3Z14D Bus-Funk-Zähler-Sammler | C50: =IF(Eingabemaske!E76="ja",(Eingabemaske!E77/3+Eingabemaske!E79/3),0) -> 0 | D50: =ROUNDUP(C50,0) -> 0 | E50: 0 | F50: 60.9 | G50: =D50*F50 -> 0 | I50: 0.1 | J50: 0 | L50: =ROUNDUP(K50,0) ->  | O50: =VLOOKUP(AB50,Gesamtpreisliste!$A$7:$E$888,2,FALSE) -> 30014055 | P50: TRUE | Q50: =VLOOKUP(AB50,Gesamtpreisliste!$A$7:$E$888,3,FALSE) -> F3Z14D | R50: =VLOOKUP(AB50,Gesamtpreisliste!$A$7:$E$888,5,FALSE) -> 60.9 | S50: TRUE | AA50: 30014055 | AB50: 4010312501528
A51: 150 | B51: WMS Multisensor zur Wetterdatenerfassung | C51: =IF(AND(Eingabemaske!E49="ja",Eingabemaske!E50="Multi"),1,0) -> 0 | D51: =C51 -> 0 | F51: 316.7 | G51: 0 | L51: =K51 ->  | O51: =VLOOKUP(AB51,Gesamtpreisliste!$A$7:$E$888,2,FALSE) -> 20000085 | P51: TRUE | Q51: =VLOOKUP(AB51,Gesamtpreisliste!$A$7:$E$888,3,FALSE) -> WMS | R51: =VLOOKUP(AB51,Gesamtpreisliste!$A$7:$E$888,5,FALSE) -> 316.7 | S51: TRUE | AA51: 20000085 | AB51: 4010312206898
A52: 151 | B52: LS Lichtsensor | C52: =IF(AND(Eingabemaske!E49="ja",Eingabemaske!E50="Einzel",OR(Eingabemaske!E51="Sonne",Eingabemaske!E51="Sonne,Regen",Eingabemaske!E51="Sonne,Wind",Eingabemaske!E51="Alles")),1,0) -> 0 | D52: 0 | F52: 34.2 | G52: =D52*F52 -> 0 | O52: =VLOOKUP(AB52,Gesamtpreisliste!$A$7:$E$888,2,FALSE) -> 20000080 | P52: TRUE | Q52: =VLOOKUP(AB52,Gesamtpreisliste!$A$7:$E$888,3,FALSE) -> LS Lichtsensor | R52: =VLOOKUP(AB52,Gesamtpreisliste!$A$7:$E$888,5,FALSE) -> 34.2 | S52: TRUE | AA52: 20000080 | AB52: 4010312901267
A53: 152 | B53: RS Regensensor | C53: =IF(AND(Eingabemaske!E49="ja",Eingabemaske!E50="Einzel",OR(Eingabemaske!E51="Regen",Eingabemaske!E51="Regen,Wind",Eingabemaske!E51="Sonne,Regen",Eingabemaske!E51="Alles")),1,0) -> 0 | D53: 0 | F53: 142.7 | G53: 0 | O53: =VLOOKUP(AB53,Gesamtpreisliste!$A$7:$E$888,2,FALSE) -> 20000087 | P53: TRUE | Q53: =VLOOKUP(AB53,Gesamtpreisliste!$A$7:$E$888,3,FALSE) -> RS Regensensor | R53: =VLOOKUP(AB53,Gesamtpreisliste!$A$7:$E$888,5,FALSE) -> 142.7 | S53: TRUE | AA53: 20000087 | AB53: 4010312206546
A54: 153 | B54: WS Windsensor | C54: =IF(AND(Eingabemaske!E49="ja",Eingabemaske!E50="Einzel",OR(Eingabemaske!E51="Wind",Eingabemaske!E51="Regen,Wind",Eingabemaske!E51="Sonne,Wind",Eingabemaske!E51="Alles")),1,0) -> 0 | D54: 0 | F54: 79.7 | G54: 0 | O54: =VLOOKUP(AB54,Gesamtpreisliste!$A$7:$E$888,2,FALSE) -> 20000082 | P54: TRUE | Q54: =VLOOKUP(AB54,Gesamtpreisliste!$A$7:$E$888,3,FALSE) -> WS Windsensor | R54: =VLOOKUP(AB54,Gesamtpreisliste!$A$7:$E$888,5,FALSE) -> 79.7 | S54: TRUE | AA54: 20000082 | AB54: 4010312901281
A55: 154 | B55: LRW12D Auswerteinheit | C55: =IF(AND(OR(C52>0,C53>0,C54>0),Eingabemaske!E50="Einzel",Eingabemaske!E49="ja"),1,0) -> 0 | D55: 0 | E55: =D55 -> 0 | F55: 81.4 | G55: 0 | M55: =L55 ->  | O55: =VLOOKUP(AB55,Gesamtpreisliste!$A$7:$E$888,2,FALSE) -> 22400501 | P55: TRUE | Q55: =VLOOKUP(AB55,Gesamtpreisliste!$A$7:$E$888,3,FALSE) -> LRW12D-UC | R55: =VLOOKUP(AB55,Gesamtpreisliste!$A$7:$E$888,5,FALSE) -> 81.4 | S55: TRUE | AA55: 22400501 | AB55: 4010312206553
A56: 155 | B56: FWS61-24V DC Wetterdaten-Sendemodul | C56: =IF(AND(Eingabemaske!E49="ja",Eingabemaske!E50="Multi",Eingabemaske!E52="Funk"),1,0) -> 0 | D56: 0 | F56: 79.6 | G56: 0 | O56: =VLOOKUP(AB56,Gesamtpreisliste!$A$7:$E$888,2,FALSE) -> 30000305 | P56: TRUE | Q56: =VLOOKUP(AB56,Gesamtpreisliste!$A$7:$E$888,3,FALSE) -> FWS61-24V DC | R56: =VLOOKUP(AB56,Gesamtpreisliste!$A$7:$E$888,5,FALSE) -> 79.6 | S56: TRUE | AA56: 30000305 | AB56: 4010312301937
A57: 157 | B57: BUTH55ED-12V DC-pg Bus-Thermo-Hygrostat mit Display | C57: =IF(AND(Eingabemaske!E$5="ja",Eingabemaske!E$7="55mm E pg",Eingabemaske!E$18="ja"),Eingabemaske!E$23,0) -> 0 | D57: 0 | F57: 91.8 | G57: =D57*F57 -> 0 | O57: =VLOOKUP(AB57,Gesamtpreisliste!$A$7:$E$888,2,FALSE) -> 30055165 | P57: =EXACT(O57,AA57) -> TRUE | Q57: =VLOOKUP(AB57,Gesamtpreisliste!$A$7:$E$888,3,FALSE) -> BUTH55ED/12V DC-pg | R57: =VLOOKUP(AB57,Gesamtpreisliste!$A$7:$E$888,5,FALSE) -> 91.8 | S57: =EXACT(F57,R57) -> TRUE | AA57: 30055165 | AB57: 4010312326671
A58: 158 | B58: BUTH55ED-12V DC-pm Bus-Thermo-Hygrostat mit Display | C58: =IF(AND(Eingabemaske!E$5="ja",Eingabemaske!E$7="55mm E pm",Eingabemaske!E$18="ja"),Eingabemaske!E$23,0) -> 0 | D58: 0 | F58: 91.8 | G58: 0 | O58: =VLOOKUP(AB58,Gesamtpreisliste!$A$7:$E$888,2,FALSE) -> 30055166 | P58: TRUE | Q58: =VLOOKUP(AB58,Gesamtpreisliste!$A$7:$E$888,3,FALSE) -> BUTH55ED/12V DC-pm | R58: =VLOOKUP(AB58,Gesamtpreisliste!$A$7:$E$888,5,FALSE) -> 91.8 | S58: TRUE | AA58: 30055166 | AB58: 4010312326688
A59: 159 | B59: BUTH55ED-12V DC-wg Bus-Thermo-Hygrostat mit Display | C59: =IF(AND(Eingabemaske!E$5="ja",Eingabemaske!E$7="55mm E wg",Eingabemaske!E$18="ja"),Eingabemaske!E$23,0) -> 0 | D59: 0 | F59: 91.8 | G59: 0 | O59: =VLOOKUP(AB59,Gesamtpreisliste!$A$7:$E$888,2,FALSE) -> 30055167 | P59: TRUE | Q59: =VLOOKUP(AB59,Gesamtpreisliste!$A$7:$E$888,3,FALSE) -> BUTH55ED/12V DC-wg | R59: =VLOOKUP(AB59,Gesamtpreisliste!$A$7:$E$888,5,FALSE) -> 91.8 | S59: TRUE | AA59: 30055167 | AB59: 4010312326695
A60: 160 | B60: BUTH55ED-12V DC-am Bus-Thermo-Hygrostat mit Display | C60: =IF(AND(Eingabemaske!E$5="ja",Eingabemaske!E$7="55mm E am",Eingabemaske!E$18="ja"),Eingabemaske!E$23,0) -> 0 | D60: =C60 -> 0 | F60: 91.8 | G60: =D60*F60 -> 0 | L60: =K60 ->  | O60: =VLOOKUP(AB60,Gesamtpreisliste!$A$7:$E$888,2,FALSE) -> 30055164 | P60: =EXACT(O60,AA60) -> TRUE | Q60: =VLOOKUP(AB60,Gesamtpreisliste!$A$7:$E$888,3,FALSE) -> BUTH55ED/12V DC-am | R60: =VLOOKUP(AB60,Gesamtpreisliste!$A$7:$E$888,5,FALSE) -> 91.8 | S60: =EXACT(F60,R60) -> TRUE | AA60: 30055164 | AB60: 4010312326664
A61: 163 | B61: BTR55EH-12V DC-pg Bus-Temperaturregler mit Handrad | C61: =IF(AND(Eingabemaske!E$5="ja",Eingabemaske!E$7="55mm E pg",Eingabemaske!E$18="ja"),Eingabemaske!E$24,0) -> 0 | D61: =C61 -> 0 | F61: 72.7 | G61: =D61*F61 -> 0 | L61: =K61 ->  | O61: =VLOOKUP(AB61,Gesamtpreisliste!$A$7:$E$888,2,FALSE) -> 30055161 | P61: =EXACT(O61,AA61) -> TRUE | Q61: =VLOOKUP(AB61,Gesamtpreisliste!$A$7:$E$888,3,FALSE) -> BTR55EH/12V DC-pg | R61: =VLOOKUP(AB61,Gesamtpreisliste!$A$7:$E$888,5,FALSE) -> 72.7 | S61: =EXACT(F61,R61) -> TRUE | AA61: 30055161 | AB61: 4010312326633
A62: 164 | B62: BTR55EH-12V DC-pm Bus-Temperaturregler mit Handrad | C62: =IF(AND(Eingabemaske!E$5="ja",Eingabemaske!E$7="55mm E pm",Eingabemaske!E$18="ja"),Eingabemaske!E$24,0) -> 0 | D62: 0 | F62: 72.7 | G62: 0 | O62: =VLOOKUP(AB62,Gesamtpreisliste!$A$7:$E$888,2,FALSE) -> 30055162 | P62: TRUE | Q62: =VLOOKUP(AB62,Gesamtpreisliste!$A$7:$E$888,3,FALSE) -> BTR55EH/12V DC-pm | R62: =VLOOKUP(AB62,Gesamtpreisliste!$A$7:$E$888,5,FALSE) -> 72.7 | S62: TRUE | AA62: 30055162 | AB62: 4010312326640
A63: 165 | B63: BTR55EH-12V DC-wg Bus-Temperaturregler mit Handrad | C63: =IF(AND(Eingabemaske!E$5="ja",Eingabemaske!E$7="55mm E wg",Eingabemaske!E$18="ja"),Eingabemaske!E$24,0) -> 0 | D63: 0 | F63: 72.7 | G63: 0 | O63: =VLOOKUP(AB63,Gesamtpreisliste!$A$7:$E$888,2,FALSE) -> 30055163 | P63: TRUE | Q63: =VLOOKUP(AB63,Gesamtpreisliste!$A$7:$E$888,3,FALSE) -> BTR55EH/12V DC-wg | R63: =VLOOKUP(AB63,Gesamtpreisliste!$A$7:$E$888,5,FALSE) -> 72.7 | S63: TRUE | AA63: 30055163 | AB63: 4010312326657
A64: 166 | B64: BTR55EH-12V DC-am Bus-Temperaturregler mit Handrad | C64: =IF(AND(Eingabemaske!E$5="ja",Eingabemaske!E$7="55mm E am",Eingabemaske!E$18="ja"),Eingabemaske!E$24,0) -> 0 | D64: =C64 -> 0 | F64: 72.7 | G64: =D64*F64 -> 0 | K64: =IF(D64>0,D64,"") ->  | L64: =K64 ->  | O64: =VLOOKUP(AB64,Gesamtpreisliste!$A$7:$E$888,2,FALSE) -> 30055160 | P64: =EXACT(O64,AA64) -> TRUE | Q64: =VLOOKUP(AB64,Gesamtpreisliste!$A$7:$E$888,3,FALSE) -> BTR55EH/12V DC-am | R64: =VLOOKUP(AB64,Gesamtpreisliste!$A$7:$E$888,5,FALSE) -> 72.7 | S64: =EXACT(F64,R64) -> TRUE | AA64: 30055160 | AB64: 4010312326626
A65: 169 | B65: BTF55E/12VDC-pg Bus-Temperaturfühler | C65: =IF(AND(Eingabemaske!E$5="ja",Eingabemaske!E$7="55mm E pg",Eingabemaske!E$18="ja"),Eingabemaske!E$25,0) -> 0 | D65: =C65 -> 0 | F65: 66.8 | G65: =D65*F65 -> 0 | L65: =K65 ->  | O65: =VLOOKUP(AB65,Gesamtpreisliste!$A$7:$E$888,2,FALSE) -> 30055157 | P65: =EXACT(O65,AA65) -> TRUE | Q65: =VLOOKUP(AB65,Gesamtpreisliste!$A$7:$E$888,3,FALSE) -> BTF55E/12V DC-pg | R65: =VLOOKUP(AB65,Gesamtpreisliste!$A$7:$E$888,5,FALSE) -> 66.8 | S65: =EXACT(F65,R65) -> TRUE | AA65: 30055157 | AB65: 4010312326596
A66: 170 | B66: BTF55E/12VDC-pm Bus-Temperaturfühler | C66: =IF(AND(Eingabemaske!E$5="ja",Eingabemaske!E$7="55mm E pm",Eingabemaske!E$18="ja"),Eingabemaske!E$25,0) -> 0 | D66: 0 | F66: 66.8 | G66: 0 | O66: =VLOOKUP(AB66,Gesamtpreisliste!$A$7:$E$888,2,FALSE) -> 30055158 | P66: TRUE | Q66: =VLOOKUP(AB66,Gesamtpreisliste!$A$7:$E$888,3,FALSE) -> BTF55E/12V DC-pm | R66: =VLOOKUP(AB66,Gesamtpreisliste!$A$7:$E$888,5,FALSE) -> 66.8 | S66: TRUE | AA66: 30055158 | AB66: 4010312326602
A67: 171 | B67: BTF55E/12VDC-wg Bus-Temperaturfühler | C67: =IF(AND(Eingabemaske!E$5="ja",Eingabemaske!E$7="55mm E wg",Eingabemaske!E$18="ja"),Eingabemaske!E$25,0) -> 0 | D67: 0 | F67: 66.8 | G67: =D67*F67 -> 0 | O67: =VLOOKUP(AB67,Gesamtpreisliste!$A$7:$E$888,2,FALSE) -> 30055159 | P67: =EXACT(O67,AA67) -> TRUE | Q67: =VLOOKUP(AB67,Gesamtpreisliste!$A$7:$E$888,3,FALSE) -> BTF55E/12V DC-wg | R67: =VLOOKUP(AB67,Gesamtpreisliste!$A$7:$E$888,5,FALSE) -> 66.8 | S67: =EXACT(F67,R67) -> TRUE | AA67: 30055159 | AB67: 4010312326619
A68: 172 | B68: BTF55E/12VDC-am Bus-Temperaturfühler | C68: =IF(AND(Eingabemaske!E$5="ja",Eingabemaske!E$7="55mm E am",Eingabemaske!E$18="ja"),Eingabemaske!E$25,0) -> 0 | D68: =C68 -> 0 | F68: 66.8 | G68: =D68*F68 -> 0 | L68: =K68 ->  | O68: =VLOOKUP(AB68,Gesamtpreisliste!$A$7:$E$888,2,FALSE) -> 30055156 | P68: =EXACT(O68,AA68) -> TRUE | Q68: =VLOOKUP(AB68,Gesamtpreisliste!$A$7:$E$888,3,FALSE) -> BTF55E/12V DC-am | R68: =VLOOKUP(AB68,Gesamtpreisliste!$A$7:$E$888,5,FALSE) -> 66.8 | S68: =EXACT(F68,R68) -> TRUE | AA68: 30055156 | AB68: 4010312326589
A69: 175 | B69: BBH55E/12V DC-pg Bus-Bewegungs-Helligkeitssensor | C69: =IF(AND(Eingabemaske!E$5="ja",Eingabemaske!E$7="55mm E pg",Eingabemaske!E$64="ja"),Eingabemaske!E$66,0) -> 0 | D69: =C69 -> 0 | F69: 78.2 | G69: =D69*F69 -> 0 | L69: =K69 ->  | O69: =VLOOKUP(AB69,Gesamtpreisliste!$A$7:$E$888,2,FALSE) -> 30055153 | P69: =EXACT(O69,AA69) -> TRUE | Q69: =VLOOKUP(AB69,Gesamtpreisliste!$A$7:$E$888,3,FALSE) -> BBH55E/12V DC-pg | R69: =VLOOKUP(AB69,Gesamtpreisliste!$A$7:$E$888,5,FALSE) -> 78.2 | S69: =EXACT(F69,R69) -> TRUE | AA69: 30055153 | AB69: 4010312326558
A70: 176 | B70: BBH55E/12V DC-pm Bus-Bewegungs-Helligkeitssensor | C70: =IF(AND(Eingabemaske!E$5="ja",Eingabemaske!E$7="55mm E pm",Eingabemaske!E$64="ja"),Eingabemaske!E$66,0) -> 0 | D70: 0 | F70: 78.2 | G70: 0 | O70: =VLOOKUP(AB70,Gesamtpreisliste!$A$7:$E$888,2,FALSE) -> 30055154 | P70: TRUE | Q70: =VLOOKUP(AB70,Gesamtpreisliste!$A$7:$E$888,3,FALSE) -> BBH55E/12V DC-pm | R70: =VLOOKUP(AB70,Gesamtpreisliste!$A$7:$E$888,5,FALSE) -> 78.2 | S70: TRUE | AA70: 30055154 | AB70: 4010312326565
A71: 177 | B71: BBH55E/12V DC-wg Bus-Bewegungs-Helligkeitssensor | C71: =IF(AND(Eingabemaske!E$5="ja",Eingabemaske!E$7="55mm E wg",Eingabemaske!E$64="ja"),Eingabemaske!E$66,0) -> 0 | D71: 0 | F71: 78.2 | G71: 0 | O71: =VLOOKUP(AB71,Gesamtpreisliste!$A$7:$E$888,2,FALSE) -> 30055155 | P71: TRUE | Q71: =VLOOKUP(AB71,Gesamtpreisliste!$A$7:$E$888,3,FALSE) -> BBH55E/12V DC-wg | R71: =VLOOKUP(AB71,Gesamtpreisliste!$A$7:$E$888,5,FALSE) -> 78.2 | S71: TRUE | AA71: 30055155 | AB71: 4010312326572
A72: 178 | B72: BBH55E/12V DC-am Bus-Bewegungs-Helligkeitssensor | C72: =IF(AND(Eingabemaske!E$5="ja",Eingabemaske!E$7="55mm E am",Eingabemaske!E$64="ja"),Eingabemaske!E$66,0) -> 0 | D72: =C72 -> 0 | F72: 78.2 | G72: =D72*F72 -> 0 | L72: =K72 ->  | O72: =VLOOKUP(AB72,Gesamtpreisliste!$A$7:$E$888,2,FALSE) -> 30055152 | P72: =EXACT(O72,AA72) -> TRUE | Q72: =VLOOKUP(AB72,Gesamtpreisliste!$A$7:$E$888,3,FALSE) -> BBH55E/12V DC-am | R72: =VLOOKUP(AB72,Gesamtpreisliste!$A$7:$E$888,5,FALSE) -> 78.2 | S72: =EXACT(F72,R72) -> TRUE | AA72: 30055152 | AB72: 4010312326541
A73: 181 | B73: FUTH55ED/230V-pg Funk-Uhren-Thermo-Hygrostat mit Display | C73: =IF(AND(Eingabemaske!E$4="ja",Eingabemaske!E$7="55mm E pg",Eingabemaske!E$18="ja"),Eingabemaske!E$19,0) -> 0 | D73: =C73 -> 0 | F73: 105.6 | G73: =D73*F73 -> 0 | L73: =K73 ->  | O73: =VLOOKUP(AB73,Gesamtpreisliste!$A$7:$E$888,2,FALSE) -> 30055803 | P73: =EXACT(O73,AA73) -> TRUE | Q73: =VLOOKUP(AB73,Gesamtpreisliste!$A$7:$E$888,3,FALSE) -> FUTH55ED/230V-pg | R73: =VLOOKUP(AB73,Gesamtpreisliste!$A$7:$E$888,5,FALSE) -> 105.6 | S73: =EXACT(F73,R73) -> TRUE | AA73: 30055803 | AB73: 4010312326794
A74: 182 | B74: FUTH55ED/230V-pm Funk-Uhren-Thermo-Hygrostat mit Display | C74: =IF(AND(Eingabemaske!E$4="ja",Eingabemaske!E$7="55mm E pm",Eingabemaske!E$18="ja"),Eingabemaske!E$19,0) -> 0 | D74: 0 | F74: 105.6 | G74: 0 | O74: =VLOOKUP(AB74,Gesamtpreisliste!$A$7:$E$888,2,FALSE) -> 30055804 | P74: TRUE | Q74: =VLOOKUP(AB74,Gesamtpreisliste!$A$7:$E$888,3,FALSE) -> FUTH55ED/230V-pm | R74: =VLOOKUP(AB74,Gesamtpreisliste!$A$7:$E$888,5,FALSE) -> 105.6 | S74: TRUE | AA74: 30055804 | AB74: 4010312326800
A75: 183 | B75: FUTH55ED/230V-wg Funk-Uhren-Thermo-Hygrostat mit Display | C75: =IF(AND(Eingabemaske!E$4="ja",Eingabemaske!E$7="55mm E wg",Eingabemaske!E$18="ja"),Eingabemaske!E$19,0) -> 0 | D75: 0 | F75: 105.6 | G75: 0 | O75: =VLOOKUP(AB75,Gesamtpreisliste!$A$7:$E$888,2,FALSE) -> 30055805 | P75: TRUE | Q75: =VLOOKUP(AB75,Gesamtpreisliste!$A$7:$E$888,3,FALSE) -> FUTH55ED/230V-wg | R75: =VLOOKUP(AB75,Gesamtpreisliste!$A$7:$E$888,5,FALSE) -> 105.6 | S75: TRUE | AA75: 30055805 | AB75: 4010312326817
A76: 184 | B76: FUTH55ED/230V-am Funk-Uhren-Thermo-Hygrostat mit Display | C76: =IF(AND(Eingabemaske!E$4="ja",Eingabemaske!E$7="55mm E am",Eingabemaske!E$18="ja"),Eingabemaske!E$19,0) -> 0 | D76: =C76 -> 0 | F76: 105.6 | G76: =D76*F76 -> 0 | L76: =K76 ->  | O76: =VLOOKUP(AB76,Gesamtpreisliste!$A$7:$E$888,2,FALSE) -> 30055802 | P76: =EXACT(O76,AA76) -> TRUE | Q76: =VLOOKUP(AB76,Gesamtpreisliste!$A$7:$E$888,3,FALSE) -> FUTH55ED/230V-am | R76: =VLOOKUP(AB76,Gesamtpreisliste!$A$7:$E$888,5,FALSE) -> 105.6 | S76: =EXACT(F76,R76) -> TRUE | AA76: 30055802 | AB76: 4010312326787
A77: 187 | B77: FUTH55ED/12-24VUC-pg Funk-Uhren-Thermo-Hygrostat mit Display | D77: =C77 -> 0 | F77: 106.6 | G77: =D77*F77 -> 0 | L77: =K77 ->  | O77: =VLOOKUP(AB77,Gesamtpreisliste!$A$7:$E$888,2,FALSE) -> 30055799 | P77: =EXACT(O77,AA77) -> TRUE | Q77: =VLOOKUP(AB77,Gesamtpreisliste!$A$7:$E$888,3,FALSE) -> FUTH55ED/12-24V UC-pg | R77: =VLOOKUP(AB77,Gesamtpreisliste!$A$7:$E$888,5,FALSE) -> 106.6 | S77: =EXACT(F77,R77) -> TRUE | AA77: 30055799 | AB77: 4010312326411
A78: 188 | B78: FUTH55ED/12-24VUC-pm Funk-Uhren-Thermo-Hygrostat mit Display | D78: 0 | F78: 106.6 | G78: 0 | O78: =VLOOKUP(AB78,Gesamtpreisliste!$A$7:$E$888,2,FALSE) -> 30055800 | P78: TRUE | Q78: =VLOOKUP(AB78,Gesamtpreisliste!$A$7:$E$888,3,FALSE) -> FUTH55ED/12-24V UC-pm | R78: =VLOOKUP(AB78,Gesamtpreisliste!$A$7:$E$888,5,FALSE) -> 106.6 | S78: TRUE | AA78: 30055800 | AB78: 4010312326428
A79: 189 | B79: FUTH55ED/12-24VUC-wg Funk-Uhren-Thermo-Hygrostat mit Display | D79: 0 | F79: 106.6 | G79: 0 | O79: =VLOOKUP(AB79,Gesamtpreisliste!$A$7:$E$888,2,FALSE) -> 30055801 | P79: TRUE | Q79: =VLOOKUP(AB79,Gesamtpreisliste!$A$7:$E$888,3,FALSE) -> FUTH55ED/12-24V UC-wg | R79: =VLOOKUP(AB79,Gesamtpreisliste!$A$7:$E$888,5,FALSE) -> 106.6 | S79: TRUE | AA79: 30055801 | AB79: 4010312326435
A80: 190 | B80: FUTH55ED/12-24VUC-am Funk-Uhren-Thermo-Hygrostat mit Display | D80: =C80 -> 0 | F80: 106.6 | G80: =D80*F80 -> 0 | L80: =K80 ->  | O80: =VLOOKUP(AB80,Gesamtpreisliste!$A$7:$E$888,2,FALSE) -> 30055798 | P80: =EXACT(O80,AA80) -> TRUE | Q80: =VLOOKUP(AB80,Gesamtpreisliste!$A$7:$E$888,3,FALSE) -> FUTH55ED/12-24V UC-am | R80: =VLOOKUP(AB80,Gesamtpreisliste!$A$7:$E$888,5,FALSE) -> 106.6 | S80: =EXACT(F80,R80) -> TRUE | AA80: 30055798 | AB80: 4010312326404
A81: 192 | B81: FFT55EB-pg Funk-Temperatursensor | C81: =IF(AND(Eingabemaske!E$4="ja",Eingabemaske!E$7="55mm E pg",Eingabemaske!E$18="ja"),Eingabemaske!E$22,0) -> 0 | D81: =C81 -> 0 | F81: 75 | G81: =D81*F81 -> 0 | L81: =K81 ->  | O81: =VLOOKUP(AB81,Gesamtpreisliste!$A$7:$E$888,2,FALSE) -> 30055477 | P81: =EXACT(O81,AA81) -> TRUE | Q81: =VLOOKUP(AB81,Gesamtpreisliste!$A$7:$E$888,3,FALSE) -> FFT55EB-pg | R81: =VLOOKUP(AB81,Gesamtpreisliste!$A$7:$E$888,5,FALSE) -> 75 | S81: =EXACT(F81,R81) -> TRUE | AA81: 30055477 | AB81: 4010312325889
A82: 193 | B82: FFT55EB-pm Funk-Temperatursensor | C82: =IF(AND(Eingabemaske!E$4="ja",Eingabemaske!E$7="55mm E pm",Eingabemaske!E$18="ja"),Eingabemaske!E$22,0) -> 0 | D82: 0 | F82: 75 | G82: 0 | O82: =VLOOKUP(AB82,Gesamtpreisliste!$A$7:$E$888,2,FALSE) -> 30055478 | P82: TRUE | Q82: =VLOOKUP(AB82,Gesamtpreisliste!$A$7:$E$888,3,FALSE) -> FFT55EB-pm | R82: =VLOOKUP(AB82,Gesamtpreisliste!$A$7:$E$888,5,FALSE) -> 75 | S82: TRUE | AA82: 30055478 | AB82: 4010312325896
A83: 194 | B83: FFT55EB-wg Funk-Temperatursensor | C83: =IF(AND(Eingabemaske!E$4="ja",Eingabemaske!E$7="55mm E wg",Eingabemaske!E$18="ja"),Eingabemaske!E$22,0) -> 0 | D83: =C83 -> 0 | F83: 75 | G83: =D83*F83 -> 0 | L83: =K83 ->  | O83: =VLOOKUP(AB83,Gesamtpreisliste!$A$7:$E$888,2,FALSE) -> 30055475 | P83: =EXACT(O83,AA83) -> TRUE | Q83: =VLOOKUP(AB83,Gesamtpreisliste!$A$7:$E$888,3,FALSE) -> FFT55EB-wg | R83: =VLOOKUP(AB83,Gesamtpreisliste!$A$7:$E$888,5,FALSE) -> 75 | S83: =EXACT(F83,R83) -> TRUE | AA83: 30055475 | AB83: 4010312321010
A84: 195 | B84: FFT55EB-am Funk-Temperatursensor | C84: =IF(AND(Eingabemaske!E$4="ja",Eingabemaske!E$7="55mm E am",Eingabemaske!E$18="ja"),Eingabemaske!E$22,0) -> 0 | D84: =C84 -> 0 | F84: 75 | G84: =D84*F84 -> 0 | L84: =K84 ->  | O84: =VLOOKUP(AB84,Gesamtpreisliste!$A$7:$E$888,2,FALSE) -> 30055476 | P84: =EXACT(O84,AA84) -> TRUE | Q84: =VLOOKUP(AB84,Gesamtpreisliste!$A$7:$E$888,3,FALSE) -> FFT55EB-am | R84: =VLOOKUP(AB84,Gesamtpreisliste!$A$7:$E$888,5,FALSE) -> 75 | S84: =EXACT(F84,R84) -> TRUE | AA84: 30055476 | AB84: 4010312325872
A85: 198 | B85: FTR55EHB-pg Funk-Temperaturregler mit Handrad | C85: =IF(AND(Eingabemaske!E$4="ja",Eingabemaske!E$7="55mm E pg",Eingabemaske!E$18="ja"),Eingabemaske!E$21,0) -> 0 | D85: =C85 -> 0 | F85: 88.8 | G85: =D85*F85 -> 0 | L85: =K85 ->  | O85: =VLOOKUP(AB85,Gesamtpreisliste!$A$7:$E$888,2,FALSE) -> 30055767 | P85: =EXACT(O85,AA85) -> TRUE | Q85: =VLOOKUP(AB85,Gesamtpreisliste!$A$7:$E$888,3,FALSE) -> FTR55EHB-pg | R85: =VLOOKUP(AB85,Gesamtpreisliste!$A$7:$E$888,5,FALSE) -> 88.8 | S85: =EXACT(F85,R85) -> TRUE | AA85: 30055767 | AB85: 4010312326299
A86: 199 | B86: FTR55EHB-pm Funk-Temperaturregler mit Handrad | C86: =IF(AND(Eingabemaske!E$4="ja",Eingabemaske!E$7="55mm E pm",Eingabemaske!E$18="ja"),Eingabemaske!E$21,0) -> 0 | D86: 0 | F86: 88.8 | G86: =D86*F86 -> 0 | O86: =VLOOKUP(AB86,Gesamtpreisliste!$A$7:$E$888,2,FALSE) -> 30055768 | P86: =EXACT(O86,AA86) -> TRUE | Q86: =VLOOKUP(AB86,Gesamtpreisliste!$A$7:$E$888,3,FALSE) -> FTR55EHB-pm | R86: =VLOOKUP(AB86,Gesamtpreisliste!$A$7:$E$888,5,FALSE) -> 88.8 | S86: =EXACT(F86,R86) -> TRUE | AA86: 30055768 | AB86: 4010312326305
A87: 200 | B87: FTR55EHB-wg Funk-Temperaturregler mit Handrad | C87: =IF(AND(Eingabemaske!E$4="ja",Eingabemaske!E$7="55mm E wg",Eingabemaske!E$18="ja"),Eingabemaske!E$21,0) -> 0 | D87: 0 | F87: 88.8 | G87: =D87*F87 -> 0 | O87: =VLOOKUP(AB87,Gesamtpreisliste!$A$7:$E$888,2,FALSE) -> 30055769 | P87: =EXACT(O87,AA87) -> TRUE | Q87: =VLOOKUP(AB87,Gesamtpreisliste!$A$7:$E$888,3,FALSE) -> FTR55EHB-wg | R87: =VLOOKUP(AB87,Gesamtpreisliste!$A$7:$E$888,5,FALSE) -> 88.8 | S87: =EXACT(F87,R87) -> TRUE | AA87: 30055769 | AB87: 4010312326312
A88: 201 | B88: FTR55EHB-am Funk-Temperaturregler mit Handrad | C88: =IF(AND(Eingabemaske!E$4="ja",Eingabemaske!E$7="55mm E am",Eingabemaske!E$18="ja"),Eingabemaske!E$21,0) -> 0 | D88: =C88 -> 0 | F88: 88.8 | G88: =D88*F88 -> 0 | L88: =K88 ->  | O88: =VLOOKUP(AB88,Gesamtpreisliste!$A$7:$E$888,2,FALSE) -> 30055766 | P88: =EXACT(O88,AA88) -> TRUE | Q88: =VLOOKUP(AB88,Gesamtpreisliste!$A$7:$E$888,3,FALSE) -> FTR55EHB-am | R88: =VLOOKUP(AB88,Gesamtpreisliste!$A$7:$E$888,5,FALSE) -> 88.8 | S88: =EXACT(F88,R88) -> TRUE | AA88: 30055766 | AB88: 4010312326282
A89: 204 | B89: FTAF55ED-230V-am Funk-Temperaturregeler Air+Floor | C89: =IF(AND(Eingabemaske!E$4="ja",Eingabemaske!E$7="55mm E am",Eingabemaske!E$18="ja"),Eingabemaske!E$20,0) -> 0 | D89: =C89 -> 0 | F89: 103.1 | G89: =D89*F89 -> 0 | L89: =K89 ->  | O89: =VLOOKUP(AB89,Gesamtpreisliste!$A$7:$E$888,2,FALSE) -> 30055794 | P89: =EXACT(O89,AA89) -> TRUE | Q89: =VLOOKUP(AB89,Gesamtpreisliste!$A$7:$E$888,3,FALSE) -> FTAF55ED/230V-am | R89: =VLOOKUP(AB89,Gesamtpreisliste!$A$7:$E$888,5,FALSE) -> 103.1 | S89: =EXACT(F89,R89) -> TRUE | AA89: 30055794 | AB89: 4010312326367
A90: 205 | B90: FTAF55ED-230V-pg Funk-Temperaturregeler Air+Floor | C90: =IF(AND(Eingabemaske!E$4="ja",Eingabemaske!E$7="55mm E pg",Eingabemaske!E$18="ja"),Eingabemaske!E$20,0) -> 0 | D90: 0 | F90: 103.1 | G90: 0 | O90: =VLOOKUP(AB90,Gesamtpreisliste!$A$7:$E$888,2,FALSE) -> 30055795 | P90: TRUE | Q90: =VLOOKUP(AB90,Gesamtpreisliste!$A$7:$E$888,3,FALSE) -> FTAF55ED/230V-pg | R90: =VLOOKUP(AB90,Gesamtpreisliste!$A$7:$E$888,5,FALSE) -> 103.1 | S90: TRUE | AA90: 30055795 | AB90: 4010312326374
A91: 206 | B91: FTAF55ED-230V-pm Funk-Temperaturregeler Air+Floor | C91: =IF(AND(Eingabemaske!E$4="ja",Eingabemaske!E$7="55mm E pm",Eingabemaske!E$18="ja"),Eingabemaske!E$20,0) -> 0 | D91: 0 | F91: 103.1 | G91: 0 | O91: =VLOOKUP(AB91,Gesamtpreisliste!$A$7:$E$888,2,FALSE) -> 30055796 | P91: TRUE | Q91: =VLOOKUP(AB91,Gesamtpreisliste!$A$7:$E$888,3,FALSE) -> FTAF55ED/230V-pm | R91: =VLOOKUP(AB91,Gesamtpreisliste!$A$7:$E$888,5,FALSE) -> 103.1 | S91: TRUE | AA91: 30055796 | AB91: 4010312326381
A92: 207 | B92: FTAF55ED-230V-wg Funk-Temperaturregeler Air+Floor | C92: =IF(AND(Eingabemaske!E$4="ja",Eingabemaske!E$7="55mm E wg",Eingabemaske!E$18="ja"),Eingabemaske!E$20,0) -> 0 | D92: 0 | F92: 103.1 | G92: 0 | O92: =VLOOKUP(AB92,Gesamtpreisliste!$A$7:$E$888,2,FALSE) -> 30055797 | P92: TRUE | Q92: =VLOOKUP(AB92,Gesamtpreisliste!$A$7:$E$888,3,FALSE) -> FTAF55ED/230V-wg | R92: =VLOOKUP(AB92,Gesamtpreisliste!$A$7:$E$888,5,FALSE) -> 103.1 | S92: TRUE | AA92: 30055797 | AB92: 4010312326398
A93: 209 | B93: FTR86B-ws Funk-Temperatur-Regler (Oventrop) | D93: 0 | F93: 166.5 | G93: 0 | O93: =VLOOKUP(AB93,Gesamtpreisliste!$A$7:$E$888,2,FALSE) -> 30000439 | P93: TRUE | Q93: =VLOOKUP(AB93,Gesamtpreisliste!$A$7:$E$888,3,FALSE) -> FTR86B-ws | R93: =VLOOKUP(AB93,Gesamtpreisliste!$A$7:$E$888,5,FALSE) -> 166.5 | S93: TRUE | AA93: 30000439 | AB93: 4010312318423
A94: 212 | B94: FB55EB-pg Funk-Bewegungssensor mit Batterie | C94: =IF(AND(Eingabemaske!E$4="ja",Eingabemaske!E$7="55mm E pg",Eingabemaske!E$64="ja"),Eingabemaske!E$70,0) -> 0 | D94: =C94 -> 0 | F94: 89.1 | G94: =D94*F94 -> 0 | L94: =K94 ->  | O94: =VLOOKUP(AB94,Gesamtpreisliste!$A$7:$E$888,2,FALSE) -> 30055514 | P94: =EXACT(O94,AA94) -> TRUE | Q94: =VLOOKUP(AB94,Gesamtpreisliste!$A$7:$E$888,3,FALSE) -> FB55EB-pg | R94: =VLOOKUP(AB94,Gesamtpreisliste!$A$7:$E$888,5,FALSE) -> 89.1 | S94: =EXACT(F94,R94) -> TRUE | AA94: 30055514 | AB94: 4010312325902
A95: 213 | B95: FB55EB-pm Funk-Bewegungssensor mit Batterie | C95: =IF(AND(Eingabemaske!E$4="ja",Eingabemaske!E$7="55mm E pm",Eingabemaske!E$64="ja"),Eingabemaske!E$70,0) -> 0 | D95: =C95 -> 0 | F95: 89.1 | G95: =D95*F95 -> 0 | L95: =K95 ->  | O95: =VLOOKUP(AB95,Gesamtpreisliste!$A$7:$E$888,2,FALSE) -> 30055515 | P95: TRUE | Q95: =VLOOKUP(AB95,Gesamtpreisliste!$A$7:$E$888,3,FALSE) -> FB55EB-pm | R95: =VLOOKUP(AB95,Gesamtpreisliste!$A$7:$E$888,5,FALSE) -> 89.1 | S95: TRUE | AA95: 30055515 | AB95: 4010312325919
A96: 214 | B96: FB55EB-wg Funk-Bewegungssensor mit Batterie | C96: =IF(AND(Eingabemaske!E$4="ja",Eingabemaske!E$7="55mm E wg",Eingabemaske!E$64="ja"),Eingabemaske!E$70,0) -> 0 | D96: =C96 -> 0 | F96: 89.1 | G96: =D96*F96 -> 0 | L96: =K96 ->  | O96: =VLOOKUP(AB96,Gesamtpreisliste!$A$7:$E$888,2,FALSE) -> 30055512 | P96: TRUE | Q96: =VLOOKUP(AB96,Gesamtpreisliste!$A$7:$E$888,3,FALSE) -> FB55EB-wg | R96: =VLOOKUP(AB96,Gesamtpreisliste!$A$7:$E$888,5,FALSE) -> 89.1 | S96: TRUE | AA96: 30055512 | AB96: 4010312321003
A97: 215 | B97: FB55EB-am Funk-Bewegungssensor mit Batterie | C97: =IF(AND(Eingabemaske!E$4="ja",Eingabemaske!E$7="55mm E am",Eingabemaske!E$64="ja"),Eingabemaske!E$69,0) -> 0 | D97: =C97 -> 0 | F97: 89.1 | G97: =D97*F97 -> 0 | L97: =K97 ->  | O97: =VLOOKUP(AB97,Gesamtpreisliste!$A$7:$E$888,2,FALSE) -> 30055513 | P97: =EXACT(O97,AA97) -> TRUE | Q97: =VLOOKUP(AB97,Gesamtpreisliste!$A$7:$E$888,3,FALSE) -> FB55EB-am | R97: =VLOOKUP(AB97,Gesamtpreisliste!$A$7:$E$888,5,FALSE) -> 89.1 | S97: =EXACT(F97,R97) -> TRUE | AA97: 30055513 | AB97: 4010312322321
A98: 217 | B98: FBH55ESB-pg Funk-Bewegungs-Helligkeitssensor mit Solar+Batterie | C98: =IF(AND(Eingabemaske!E$4="ja",Eingabemaske!E$7="55mm E pg",Eingabemaske!E$64="ja"),Eingabemaske!E$69,0) -> 0 | D98: =C98 -> 0 | F98: 106.8 | G98: =D98*F98 -> 0 | L98: =K98 ->  | O98: =VLOOKUP(AB98,Gesamtpreisliste!$A$7:$E$888,2,FALSE) -> 30055517 | P98: =EXACT(O98,AA98) -> TRUE | Q98: =VLOOKUP(AB98,Gesamtpreisliste!$A$7:$E$888,3,FALSE) -> FBH55ESB-pg | R98: =VLOOKUP(AB98,Gesamtpreisliste!$A$7:$E$888,5,FALSE) -> 106.8 | S98: =EXACT(F98,R98) -> TRUE | AA98: 30055517 | AB98: 4010312325933
A99: 218 | B99: FBH55ESB-pm Funk-Bewegungs-Helligkeitssensor mit Solar+Batterie | C99: =IF(AND(Eingabemaske!E$4="ja",Eingabemaske!E$7="55mm E pm",Eingabemaske!E$64="ja"),Eingabemaske!E$69,0) -> 0 | D99: 0 | F99: 106.8 | G99: 0 | O99: =VLOOKUP(AB99,Gesamtpreisliste!$A$7:$E$888,2,FALSE) -> 30055518 | P99: TRUE | Q99: =VLOOKUP(AB99,Gesamtpreisliste!$A$7:$E$888,3,FALSE) -> FBH55ESB-pm | R99: =VLOOKUP(AB99,Gesamtpreisliste!$A$7:$E$888,5,FALSE) -> 106.8 | S99: TRUE | AA99: 30055518 | AB99: 4010312325940
A100: 219 | B100: FBH55ESB-wg Funk-Bewegungs-Helligkeitssensor mit Solar+Batterie | C100: =IF(AND(Eingabemaske!E$4="ja",Eingabemaske!E$7="55mm E wg",Eingabemaske!E$64="ja"),Eingabemaske!E$69,0) -> 0 | D100: 0 | F100: 106.8 | G100: 0 | O100: =VLOOKUP(AB100,Gesamtpreisliste!$A$7:$E$888,2,FALSE) -> 30055519 | P100: TRUE | Q100: =VLOOKUP(AB100,Gesamtpreisliste!$A$7:$E$888,3,FALSE) -> FBH55ESB-wg | R100: =VLOOKUP(AB100,Gesamtpreisliste!$A$7:$E$888,5,FALSE) -> 106.8 | S100: TRUE | AA100: 30055519 | AB100: 4010312327708
A101: 220 | B101: FBH55ESB-am Funk-Bewegungs-Helligkeitssensor mit Solar+Batterie | C101: =IF(AND(Eingabemaske!E$4="ja",Eingabemaske!E$7="55mm E am",Eingabemaske!E$64="ja"),Eingabemaske!E$68,0) -> 0 | D101: =C101 -> 0 | F101: 106.8 | G101: =D101*F101 -> 0 | L101: =K101 ->  | O101: =VLOOKUP(AB101,Gesamtpreisliste!$A$7:$E$888,2,FALSE) -> 30055516 | P101: =EXACT(O101,AA101) -> TRUE | Q101: =VLOOKUP(AB101,Gesamtpreisliste!$A$7:$E$888,3,FALSE) -> FBH55ESB-am | R101: =VLOOKUP(AB101,Gesamtpreisliste!$A$7:$E$888,5,FALSE) -> 106.8 | S101: =EXACT(F101,R101) -> TRUE | AA101: 30055516 | AB101: 4010312325926
A102: 222 | B102: FABH65S-wg Außen-Bewegungs-Helligkeitssensor | C102: =IF(AND(Eingabemaske!E4="ja",Eingabemaske!E64="ja"),Eingabemaske!E67,0) -> 0 | D102: =C102 -> 0 | F102: 120.9 | G102: =D102*F102 -> 0 | L102: =K102 ->  | O102: =VLOOKUP(AB102,Gesamtpreisliste!$A$7:$E$888,2,FALSE) -> 30065852 | P102: =EXACT(O102,AA102) -> TRUE | Q102: =VLOOKUP(AB102,Gesamtpreisliste!$A$7:$E$888,3,FALSE) -> FABH65S-wg | R102: =VLOOKUP(AB102,Gesamtpreisliste!$A$7:$E$888,5,FALSE) -> 120.9 | S102: =EXACT(F102,R102) -> TRUE | AA102: 30065852 | AB102: 4010312315798
A103: 224 | B103: FLGTF55E-pg Funk-Luftgüte-Temperatur-Sensor mit Signal | C103: =IF(AND(Eingabemaske!E$4="ja",Eingabemaske!E$7="55mm E pg",Eingabemaske!E$71="ja"),Eingabemaske!E$72,0) -> 0 | D103: =C103 -> 0 | F103: 105.1 | G103: =D103*F103 -> 0 | L103: =K103 ->  | O103: =VLOOKUP(AB103,Gesamtpreisliste!$A$7:$E$888,2,FALSE) -> 30055522 | P103: =EXACT(O103,AA103) -> TRUE | Q103: =VLOOKUP(AB103,Gesamtpreisliste!$A$7:$E$888,3,FALSE) -> FLGTF55E/230V-pg | R103: =VLOOKUP(AB103,Gesamtpreisliste!$A$7:$E$888,5,FALSE) -> 105.1 | S103: =EXACT(F103,R103) -> TRUE | AA103: 30055522 | AB103: 4010312325964
A104: 225 | B104: FLGTF55E-pm Funk-Luftgüte-Temperatur-Sensor mit Signal | C104: =IF(AND(Eingabemaske!E$4="ja",Eingabemaske!E$7="55mm E pm",Eingabemaske!E$71="ja"),Eingabemaske!E$72,0) -> 0 | D104: 0 | F104: 105.1 | G104: 0 | O104: =VLOOKUP(AB104,Gesamtpreisliste!$A$7:$E$888,2,FALSE) -> 30055523 | P104: TRUE | Q104: =VLOOKUP(AB104,Gesamtpreisliste!$A$7:$E$888,3,FALSE) -> FLGTF55E/230V-pm | R104: =VLOOKUP(AB104,Gesamtpreisliste!$A$7:$E$888,5,FALSE) -> 105.1 | S104: TRUE | AA104: 30055523 | AB104: 4010312325971
A105: 226 | B105: FLGTF55E-wg Funk-Luftgüte-Temperatur-Sensor mit Signal | C105: =IF(AND(Eingabemaske!E$4="ja",Eingabemaske!E$7="55mm E wg",Eingabemaske!E$71="ja"),Eingabemaske!E$72,0) -> 0 | D105: 0 | F105: 105.1 | G105: 0 | O105: =VLOOKUP(AB105,Gesamtpreisliste!$A$7:$E$888,2,FALSE) -> 30055520 | P105: TRUE | Q105: =VLOOKUP(AB105,Gesamtpreisliste!$A$7:$E$888,3,FALSE) -> FLGTF55E/230V-wg | R105: =VLOOKUP(AB105,Gesamtpreisliste!$A$7:$E$888,5,FALSE) -> 105.1 | S105: TRUE | AA105: 30055520 | AB105: 4010312321058
A106: 227 | B106: FLGTF55E-am Funk-Luftgüte-Temperatur-Sensor mit Signal | C106: =IF(AND(Eingabemaske!E$4="ja",Eingabemaske!E$7="55mm E am",Eingabemaske!E$71="ja"),Eingabemaske!E$72,0) -> 0 | D106: =C106 -> 0 | F106: 105.1 | G106: =D106*F106 -> 0 | L106: =K106 ->  | O106: =VLOOKUP(AB106,Gesamtpreisliste!$A$7:$E$888,2,FALSE) -> 30055521 | P106: =EXACT(O106,AA106) -> TRUE | Q106: =VLOOKUP(AB106,Gesamtpreisliste!$A$7:$E$888,3,FALSE) -> FLGTF55E/230V-am | R106: =VLOOKUP(AB106,Gesamtpreisliste!$A$7:$E$888,5,FALSE) -> 105.1 | S106: =EXACT(F106,R106) -> TRUE | AA106: 30055521 | AB106: 4010312325957
A107: 229 | B107: FWS81 Funk-Wassersensor | C107: =IF(AND(Eingabemaske!E4="ja",Eingabemaske!E71="ja"),Eingabemaske!E73,0) -> 0 | D107: =C107 -> 0 | F107: 162.8 | G107: 0 | L107: =K107 ->  | O107: =VLOOKUP(AB107,Gesamtpreisliste!$A$7:$E$888,2,FALSE) -> 30000409 | P107: =EXACT(O107,AA107) -> TRUE | Q107: =VLOOKUP(AB107,Gesamtpreisliste!$A$7:$E$888,3,FALSE) -> FWS81 | R107: =VLOOKUP(AB107,Gesamtpreisliste!$A$7:$E$888,5,FALSE) -> 162.8 | S107: =EXACT(F107,R107) -> TRUE | AA107: 30000409 | AB107: 4010312316061
A108: 230 | B108: FRWB-rw Rauchwarnmelder | C108: =IF(AND(Eingabemaske!E4="ja",Eingabemaske!E71="ja"),Eingabemaske!E74,0) -> 0 | D108: 0 | F108: 158.4 | G108: 0 | K108: =IF(D108>0,D108,"") ->  | O108: =VLOOKUP(AB108,Gesamtpreisliste!$A$7:$E$888,2,FALSE) -> 30000054 | P108: TRUE | Q108: =VLOOKUP(AB108,Gesamtpreisliste!$A$7:$E$888,3,FALSE) -> FRWB-rw | R108: =VLOOKUP(AB108,Gesamtpreisliste!$A$7:$E$888,5,FALSE) -> 158.4 | S108: TRUE | AA108: 30000054 | AB108: 4010312321027
A109: 231 | B109: FHMB-rw Hitzemelder | C109: =IF(AND(Eingabemaske!E4="ja",Eingabemaske!E71="ja"),Eingabemaske!E75,0) -> 0 | D109: 0 | F109: 166.8 | G109: 0 | O109: =VLOOKUP(AB109,Gesamtpreisliste!$A$7:$E$888,2,FALSE) -> 30000056 | P109: TRUE | Q109: =VLOOKUP(AB109,Gesamtpreisliste!$A$7:$E$888,3,FALSE) -> FHMB-rw | R109: =VLOOKUP(AB109,Gesamtpreisliste!$A$7:$E$888,5,FALSE) -> 166.8 | S109: TRUE | AA109: 30000056 | AB109: 4010312321034
A110: 232 | B110: PL-SAMTEMP Powerline-Temperaturregler | C110: =IF(AND(Eingabemaske!E6="ja",Eingabemaske!E18="ja"),Eingabemaske!E26,0) -> 0 | D110: 0 | F110: 217.3 | G110: 0 | O110: =VLOOKUP(AB110,Gesamtpreisliste!$A$7:$E$888,2,FALSE) -> 31000010 | P110: TRUE | Q110: =VLOOKUP(AB110,Gesamtpreisliste!$A$7:$E$888,3,FALSE) -> PL-SAMTEMP | R110: =VLOOKUP(AB110,Gesamtpreisliste!$A$7:$E$888,5,FALSE) -> 217.3 | S110: TRUE | AA110: 31000010 | AB110: 4010312316733
A111: 233 | B111: TSA02NC-230V Thermischer Stellantrieb | C111: =IF(Eingabemaske!E18="Ja",Eingabemaske!E27,0) -> 0 | D111: 0 | F111: 40.1 | G111: 0 | O111: =VLOOKUP(AB111,Gesamtpreisliste!$A$7:$E$888,2,FALSE) -> 30014034 | P111: TRUE | Q111: =VLOOKUP(AB111,Gesamtpreisliste!$A$7:$E$888,3,FALSE) -> TSA02NC-230V | R111: =VLOOKUP(AB111,Gesamtpreisliste!$A$7:$E$888,5,FALSE) -> 40.1 | S111: TRUE | AA111: 30014034 | AB111: 4010312314425
A112: 234 | B112: TSA02NC-24V Thermischer Stellantrieb | C112: =Eingabemaske!E28 -> 0 | D112: 0 | F112: 40.1 | G112: 0 | O112: =VLOOKUP(AB112,Gesamtpreisliste!$A$7:$E$888,2,FALSE) -> 30014035 | P112: TRUE | Q112: =VLOOKUP(AB112,Gesamtpreisliste!$A$7:$E$888,3,FALSE) -> TSA02NC-24V | R112: =VLOOKUP(AB112,Gesamtpreisliste!$A$7:$E$888,5,FALSE) -> 40.1 | S112: TRUE | AA112: 30014035 | AB112: 4010312314432
A113: 235 | B113: FKS-SV Klein-Stellantrieb | C113: =IF(AND(Eingabemaske!E4="ja",Eingabemaske!E29="ja"),Eingabemaske!E33,0) -> 0 | D113: 0 | F113: 185.4 | G113: 0 | O113: =VLOOKUP(AB113,Gesamtpreisliste!$A$7:$E$888,2,FALSE) -> 30000413 | P113: TRUE | Q113: =VLOOKUP(AB113,Gesamtpreisliste!$A$7:$E$888,3,FALSE) -> FKS-SV | R113: =VLOOKUP(AB113,Gesamtpreisliste!$A$7:$E$888,5,FALSE) -> 185.4 | S113: TRUE | AA113: 30000413 | AB113: 4010312319857
A114: 236 | B114: FTK-wg Funk-Fenster-Türkontakt (auch in antrazith matt erhältlich) | C114: =IF(AND(Eingabemaske!E4="ja",Eingabemaske!E56="ja"),Eingabemaske!E58,0) -> 0 | D114: 0 | F114: 85.9 | G114: 0 | O114: =VLOOKUP(AB114,Gesamtpreisliste!$A$7:$E$888,2,FALSE) -> 30000421 | P114: TRUE | Q114: =VLOOKUP(AB114,Gesamtpreisliste!$A$7:$E$888,3,FALSE) -> FTK-wg | R114: =VLOOKUP(AB114,Gesamtpreisliste!$A$7:$E$888,5,FALSE) -> 85.9 | S114: TRUE | AA114: 30000421 | AB114: 4010312321638
A115: 237 | B115: FTKB-wg Funk-Fenster-Türkontakt mit Batterie | C115: =IF(AND(Eingabemaske!E4="ja",Eingabemaske!E56="ja"),Eingabemaske!E59,0) -> 0 | D115: 0 | F115: 73.4 | G115: 0 | O115: =VLOOKUP(AB115,Gesamtpreisliste!$A$7:$E$888,2,FALSE) -> 30000424 | P115: TRUE | Q115: =VLOOKUP(AB115,Gesamtpreisliste!$A$7:$E$888,3,FALSE) -> FTKB-wg | R115: =VLOOKUP(AB115,Gesamtpreisliste!$A$7:$E$888,5,FALSE) -> 73.4 | S115: TRUE | AA115: 30000424 | AB115: 4010312321621
A116: 238 | B116: mTronic Funk-Fenster-Multisensor im Falz mit Batterie | C116: =IF(AND(Eingabemaske!E4="ja",Eingabemaske!E56="ja"),Eingabemaske!E60,0) -> 0 | D116: 0 | F116: 126 | G116: 0 | O116: =VLOOKUP(AB116,Gesamtpreisliste!$A$7:$E$888,2,FALSE) -> 30000033 | P116: TRUE | Q116: =VLOOKUP(AB116,Gesamtpreisliste!$A$7:$E$888,3,FALSE) -> mTronic | R116: =VLOOKUP(AB116,Gesamtpreisliste!$A$7:$E$888,5,FALSE) -> 126 | S116: TRUE | AA116: 30000033 | AB116: 4010312324127
A117: 239 | B117: FFG7B Funk-Fenstergriffsensor | C117: =IF(AND(Eingabemaske!E4="ja",Eingabemaske!E56="ja"),Eingabemaske!E61,0) -> 0 | D117: 0 | F117: 76.6 | G117: 0 | O117: =VLOOKUP(AB117,Gesamtpreisliste!$A$7:$E$888,2,FALSE) -> 30000443 | P117: TRUE | Q117: =VLOOKUP(AB117,Gesamtpreisliste!$A$7:$E$888,3,FALSE) -> FFG7B-rw | R117: =VLOOKUP(AB117,Gesamtpreisliste!$A$7:$E$888,5,FALSE) -> 76.6 | S117: TRUE | AA117: 30000443 | AB117: 4010312318638
A118: 240 | B118: FFTE-rw Funk-Fenster-Tastkontakt mit Energiegenerator | C118: =IF(AND(Eingabemaske!E4="ja",Eingabemaske!E56="ja"),Eingabemaske!E62,0) -> 0 | D118: 0 | F118: 64.2 | G118: 0 | O118: =VLOOKUP(AB118,Gesamtpreisliste!$A$7:$E$888,2,FALSE) -> 30000450 | P118: TRUE | Q118: =VLOOKUP(AB118,Gesamtpreisliste!$A$7:$E$888,3,FALSE) -> FFTE-rw | R118: =VLOOKUP(AB118,Gesamtpreisliste!$A$7:$E$888,5,FALSE) -> 64.2 | S118: TRUE | AA118: 30000450 | AB118: 4010312319024
A119: 241 | B119: FTKE-rw Funk-Fenster-Türkontakt mit Energiegenerator | C119: =IF(AND(Eingabemaske!E4="ja",Eingabemaske!E56="ja"),Eingabemaske!E63,0) -> 0 | D119: 0 | F119: 64.2 | G119: 0 | O119: =VLOOKUP(AB119,Gesamtpreisliste!$A$7:$E$888,2,FALSE) -> 30000400 | P119: TRUE | Q119: =VLOOKUP(AB119,Gesamtpreisliste!$A$7:$E$888,3,FALSE) -> FTKE-rw | R119: =VLOOKUP(AB119,Gesamtpreisliste!$A$7:$E$888,5,FALSE) -> 64.2 | S119: TRUE | AA119: 30000400 | AB119: 4010312315231
A120: 242 | B120: AIR IR-Abtaster für Stromzähler | C120: =IF(Eingabemaske!E76="ja",Eingabemaske!E78,0) -> 0 | D120: =C120 -> 0 | F120: 111.1 | G120: 0 | L120: =K120 ->  | O120: =VLOOKUP(AB120,Gesamtpreisliste!$A$7:$E$888,2,FALSE) -> 30000970 | P120: TRUE | Q120: =VLOOKUP(AB120,Gesamtpreisliste!$A$7:$E$888,3,FALSE) -> AIR | R120: =VLOOKUP(AB120,Gesamtpreisliste!$A$7:$E$888,5,FALSE) -> 111.1 | S120: TRUE | AA120: 30000970 | AB120: 4010312316153
A121: 243 | B121: FWZ14-16A Bus-Funk-Wechselstromzähler | C121: =IF(Eingabemaske!E76="ja",Eingabemaske!E80,0) -> 0 | D121: =C121 -> 0 | E121: =D121 -> 0 | F121: 82.1 | G121: 0 | L121: =K121 ->  | M121: =L121 ->  | O121: =VLOOKUP(AB121,Gesamtpreisliste!$A$7:$E$888,2,FALSE) -> 30014050 | P121: TRUE | Q121: =VLOOKUP(AB121,Gesamtpreisliste!$A$7:$E$888,3,FALSE) -> FWZ14-65A | R121: =VLOOKUP(AB121,Gesamtpreisliste!$A$7:$E$888,5,FALSE) -> 82.1 | S121: TRUE | AA121: 30014050 | AB121: 4010312501511
A122: 244 | B122: WSZ15D-32A MID Wechselstromzähler | D122: 0 | E122: =D122 -> 0 | F122: 67 | G122: 0 | M122: =L122 ->  | O122: =VLOOKUP(AB122,Gesamtpreisliste!$A$7:$E$888,2,FALSE) -> 28032015 | P122: TRUE | Q122: =VLOOKUP(AB122,Gesamtpreisliste!$A$7:$E$888,3,FALSE) -> WSZ15D-32A MID | R122: =VLOOKUP(AB122,Gesamtpreisliste!$A$7:$E$888,5,FALSE) -> 67 | S122: TRUE | AA122: 28032015 | AB122: 4010312501627
A123: 245 | B123: DSZ14DRS-3x80A MID Bus-Funk-Drehstromzähler | C123: =IF(Eingabemaske!E76="ja",Eingabemaske!E81,0) -> 0 | D123: 0 | E123: =D123*4 -> 0 | F123: 200.5 | G123: 0 | M123: =L123*4 ->  | O123: =VLOOKUP(AB123,Gesamtpreisliste!$A$7:$E$888,2,FALSE) -> 28365715 | P123: TRUE | Q123: =VLOOKUP(AB123,Gesamtpreisliste!$A$7:$E$888,3,FALSE) -> DSZ14DRS-3x80A MID | R123: =VLOOKUP(AB123,Gesamtpreisliste!$A$7:$E$888,5,FALSE) -> 200.5 | S123: TRUE | AA123: 28365715 | AB123: 4010312501733
A124: 246 | B124: DSZ14WDRS-3x5A MID Bus-Funk-Wandler-Drehstromzähler | C124: =IF(Eingabemaske!E76="ja",Eingabemaske!E82,0) -> 0 | D124: 0 | E124: =D124*4 -> 0 | F124: 209.1 | G124: 0 | M124: =L124*4 ->  | O124: =VLOOKUP(AB124,Gesamtpreisliste!$A$7:$E$888,2,FALSE) -> 28305712 | P124: TRUE | Q124: =VLOOKUP(AB124,Gesamtpreisliste!$A$7:$E$888,3,FALSE) -> DSZ14WDRS-3x5A MID | R124: =VLOOKUP(AB124,Gesamtpreisliste!$A$7:$E$888,5,FALSE) -> 209.1 | S124: TRUE | AA124: 28305712 | AB124: 4010312501450
A125: 247 | B125: FT55- Funksender (bitte noch Farbe angeben) | C125: =IF(AND(Eingabemaske!E4="ja",Eingabemaske!E45="Ja"),Eingabemaske!E46,0) -> 0 | D125: 0 | F125: 55.4 | G125: 0 | O125: =VLOOKUP(AB125,Gesamtpreisliste!$A$7:$E$888,2,FALSE) ->  | Q125: =VLOOKUP(AB125,Gesamtpreisliste!$A$7:$E$888,3,FALSE) ->  | R125: =VLOOKUP(AB125,Gesamtpreisliste!$A$7:$E$888,5,FALSE) ->  | AA125: 3000059x | AB125: 401031230xxxx
A126: 248 | B126: FT4F- Funksender (bitte noch Farbe angeben) | C126: =IF(AND(Eingabemaske!E4="ja",Eingabemaske!E45="Ja"),Eingabemaske!E47,0) -> 0 | D126: 0 | F126: 55.4 | G126: 0 | O126: =VLOOKUP(AB126,Gesamtpreisliste!$A$7:$E$888,2,FALSE) ->  | Q126: =VLOOKUP(AB126,Gesamtpreisliste!$A$7:$E$888,3,FALSE) ->  | R126: =VLOOKUP(AB126,Gesamtpreisliste!$A$7:$E$888,5,FALSE) ->  | AA126: 30065596 | AB126: 4010312318485
A127: 249 | B127: FT55R - Funktaster (bitte noch Farbe angeben) | C127: =IF(AND(Eingabemaske!E4="ja",Eingabemaske!E45="Ja"),Eingabemaske!E48,0) -> 0 | D127: 0 | F127: 62 | G127: 0 | O127: =VLOOKUP(AB127,Gesamtpreisliste!$A$7:$E$888,2,FALSE) ->  | Q127: =VLOOKUP(AB127,Gesamtpreisliste!$A$7:$E$888,3,FALSE) ->  | R127: =VLOOKUP(AB127,Gesamtpreisliste!$A$7:$E$888,5,FALSE) ->  | AA127: 3000022x | AB127: 40103123139xx
A128: 250 | B128: FFD-al/anso Funk-Fernbedienung mit Display 50 Kanäle | C128: =IF(AND(Eingabemaske!E4="ja",Eingabemaske!E83="ja"),Eingabemaske!E90,0) -> 0 | D128: 0 | F128: 132.7 | G128: 0 | O128: =VLOOKUP(AB128,Gesamtpreisliste!$A$7:$E$888,2,FALSE) -> 30000773 | P128: TRUE | Q128: =VLOOKUP(AB128,Gesamtpreisliste!$A$7:$E$888,3,FALSE) -> FFD-al/anso | R128: =VLOOKUP(AB128,Gesamtpreisliste!$A$7:$E$888,5,FALSE) -> 132.7 | S128: TRUE | AA128: 30000773 | AB128: 4010312313541
A129: 251 | B129: FF8-al/anso alu/anthrazit | C129: =IF(AND(Eingabemaske!E4="ja",Eingabemaske!E83="ja"),Eingabemaske!E91,0) -> 0 | D129: 0 | F129: 121.3 | G129: 0 | O129: =VLOOKUP(AB129,Gesamtpreisliste!$A$7:$E$888,2,FALSE) -> 30000769 | P129: TRUE | Q129: =VLOOKUP(AB129,Gesamtpreisliste!$A$7:$E$888,3,FALSE) -> FF8-al/anso | R129: =VLOOKUP(AB129,Gesamtpreisliste!$A$7:$E$888,5,FALSE) -> 121.3 | S129: TRUE | AA129: 30000769 | AB129: 4010312303931
A130: 252 | B130: FMH8 al/an Miniandsender 8-Kanal | C130: =IF(AND(Eingabemaske!E4="ja",Eingabemaske!E83="ja"),Eingabemaske!E92,0) -> 0 | D130: 0 | F130: 107.4 | G130: 0 | O130: =VLOOKUP(AB130,Gesamtpreisliste!$A$7:$E$888,2,FALSE) -> 30000419 | P130: TRUE | Q130: =VLOOKUP(AB130,Gesamtpreisliste!$A$7:$E$888,3,FALSE) -> FMH8-al/anso | R130: =VLOOKUP(AB130,Gesamtpreisliste!$A$7:$E$888,5,FALSE) -> 107.4 | S130: TRUE | AA130: 30000419 | AB130: 4010312313282
A131: 253 | B131: STS14 Steckbrücken-Set; 7 Teile (Ersatzbedarf, Stückzahl anpassen) | C131: =IF(Eingabemaske!E83="ja",Eingabemaske!E89,0) -> 0 | D131: 0 | F131: 14.2 | G131: 0 | O131: =VLOOKUP(AB131,Gesamtpreisliste!$A$7:$E$888,2,FALSE) -> 30014038 | P131: TRUE | Q131: =VLOOKUP(AB131,Gesamtpreisliste!$A$7:$E$888,3,FALSE) -> STS14 | R131: =VLOOKUP(AB131,Gesamtpreisliste!$A$7:$E$888,5,FALSE) -> 14.2 | S131: TRUE | AA131: 30014038 | AB131: 4010312314975
A132: 254 | B132: MiniSafe2 Smart Home-Zentrale für GFA5 App | C132: =IF(Eingabemaske!E126="ja",Eingabemaske!E128,0) -> 0 | D132: 0 | F132: 315.1 | G132: =D132*F132 -> 0 | O132: =VLOOKUP(AB132,Gesamtpreisliste!$A$7:$E$888,2,FALSE) -> 30000075 | P132: =EXACT(O132,AA132) -> TRUE | Q132: =VLOOKUP(AB132,Gesamtpreisliste!$A$7:$E$888,3,FALSE) -> MiniSafe2 | R132: =VLOOKUP(AB132,Gesamtpreisliste!$A$7:$E$888,5,FALSE) -> 315.1 | S132: =EXACT(F132,R132) -> TRUE | AA132: 30000075 | AB132: 4010312323939
A133: 255 | B133: MiniSafe2 REG Smart Home-Zentrale für GFA5 App | C133: =IF(Eingabemaske!E126="ja",Eingabemaske!E129,0) -> 0 | D133: 0 | F133: 425.3 | G133: 0 | O133: =VLOOKUP(AB133,Gesamtpreisliste!$A$7:$E$888,2,FALSE) -> 30000076 | P133: TRUE | Q133: =VLOOKUP(AB133,Gesamtpreisliste!$A$7:$E$888,3,FALSE) -> MiniSafe2-REG | R133: =VLOOKUP(AB133,Gesamtpreisliste!$A$7:$E$888,5,FALSE) -> 425.3 | S133: TRUE | AA133: 30000076 | AB133: 4010312323946
A134: 256 | B134: HDR-30-5 Netzteil | C134: =IF(Eingabemaske!E126="ja",Eingabemaske!E130,0) -> 0 | D134: 0 | F134: 56 | G134: 0 | O134: =VLOOKUP(AB134,Gesamtpreisliste!$A$7:$E$888,2,FALSE) -> 30000940 | P134: TRUE | Q134: =VLOOKUP(AB134,Gesamtpreisliste!$A$7:$E$888,3,FALSE) -> HDR-30-5 | R134: =VLOOKUP(AB134,Gesamtpreisliste!$A$7:$E$888,5,FALSE) -> 56 | S134: TRUE | AA134: 30000940 | AB134: 4010312318874
A135: 257 | B135: WP2 wibutler Pro2 Smart Home-Zentrale mit App | C135: =IF(Eingabemaske!E126="ja",Eingabemaske!E131,0) -> 0 | D135: 0 | F135: 410.3 | G135: =D135*F135 -> 0 | O135: =VLOOKUP(AB135,Gesamtpreisliste!$A$7:$E$888,2,FALSE) -> 30000077 | P135: TRUE | Q135: =VLOOKUP(AB135,Gesamtpreisliste!$A$7:$E$888,3,FALSE) -> WP2 | R135: =VLOOKUP(AB135,Gesamtpreisliste!$A$7:$E$888,5,FALSE) -> 410.3 | S135: TRUE | AA135: 30000077 | AB135: 4010312324608
A136: 258 | B136: FL62-230V Funkaktor Stromstoß-Schaltrelais 10A potentialfrei | C136: =IF(AND(Eingabemaske!E4="ja",Eingabemaske!E93="ja"),Eingabemaske!E94,0) -> 0 | D136: 0 | F136: 65.8 | G136: =D136*F136 -> 0 | O136: =VLOOKUP(AB136,Gesamtpreisliste!$A$7:$E$888,2,FALSE) -> 30100532 | P136: TRUE | Q136: =VLOOKUP(AB136,Gesamtpreisliste!$A$7:$E$888,3,FALSE) -> FL62-230V | R136: =VLOOKUP(AB136,Gesamtpreisliste!$A$7:$E$888,5,FALSE) -> 65.8 | S136: =EXACT(F136,R136) -> TRUE | AA136: 30100532 | AB136: 4010312319383
A137: 259 | B137: FL62NP-230V Funkaktor Stromstoß-Schaltrelais 10A nicht potentialfrei | C137: =IF(AND(Eingabemaske!E4="ja",Eingabemaske!E93="ja"),Eingabemaske!E95,0) -> 0 | D137: 0 | F137: 65.8 | G137: 0 | O137: =VLOOKUP(AB137,Gesamtpreisliste!$A$7:$E$888,2,FALSE) -> 30100530 | P137: TRUE | Q137: =VLOOKUP(AB137,Gesamtpreisliste!$A$7:$E$888,3,FALSE) -> FL62NP-230V | R137: =VLOOKUP(AB137,Gesamtpreisliste!$A$7:$E$888,5,FALSE) -> 65.8 | S137: TRUE | AA137: 30100530 | AB137: 4010312319109
A138: 260 | B138: FD62NPN-230V Funk-Universal-Dimmaktor 200W | C138: =IF(AND(Eingabemaske!E4="ja",Eingabemaske!E93="ja"),Eingabemaske!E96,0) -> 0 | D138: 0 | F138: 75.6 | G138: 0 | O138: =VLOOKUP(AB138,Gesamtpreisliste!$A$7:$E$888,2,FALSE) -> 30100535 | P138: TRUE | Q138: =VLOOKUP(AB138,Gesamtpreisliste!$A$7:$E$888,3,FALSE) -> FD62NPN-230V | R138: =VLOOKUP(AB138,Gesamtpreisliste!$A$7:$E$888,5,FALSE) -> 75.6 | S138: TRUE | AA138: 30100535 | AB138: 4010312319086
A139: 261 | B139: FDG62NPN-230V Dali-Gateway UP | D139: 0 | F139: 79.8 | G139: 0 | L139: 0 | O139: =VLOOKUP(AB139,Gesamtpreisliste!$A$7:$E$888,2,FALSE) -> 30100868 | P139: TRUE | Q139: =VLOOKUP(AB139,Gesamtpreisliste!$A$7:$E$888,3,FALSE) -> FDG62-230V | R139: =VLOOKUP(AB139,Gesamtpreisliste!$A$7:$E$888,5,FALSE) -> 79.8 | S139: TRUE | AA139: 30100868 | AB139: 4010312320921
A140: 262 | B140: FJ62NP-230V Funk-Jalousie- und Rolloaktor 4A | C140: =IF(AND(Eingabemaske!E4="ja",Eingabemaske!E93="ja"),Eingabemaske!E97,0) -> 0 | D140: =C140 -> 0 | F140: 66.3 | G140: 0 | L140: =K140 ->  | O140: =VLOOKUP(AB140,Gesamtpreisliste!$A$7:$E$888,2,FALSE) -> 30200535 | P140: TRUE | Q140: =VLOOKUP(AB140,Gesamtpreisliste!$A$7:$E$888,3,FALSE) -> FJ62NP-230V | R140: =VLOOKUP(AB140,Gesamtpreisliste!$A$7:$E$888,5,FALSE) -> 66.3 | S140: TRUE | AA140: 30200535 | AB140: 4010312319390
A141: 263 | B141: FSR61NP-230 Funkaktor Stromstoß-Schaltrelais | C141: =IF(AND(Eingabemaske!E4="ja",Eingabemaske!E93="ja"),Eingabemaske!E98,0) -> 0 | D141: 0 | F141: 92.3 | G141: 0 | O141: =VLOOKUP(AB141,Gesamtpreisliste!$A$7:$E$888,2,FALSE) -> 30100030 | P141: TRUE | Q141: =VLOOKUP(AB141,Gesamtpreisliste!$A$7:$E$888,3,FALSE) -> FSR61NP-230V | R141: =VLOOKUP(AB141,Gesamtpreisliste!$A$7:$E$888,5,FALSE) -> 92.3 | S141: TRUE | AA141: 30100030 | AB141: 4010312300190
A142: 264 | B142: FMS61-230V Funk-Multifunktions-Stromstoßschalter 1+1 Schließer | C142: =IF(AND(Eingabemaske!E4="ja",Eingabemaske!E93="ja"),Eingabemaske!E99,0) -> 0 | D142: 0 | F142: 94.6 | G142: 0 | O142: =VLOOKUP(AB142,Gesamtpreisliste!$A$7:$E$888,2,FALSE) -> 30200330 | P142: TRUE | Q142: =VLOOKUP(AB142,Gesamtpreisliste!$A$7:$E$888,3,FALSE) -> FMS61NP-230V | R142: =VLOOKUP(AB142,Gesamtpreisliste!$A$7:$E$888,5,FALSE) -> 94.6 | S142: TRUE | AA142: 30200330 | AB142: 4010312300268
A143: 265 | B143: FUD61NPN Funk-Universal-Dimmschalter mit N | C143: =IF(AND(Eingabemaske!E4="ja",Eingabemaske!E93="ja"),Eingabemaske!E100,0) -> 0 | D143: 0 | F143: 109.2 | G143: 0 | O143: =VLOOKUP(AB143,Gesamtpreisliste!$A$7:$E$888,2,FALSE) -> 30100835 | P143: TRUE | Q143: =VLOOKUP(AB143,Gesamtpreisliste!$A$7:$E$888,3,FALSE) -> FUD61NPN-230V | R143: =VLOOKUP(AB143,Gesamtpreisliste!$A$7:$E$888,5,FALSE) -> 109.2 | S143: TRUE | AA143: 30100835 | AB143: 4010312300299
A144: 266 | B144: FUD61NP-230V Funk-Universal-Dimmschalter ohne N | C144: =IF(AND(Eingabemaske!E4="ja",Eingabemaske!E93="ja"),Eingabemaske!E101,0) -> 0 | D144: 0 | F144: 105.1 | G144: 0 | O144: =VLOOKUP(AB144,Gesamtpreisliste!$A$7:$E$888,2,FALSE) -> 30100830 | P144: TRUE | Q144: =VLOOKUP(AB144,Gesamtpreisliste!$A$7:$E$888,3,FALSE) -> FUD61NP-230V | R144: =VLOOKUP(AB144,Gesamtpreisliste!$A$7:$E$888,5,FALSE) -> 105.1 | S144: TRUE | AA144: 30100830 | AB144: 4010312300183
A145: 267 | B145: FLD61 Funk-PWM-LED-Dimmschalter | C145: =IF(AND(Eingabemaske!E4="ja",Eingabemaske!E93="ja"),Eingabemaske!E102,0) -> 0 | D145: 0 | F145: 100.1 | G145: 0 | O145: =VLOOKUP(AB145,Gesamtpreisliste!$A$7:$E$888,2,FALSE) -> 30100837 | P145: TRUE | Q145: =VLOOKUP(AB145,Gesamtpreisliste!$A$7:$E$888,3,FALSE) -> FLD61 | R145: =VLOOKUP(AB145,Gesamtpreisliste!$A$7:$E$888,5,FALSE) -> 100.1 | S145: TRUE | AA145: 30100837 | AB145: 4010312315255
A146: 268 | B146: FKLD61 Funk-Konststantstrom-LED-Dimmschalter | C146: =IF(AND(Eingabemaske!E4="ja",Eingabemaske!E93="ja"),Eingabemaske!E103,0) -> 0 | D146: 0 | F146: 106.1 | G146: 0 | O146: =VLOOKUP(AB146,Gesamtpreisliste!$A$7:$E$888,2,FALSE) -> 30100836 | P146: TRUE | Q146: =VLOOKUP(AB146,Gesamtpreisliste!$A$7:$E$888,3,FALSE) -> FKLD61 | R146: =VLOOKUP(AB146,Gesamtpreisliste!$A$7:$E$888,5,FALSE) -> 106.1 | S146: TRUE | AA146: 30100836 | AB146: 4010312314357
A147: 269 | B147: FSB61NP-230V Funk-Beschattungsaktor | C147: =IF(AND(Eingabemaske!E4="ja",Eingabemaske!E93="ja"),Eingabemaske!E104,0) -> 0 | D147: 0 | F147: 92.1 | G147: 0 | O147: =VLOOKUP(AB147,Gesamtpreisliste!$A$7:$E$888,2,FALSE) -> 30200430 | P147: TRUE | Q147: =VLOOKUP(AB147,Gesamtpreisliste!$A$7:$E$888,3,FALSE) -> FSB61NP-230V | R147: =VLOOKUP(AB147,Gesamtpreisliste!$A$7:$E$888,5,FALSE) -> 92.1 | S147: TRUE | AA147: 30200430 | AB147: 4010312300213
A148: 270 | B148: FHK61-230V Funk-Heiz-Kühl-Relais | C148: =IF(AND(Eingabemaske!E4="ja",Eingabemaske!E93="ja"),Eingabemaske!E105,0) -> 0 | D148: 0 | F148: 94.2 | G148: 0 | O148: =VLOOKUP(AB148,Gesamtpreisliste!$A$7:$E$888,2,FALSE) -> 30100045 | P148: TRUE | Q148: =VLOOKUP(AB148,Gesamtpreisliste!$A$7:$E$888,3,FALSE) -> FHK61-230V | R148: =VLOOKUP(AB148,Gesamtpreisliste!$A$7:$E$888,5,FALSE) -> 94.2 | S148: TRUE | AA148: 30100045 | AB148: 4010312302309
A149: 271 | B149: FSM61-UC Funk-Sendemodul | C149: =IF(AND(Eingabemaske!E4="ja",Eingabemaske!E93="ja"),Eingabemaske!E106,0) -> 0 | D149: 0 | F149: 66.2 | G149: 0 | O149: =VLOOKUP(AB149,Gesamtpreisliste!$A$7:$E$888,2,FALSE) -> 30000300 | P149: TRUE | Q149: =VLOOKUP(AB149,Gesamtpreisliste!$A$7:$E$888,3,FALSE) -> FSM61-UC | R149: =VLOOKUP(AB149,Gesamtpreisliste!$A$7:$E$888,5,FALSE) -> 66.2 | S149: TRUE | AA149: 30000300 | AB149: 4010312300152
A150: 272 | B150: FRP61-230V Funkrepeater | C150: =IF(AND(Eingabemaske!E4="ja",Eingabemaske!E93="ja"),Eingabemaske!E107,0) -> 0 | D150: =C150 -> 0 | F150: 69.3 | G150: =D150*F150 -> 0 | L150: =K150 ->  | O150: =VLOOKUP(AB150,Gesamtpreisliste!$A$7:$E$888,2,FALSE) -> 30000350 | P150: TRUE | Q150: =VLOOKUP(AB150,Gesamtpreisliste!$A$7:$E$888,3,FALSE) -> FRP61-230V | R150: =VLOOKUP(AB150,Gesamtpreisliste!$A$7:$E$888,5,FALSE) -> 69.3 | S150: TRUE | AA150: 30000350 | AB150: 4010312300251
A151: 273 | B151: FRP65/230V-wg Funkrepeater im Gehäuse | C151: =IF(AND(Eingabemaske!E4="ja",Eingabemaske!E93="ja"),Eingabemaske!E108,0) -> 0 | D151: =C151 -> 0 | F151: 83.7 | G151: 0 | L151: =K151 ->  | O151: =VLOOKUP(AB151,Gesamtpreisliste!$A$7:$E$888,2,FALSE) -> 30065350 | P151: TRUE | Q151: =VLOOKUP(AB151,Gesamtpreisliste!$A$7:$E$888,3,FALSE) -> FRP65/230V-wg | R151: =VLOOKUP(AB151,Gesamtpreisliste!$A$7:$E$888,5,FALSE) -> 83.7 | S151: TRUE | AA151: 30065350 | AB151: 4010312315927
A152: 274 | B152: FSR71NP-230V Funkaktor Stromstoß-Schaltrelais | D152: 0 | F152: 95.5 | G152: 0 | O152: =VLOOKUP(AB152,Gesamtpreisliste!$A$7:$E$888,2,FALSE) -> 30100865 | P152: TRUE | Q152: =VLOOKUP(AB152,Gesamtpreisliste!$A$7:$E$888,3,FALSE) -> FSR71NP-230V | R152: =VLOOKUP(AB152,Gesamtpreisliste!$A$7:$E$888,5,FALSE) -> 95.5 | S152: TRUE | AA152: 30100865 | AB152: 4010312316221
A153: 275 | B153: FUD71 Funk-Universal-Dimmschalter | D153: 0 | F153: 124.4 | G153: 0 | O153: =VLOOKUP(AB153,Gesamtpreisliste!$A$7:$E$888,2,FALSE) -> 30100845 | P153: TRUE | Q153: =VLOOKUP(AB153,Gesamtpreisliste!$A$7:$E$888,3,FALSE) -> FUD71-230V | R153: =VLOOKUP(AB153,Gesamtpreisliste!$A$7:$E$888,5,FALSE) -> 124.4 | S153: TRUE | AA153: 30100845 | AB153: 4010312316207
A154: 276 | B154: FSG71/1-10V Funk-Dimmschalter-Steuergerät 1-10V | D154: 0 | F154: 115.4 | G154: 0 | O154: =VLOOKUP(AB154,Gesamtpreisliste!$A$7:$E$888,2,FALSE) -> 30100841 | P154: TRUE | Q154: =VLOOKUP(AB154,Gesamtpreisliste!$A$7:$E$888,3,FALSE) -> FSG71/1-10V | R154: =VLOOKUP(AB154,Gesamtpreisliste!$A$7:$E$888,5,FALSE) -> 115.4 | S154: TRUE | AA154: 30100841 | AB154: 4010312316283
A155: 277 | B155: FDG71L Funk-DALI-Gateway | C155: =IF(AND(Eingabemaske!E4="ja",Eingabemaske!E109="ja"),Eingabemaske!E110,0) -> 0 | D155: 0 | F155: 140.6 | G155: 0 | O155: =VLOOKUP(AB155,Gesamtpreisliste!$A$7:$E$888,2,FALSE) -> 30100867 | P155: TRUE | Q155: =VLOOKUP(AB155,Gesamtpreisliste!$A$7:$E$888,3,FALSE) -> FDG71L-230V | R155: =VLOOKUP(AB155,Gesamtpreisliste!$A$7:$E$888,5,FALSE) -> 140.6 | S155: TRUE | AA155: 30100867 | AB155: 4010312317556
A156: 278 | B156: FRGBW71L Funk-PWM-Dimmschalter für RGBW | C156: =IF(AND(Eingabemaske!E4="ja",Eingabemaske!E109="ja"),Eingabemaske!E111,0) -> 0 | D156: 0 | F156: 114.5 | G156: 0 | O156: =VLOOKUP(AB156,Gesamtpreisliste!$A$7:$E$888,2,FALSE) -> 30400837 | P156: TRUE | Q156: =VLOOKUP(AB156,Gesamtpreisliste!$A$7:$E$888,3,FALSE) -> FRGBW71L | R156: =VLOOKUP(AB156,Gesamtpreisliste!$A$7:$E$888,5,FALSE) -> 114.5 | S156: TRUE | AA156: 30400837 | AB156: 4010312316450
A157: 279 | B157: FSB71-230V Funkaktor für Beschattung | D157: 0 | F157: 95.5 | G157: 0 | O157: =VLOOKUP(AB157,Gesamtpreisliste!$A$7:$E$888,2,FALSE) -> 30200831 | P157: TRUE | Q157: =VLOOKUP(AB157,Gesamtpreisliste!$A$7:$E$888,3,FALSE) -> FSB71-230V | R157: =VLOOKUP(AB157,Gesamtpreisliste!$A$7:$E$888,5,FALSE) -> 95.5 | S157: TRUE | AA157: 30200831 | AB157: 4010312316306
A158: 280 | B158: FRP70-230V Funkrepeater | C158: =IF(AND(Eingabemaske!E4="ja",Eingabemaske!E109="ja"),Eingabemaske!E112,0) -> 0 | D158: 0 | F158: 99.9 | G158: =D158*F158 -> 0 | O158: =VLOOKUP(AB158,Gesamtpreisliste!$A$7:$E$888,2,FALSE) -> 30000352 | P158: =EXACT(O158,AA158) -> TRUE | Q158: =VLOOKUP(AB158,Gesamtpreisliste!$A$7:$E$888,3,FALSE) -> FRP70-230V | R158: =VLOOKUP(AB158,Gesamtpreisliste!$A$7:$E$888,5,FALSE) -> 99.9 | S158: TRUE | AA158: 30000352 | AB158: 4010312306482
A159: 281 | B159: FSSA Funk-Steckdosen-Schaltaktor | C159: =IF(AND(Eingabemaske!E4="ja",Eingabemaske!E113="ja"),Eingabemaske!E114,0) -> 0 | D159: 0 | F159: 113.8 | G159: =D159*F159 -> 0 | O159: =VLOOKUP(AB159,Gesamtpreisliste!$A$7:$E$888,2,FALSE) -> 30100001 | P159: TRUE | Q159: =VLOOKUP(AB159,Gesamtpreisliste!$A$7:$E$888,3,FALSE) -> FSSA-230V | R159: =VLOOKUP(AB159,Gesamtpreisliste!$A$7:$E$888,5,FALSE) -> 113.8 | S159: TRUE | AA159: 30100001 | AB159: 4010312314562
A160: 282 | B160: FSUD Funk-Universal-Steckdosen-Dimmschalter | C160: =IF(AND(Eingabemaske!E4="ja",Eingabemaske!E113="ja"),Eingabemaske!E115,0) -> 0 | D160: 0 | F160: 140.2 | G160: 0 | O160: =VLOOKUP(AB160,Gesamtpreisliste!$A$7:$E$888,2,FALSE) -> 30100002 | P160: TRUE | Q160: =VLOOKUP(AB160,Gesamtpreisliste!$A$7:$E$888,3,FALSE) -> FSUD-230V | R160: =VLOOKUP(AB160,Gesamtpreisliste!$A$7:$E$888,5,FALSE) -> 140.2 | S160: TRUE | AA160: 30100002 | AB160: 4010312314791
A161: 283 | B161: FSRP-230V Funk-Repeater-Zwischenstecker | C161: =IF(AND(Eingabemaske!E4="ja",Eingabemaske!E113="ja"),Eingabemaske!E117,0) -> 0 | D161: 0 | F161: 84.3 | G161: =D161*F161 -> 0 | O161: =VLOOKUP(AB161,Gesamtpreisliste!$A$7:$E$888,2,FALSE) -> 30000359 | P161: TRUE | Q161: =VLOOKUP(AB161,Gesamtpreisliste!$A$7:$E$888,3,FALSE) -> FSRP-230V | R161: =VLOOKUP(AB161,Gesamtpreisliste!$A$7:$E$888,5,FALSE) -> 84.3 | S161: =EXACT(F161,R161) -> TRUE | AA161: 30000359 | AB161: 4010312314999
A162: 284 | B162: PL-SAM1L Powerlineaktor mit 1 Kanal | C162: =IF(Eingabemaske!E118="ja",Eingabemaske!E119,0) -> 0 | D162: 0 | F162: 113.3 | G162: 0 | O162: =VLOOKUP(AB162,Gesamtpreisliste!$A$7:$E$888,2,FALSE) -> 31100001 | P162: TRUE | Q162: =VLOOKUP(AB162,Gesamtpreisliste!$A$7:$E$888,3,FALSE) -> PL-SAM1L | R162: =VLOOKUP(AB162,Gesamtpreisliste!$A$7:$E$888,5,FALSE) -> 113.3 | S162: TRUE | AA162: 31100001 | AB162: 4010312316665
A163: 285 | B163: PL-SAM2L Powerlineaktor mit 2 Kanälen | C163: =IF(Eingabemaske!E118="ja",Eingabemaske!E120,0) -> 0 | D163: 0 | F163: 115.3 | G163: 0 | O163: =VLOOKUP(AB163,Gesamtpreisliste!$A$7:$E$888,2,FALSE) -> 31200001 | P163: TRUE | Q163: =VLOOKUP(AB163,Gesamtpreisliste!$A$7:$E$888,3,FALSE) -> PL-SAM2L | R163: =VLOOKUP(AB163,Gesamtpreisliste!$A$7:$E$888,5,FALSE) -> 115.3 | S163: TRUE | AA163: 31200001 | AB163: 4010312316672
A164: 286 | B164: PL-SAM2 Powerline-Jalousie-Aktor | C164: =IF(Eingabemaske!E118="ja",Eingabemaske!E121,0) -> 0 | D164: 0 | F164: 115.3 | G164: 0 | O164: =VLOOKUP(AB164,Gesamtpreisliste!$A$7:$E$888,2,FALSE) -> 31100002 | P164: TRUE | Q164: =VLOOKUP(AB164,Gesamtpreisliste!$A$7:$E$888,3,FALSE) -> PL-SAM2 | R164: =VLOOKUP(AB164,Gesamtpreisliste!$A$7:$E$888,5,FALSE) -> 115.3 | S164: TRUE | AA164: 31100002 | AB164: 4010312316689
A165: 287 | B165: PL-SAMDU Dimm-Aktor | C165: =IF(Eingabemaske!E118="ja",Eingabemaske!E122,0) -> 0 | D165: 0 | F165: 130.7 | G165: 0 | O165: =VLOOKUP(AB165,Gesamtpreisliste!$A$7:$E$888,2,FALSE) -> 31100008 | P165: TRUE | Q165: =VLOOKUP(AB165,Gesamtpreisliste!$A$7:$E$888,3,FALSE) -> PL-SAMDU | R165: =VLOOKUP(AB165,Gesamtpreisliste!$A$7:$E$888,5,FALSE) -> 130.7 | S165: TRUE | AA165: 31100008 | AB165: 4010312316870
A166: 288 | B166: PL-AMD10V Dimm-Aktor 1-10V | C166: =IF(Eingabemaske!E118="ja",Eingabemaske!E123,0) -> 0 | D166: 0 | F166: 122.8 | G166: 0 | O166: =VLOOKUP(AB166,Gesamtpreisliste!$A$7:$E$888,2,FALSE) -> 31100006 | P166: TRUE | Q166: =VLOOKUP(AB166,Gesamtpreisliste!$A$7:$E$888,3,FALSE) -> PL-AMD10V | R166: =VLOOKUP(AB166,Gesamtpreisliste!$A$7:$E$888,5,FALSE) -> 122.8 | S166: TRUE | AA166: 31100006 | AB166: 4010312316726
A167: 289 | B167: PL-SM1L Powerline Sensoreingang mit 1 Kanal | C167: =IF(Eingabemaske!E118="ja",Eingabemaske!E124,0) -> 0 | D167: 0 | F167: 109.2 | G167: 0 | O167: =VLOOKUP(AB167,Gesamtpreisliste!$A$7:$E$888,2,FALSE) -> 31100007 | P167: TRUE | Q167: =VLOOKUP(AB167,Gesamtpreisliste!$A$7:$E$888,3,FALSE) -> PL-SM1L | R167: =VLOOKUP(AB167,Gesamtpreisliste!$A$7:$E$888,5,FALSE) -> 109.2 | S167: TRUE | AA167: 31100007 | AB167: 4010312316740
A168: 290 | B168: PL-SM8 Powerline Sensoreingang mit 8 Kanälen | C168: =IF(Eingabemaske!E118="ja",Eingabemaske!E125,0) -> 0 | D168: 0 | F168: 115.3 | G168: 0 | O168: =VLOOKUP(AB168,Gesamtpreisliste!$A$7:$E$888,2,FALSE) -> 31800001 | P168: TRUE | Q168: =VLOOKUP(AB168,Gesamtpreisliste!$A$7:$E$888,3,FALSE) -> PL-SM8 | R168: =VLOOKUP(AB168,Gesamtpreisliste!$A$7:$E$888,5,FALSE) -> 115.3 | S168: =EXACT(F168,R168) -> TRUE | AA168: 31800001 | AB168: 4010312316719
A169: 291 | B169: PL-FGW Powerline-Funktaster-Gateway | D169: 0 | F169: 150.6 | G169: 0 | O169: =VLOOKUP(AB169,Gesamtpreisliste!$A$7:$E$888,2,FALSE) -> 31100010 | P169: TRUE | Q169: =VLOOKUP(AB169,Gesamtpreisliste!$A$7:$E$888,3,FALSE) -> PL-FGW | R169: =VLOOKUP(AB169,Gesamtpreisliste!$A$7:$E$888,5,FALSE) -> 150.6 | S169: TRUE | AA169: 31100010 | AB169: 4010312324110
A170: 292 | B170: OnWall-2-al (Alu natur) | C170: =IF(Eingabemaske!E133="ja",Eingabemaske!E134,0) -> 0 | D170: 0 | F170: 399.6 | G170: =D170*F170 -> 0 | O170: =VLOOKUP(AB170,Gesamtpreisliste!$A$7:$E$888,2,FALSE) ->  | Q170: =VLOOKUP(AB170,Gesamtpreisliste!$A$7:$E$888,3,FALSE) ->  | R170: =VLOOKUP(AB170,Gesamtpreisliste!$A$7:$E$888,5,FALSE) ->  | AA170: 30000101 | AB170: 4010312328651
A171: 293 | B171: OnWall-2-sw (schwarz) | C171: =IF(Eingabemaske!E133="ja",Eingabemaske!E135,0) -> 0 | D171: 0 | F171: 399.6 | G171: 0 | O171: =VLOOKUP(AB171,Gesamtpreisliste!$A$7:$E$888,2,FALSE) ->  | Q171: =VLOOKUP(AB171,Gesamtpreisliste!$A$7:$E$888,3,FALSE) ->  | R171: =VLOOKUP(AB171,Gesamtpreisliste!$A$7:$E$888,5,FALSE) ->  | AA171: 30000102 | AB171: 4010312328668
A172: 294 | B172: InWall-10 Alu schwarz eloxiert mit schwarzer Glasblende | C172: =IF(Eingabemaske!E133="ja",Eingabemaske!E136,0) -> 0 | D172: 0 | F172: 394.2 | G172: 0 | K172: =IF(D172>0,D172,"") ->  | O172: =VLOOKUP(AB172,Gesamtpreisliste!$A$7:$E$888,2,FALSE) -> 30000003 | P172: TRUE | Q172: =VLOOKUP(AB172,Gesamtpreisliste!$A$7:$E$888,3,FALSE) -> InWall-10-sz | R172: =VLOOKUP(AB172,Gesamtpreisliste!$A$7:$E$888,5,FALSE) -> 394.2 | S172: =EXACT(F172,R172) -> TRUE | AA172: 30000003 | AB172: 4010312323809
A173: 296 | B173: Austausch-Set Lightning auf USB-C | C173: =IF(Eingabemaske!E133="ja",Eingabemaske!E139,0) -> 0 | D173: 0 | F173: 115.7 | G173: 0 | O173: =VLOOKUP(AB173,Gesamtpreisliste!$A$7:$E$888,2,FALSE) -> 30000007 | P173: TRUE | Q173: =VLOOKUP(AB173,Gesamtpreisliste!$A$7:$E$888,3,FALSE) -> Austausch-Set Lightning > USB-C | R173: =VLOOKUP(AB173,Gesamtpreisliste!$A$7:$E$888,5,FALSE) -> 115.7 | S173: TRUE | AA173: 30000007 | AB173: 4010312323878
A174: 297 | D174: 0 | F174: =IF(ISNA(VLOOKUP(B174,Gesamtpreisliste!$G$7:$K$841,2,FALSE)) = TRUE, "0,00€", VLOOKUP(B174,Gesamtpreisliste!$G$7:$K$841,2,FALSE)) -> 0,00€ | G174: 0 | L174: 0 | AA174: =IF(ISNA(VLOOKUP(B174,Gesamtpreisliste!$G$7:$I$841,3,FALSE)) = TRUE, "", VLOOKUP(B174,Gesamtpreisliste!$G$7:$I$841,3,FALSE)) ->  | AB174: =IF(ISNA(VLOOKUP(B174,Gesamtpreisliste!$G$7:$K$988,4,FALSE)) = TRUE, "", VLOOKUP(B174,Gesamtpreisliste!$G$7:$K$988,4,FALSE)) -> 
A175: 298 | D175: 0 | F175: =IF(ISNA(VLOOKUP(B175,Gesamtpreisliste!$G$7:$K$841,2,FALSE)) = TRUE, "0,00€", VLOOKUP(B175,Gesamtpreisliste!$G$7:$K$841,2,FALSE)) -> 0,00€ | G175: 0 | L175: 0 | AA175: =IF(ISNA(VLOOKUP(B175,Gesamtpreisliste!$G$7:$I$841,3,FALSE)) = TRUE, "", VLOOKUP(B175,Gesamtpreisliste!$G$7:$I$841,3,FALSE)) ->  | AB175: =IF(ISNA(VLOOKUP(B175,Gesamtpreisliste!$G$7:$K$988,4,FALSE)) = TRUE, "", VLOOKUP(B175,Gesamtpreisliste!$G$7:$K$988,4,FALSE)) -> 
A176: 299 | D176: 0 | F176: =IF(ISNA(VLOOKUP(B176,Gesamtpreisliste!$G$7:$K$841,2,FALSE)) = TRUE, "0,00€", VLOOKUP(B176,Gesamtpreisliste!$G$7:$K$841,2,FALSE)) -> 0,00€ | G176: 0 | L176: 0 | AA176: =IF(ISNA(VLOOKUP(B176,Gesamtpreisliste!$G$7:$I$841,3,FALSE)) = TRUE, "", VLOOKUP(B176,Gesamtpreisliste!$G$7:$I$841,3,FALSE)) ->  | AB176: =IF(ISNA(VLOOKUP(B176,Gesamtpreisliste!$G$7:$K$988,4,FALSE)) = TRUE, "", VLOOKUP(B176,Gesamtpreisliste!$G$7:$K$988,4,FALSE)) -> 
A177: 300 | D177: 0 | F177: =IF(ISNA(VLOOKUP(B177,Gesamtpreisliste!$G$7:$K$841,2,FALSE)) = TRUE, "0,00€", VLOOKUP(B177,Gesamtpreisliste!$G$7:$K$841,2,FALSE)) -> 0,00€ | G177: 0 | L177: 0 | AA177: =IF(ISNA(VLOOKUP(B177,Gesamtpreisliste!$G$7:$I$841,3,FALSE)) = TRUE, "", VLOOKUP(B177,Gesamtpreisliste!$G$7:$I$841,3,FALSE)) ->  | AB177: =IF(ISNA(VLOOKUP(B177,Gesamtpreisliste!$G$7:$K$988,4,FALSE)) = TRUE, "", VLOOKUP(B177,Gesamtpreisliste!$G$7:$K$988,4,FALSE)) -> 
A178: 301 | D178: 0 | F178: =IF(ISNA(VLOOKUP(B178,Gesamtpreisliste!$G$7:$K$841,2,FALSE)) = TRUE, "0,00€", VLOOKUP(B178,Gesamtpreisliste!$G$7:$K$841,2,FALSE)) -> 0,00€ | G178: 0 | L178: 0 | AA178: =IF(ISNA(VLOOKUP(B178,Gesamtpreisliste!$G$7:$I$841,3,FALSE)) = TRUE, "", VLOOKUP(B178,Gesamtpreisliste!$G$7:$I$841,3,FALSE)) ->  | AB178: =IF(ISNA(VLOOKUP(B178,Gesamtpreisliste!$G$7:$K$988,4,FALSE)) = TRUE, "", VLOOKUP(B178,Gesamtpreisliste!$G$7:$K$988,4,FALSE)) -> 
A179: 302 | D179: 0 | F179: =IF(ISNA(VLOOKUP(B179,Gesamtpreisliste!$G$7:$K$841,2,FALSE)) = TRUE, "0,00€", VLOOKUP(B179,Gesamtpreisliste!$G$7:$K$841,2,FALSE)) -> 0,00€ | G179: 0 | L179: 0 | AA179: =IF(ISNA(VLOOKUP(B179,Gesamtpreisliste!$G$7:$I$841,3,FALSE)) = TRUE, "", VLOOKUP(B179,Gesamtpreisliste!$G$7:$I$841,3,FALSE)) ->  | AB179: =IF(ISNA(VLOOKUP(B179,Gesamtpreisliste!$G$7:$K$988,4,FALSE)) = TRUE, "", VLOOKUP(B179,Gesamtpreisliste!$G$7:$K$988,4,FALSE)) -> 
A180: 303 | D180: 0 | F180: =IF(ISNA(VLOOKUP(B180,Gesamtpreisliste!$G$7:$K$841,2,FALSE)) = TRUE, "0,00€", VLOOKUP(B180,Gesamtpreisliste!$G$7:$K$841,2,FALSE)) -> 0,00€ | G180: 0 | L180: 0 | AA180: =IF(ISNA(VLOOKUP(B180,Gesamtpreisliste!$G$7:$I$841,3,FALSE)) = TRUE, "", VLOOKUP(B180,Gesamtpreisliste!$G$7:$I$841,3,FALSE)) ->  | AB180: =IF(ISNA(VLOOKUP(B180,Gesamtpreisliste!$G$7:$K$988,4,FALSE)) = TRUE, "", VLOOKUP(B180,Gesamtpreisliste!$G$7:$K$988,4,FALSE)) -> 
A181: 304 | D181: 0 | F181: =IF(ISNA(VLOOKUP(B181,Gesamtpreisliste!$G$7:$K$841,2,FALSE)) = TRUE, "0,00€", VLOOKUP(B181,Gesamtpreisliste!$G$7:$K$841,2,FALSE)) -> 0,00€ | G181: 0 | L181: 0 | AA181: =IF(ISNA(VLOOKUP(B181,Gesamtpreisliste!$G$7:$I$841,3,FALSE)) = TRUE, "", VLOOKUP(B181,Gesamtpreisliste!$G$7:$I$841,3,FALSE)) ->  | AB181: =IF(ISNA(VLOOKUP(B181,Gesamtpreisliste!$G$7:$K$988,4,FALSE)) = TRUE, "", VLOOKUP(B181,Gesamtpreisliste!$G$7:$K$988,4,FALSE)) -> 
A182: 305 | D182: 0 | F182: =IF(ISNA(VLOOKUP(B182,Gesamtpreisliste!$G$7:$K$841,2,FALSE)) = TRUE, "0,00€", VLOOKUP(B182,Gesamtpreisliste!$G$7:$K$841,2,FALSE)) -> 0,00€ | G182: 0 | L182: 0 | AA182: =IF(ISNA(VLOOKUP(B182,Gesamtpreisliste!$G$7:$I$841,3,FALSE)) = TRUE, "", VLOOKUP(B182,Gesamtpreisliste!$G$7:$I$841,3,FALSE)) ->  | AB182: =IF(ISNA(VLOOKUP(B182,Gesamtpreisliste!$G$7:$K$988,4,FALSE)) = TRUE, "", VLOOKUP(B182,Gesamtpreisliste!$G$7:$K$988,4,FALSE)) -> 
A183: 306 | D183: 0 | F183: =IF(ISNA(VLOOKUP(B183,Gesamtpreisliste!$G$7:$K$841,2,FALSE)) = TRUE, "0,00€", VLOOKUP(B183,Gesamtpreisliste!$G$7:$K$841,2,FALSE)) -> 0,00€ | G183: 0 | L183: 0 | AA183: =IF(ISNA(VLOOKUP(B183,Gesamtpreisliste!$G$7:$I$841,3,FALSE)) = TRUE, "", VLOOKUP(B183,Gesamtpreisliste!$G$7:$I$841,3,FALSE)) ->  | AB183: =IF(ISNA(VLOOKUP(B183,Gesamtpreisliste!$G$7:$K$988,4,FALSE)) = TRUE, "", VLOOKUP(B183,Gesamtpreisliste!$G$7:$K$988,4,FALSE)) -> 
A184: 307 | D184: 0 | F184: =IF(ISNA(VLOOKUP(B184,Gesamtpreisliste!$G$7:$K$841,2,FALSE)) = TRUE, "0,00€", VLOOKUP(B184,Gesamtpreisliste!$G$7:$K$841,2,FALSE)) -> 0,00€ | G184: 0 | L184: 0 | AA184: =IF(ISNA(VLOOKUP(B184,Gesamtpreisliste!$G$7:$I$841,3,FALSE)) = TRUE, "", VLOOKUP(B184,Gesamtpreisliste!$G$7:$I$841,3,FALSE)) ->  | AB184: =IF(ISNA(VLOOKUP(B184,Gesamtpreisliste!$G$7:$K$988,4,FALSE)) = TRUE, "", VLOOKUP(B184,Gesamtpreisliste!$G$7:$K$988,4,FALSE)) -> 
B185: Gesamtleistungsaufnahme; ist die Gesamtleistung > 8W wurde die Stückliste automatisch um zusätzliche Netzteile (FSNT14) ergänzt.
B186: =SUM(J4:J133) -> 0 | D186: TE | E186: =SUM(E5:E184) -> 0 | G186: =SUM(G3:G184) -> 0 | J186: =SUM(J4:J133) -> 0

Sheet Kurzanleitung
A1: Eltako Professional Smart Home Kurzanleitung:
A2: Stellen Sie zunächst sicher, dass die Makros aktiviert sind. Klicken Sie hier für online Hilfe
A3: Bitte tragen Sie in der Spalte E alle gewünschten Funktionseigenschaften des Projektes ein. Zur vereinfachten Eingabe stehen Ihnen bei Bedarf DropDown-Buttons zur Verfügung, aus der Sie die möglichen Angaben direkt auswählen können. Alle anderen Angaben (Zahlen) tragen Sie bitte per Hand ein. Die Kalkulationshilfe hilft Ihnen bei der Ermittlung aller Ansteuervarianten und Auswahl der Schaltaktoren: 1. FTS14-System (1+n Technik) 2. 2-Draht-Bus-System für Tasteransteuerung mit Tastergateways 3. 4-Draht-Bus-System für Sensoranschluss mit Busgateways 4. Funk-Taster oder Fernbedienung Auch die Kombination aller 4 Systeme ist möglich. Dabei werden alle notwendigen Steuereingänge, Eingangsmodule, Busmodule oder Funktaster sowie alle notwendigen Systemgeräte, Spannungsversorgungen und Zubehörkomponenten ermittelt. Nach Beendigung der Eingabe wird auf der zweiten Karteikarte eine Stückliste mit allen Mengen und Bruttowerten ausgegeben. Eine manuelle Ergänzug der Stückliste ist jederzeit möglich. Ebenso ein Reset aller Mengen durch Klick auf "Stückzahlen Reset" in der Eingabemaske. Zum Schluss den obere Button "Stückliste aktualisieren" betätigen. Auf der letzten Karteikarte lässt sich mit Klick auf "Ausschreibung aktualisieren" ein Leistungsverzeichnis erstellen. (Derzeit in Arbeit, vorübergehend nicht verfügbar) WICHTIG! Nach evtl. Änderung in der Eingabemaske muss auf "Stückliste aktualisieren" geklickt werden. Nur so wird eine bereits gefilterte Liste nach Änderung der Eingabemaske neu aktualisiert.

Sheet Gesamtpreisliste
A1: Eltako Preisliste 2024 | D1: gültig für Lieferungen ab 01.01.2024
A2: Stand 05.05.2024
A3: Unverbindlich empfohlene Verkaufspreise und Netto-Einkaufspreise per Stück in Euro zzgl. MwSt.
A4: Preis per Stück in Euro ohne MwSt.
A6: EAN | B6: Artikel-Nr. | C6: Bezeichnung | D6: Kurzbeschreibung | E6: Brutto
A7: 4010312900987 | B7: 20000010 | C7: DS12 | D7: Distanzstück | E7: 2.1 | G7: XR12-400-230V | H7: 62 | I7: 22400930 | J7: 4010312201374
A8: 4010312901243 | B8: 20000030 | C8: KM12 | D8: Hilfskontakt 1 Schließer + 1 Öffner, 4 A | E8: 17.1 | G8: MSR12-UC | H8: 100.2 | I8: 22500501 | J8: 4010312205327
A9: 4010312909843 | B9: 20000050 | C9: EBOX | D9: Eurobehälter mit Scharnierdeckel | E9: 15 | G9: DS12 | H9: 2.1 | I9: 20000010 | J9: 4010312900987
A10: 4010312901748 | B10: 20000060 | C10: WNT12-12VDC-12W/1A | D10: Weitbereichs-Schaltnetzteil 12V DC | E10: 66.7 | G10: XS12-400-230V | H10: 60.2 | I10: 21400930 | J10: 4010312101650
A11: 4010312901755 | B11: 20000061 | C11: WNT12-24VDC-12W/0,5A | D11: Weitbereichs-Schaltnetzteil 24V DC | E11: 66.7 | G11: RC12-230V | H11: 42 | I11: 22000015 | J11: 4010312201596
A12: 4010312300077 | B12: 20000062 | C12: WNT12-12VDC-24W/2A | D12: Weitbereichs-Schaltnetzteil 12V DC | E12: 74.2 | G12: AR12DX-230V | H12: 71.4 | I12: 22001130 | J12: 4010312205426
A13: 4010312300084 | B13: 20000063 | C13: WNT12-24VDC-24W/1A | D13: Weitbereichs-Schaltnetzteil 24V DC | E13: 74.2 | G13: NR12-001-3x230V | H13: 61.2 | I13: 22001330 | J13: 4010312202524
A14: 4010312300114 | B14: 20000065 | C14: WNT12-24VDC-48W/2A | D14: Weitbereichs-Schaltnetzteil 24V DC | E14: 109.9 | G14: BZR12DDX-UC | H14: 69.1 | I14: 22001430 | J14: 4010312603161
A15: 4010312401880 | B15: 20000072 | C15: WNT15-12VDC/24W | D15: Weitbereichs-Schaltnetzteil 12V DC | E15: 52.5 | G15: KM12 | H15: 17.1 | I15: 20000030 | J15: 4010312901243
A16: 4010312401910 | B16: 20000073 | C16: WNT15-24VDC/24W | D16: Weitbereichs-Schaltnetzteil 24V DC | E16: 52.5 | G16: WNT12-12VDC-12W/1A | H16: 66.7 | I16: 20000060 | J16: 4010312901748
A17: 4010312401903 | B17: 20000075 | C17: WNT15-24VDC/48W | D17: Weitbereichs-Schaltnetzteil 24V DC | E17: 61.8 | G17: WNT12-24VDC-12W/0,5A | H17: 66.7 | I17: 20000061 | J17: 4010312901755
A18: 4010312901267 | B18: 20000080 | C18: LS Lichtsensor | D18: Lichtsensor | E18: 34.2 | G18: MFZ12DBT-UC | H18: 101.1 | I18: 23001003 | J18: 4010312603284
A19: 4010312901281 | B19: 20000082 | C19: WS Windsensor | D19: Windsensor | E19: 79.7 | G19: MFZ12DDX-UC | H19: 70.1 | I19: 23001004 | J19: 4010312603079
A20: 4010312901731 | B20: 20000084 | C20: MS Multisensor | D20: Multisensor | E20: 309.2 | G20: ER12-001-UC | H20: 55.7 | I20: 22001601 | J20: 4010312205365
A21: 4010312206898 | B21: 20000085 | C21: WMS | D21: Wetterdaten-Multisensor | E21: 316.7 | G21: WNT12-12VDC-24W/2A | H21: 74.2 | I21: 20000062 | J21: 4010312300077
A22: 4010312903001 | B22: 20000086 | C22: FK Fensterkontakt | D22: Fensterkontakt, Reedrelais mit 1 Öffner | E22: 32.8 | G22: MFZ12DX-UC | H22: 69.8 | I22: 23001005 | J22: 4010312603086
A23: 4010312206546 | B23: 20000087 | C23: RS Regensensor | D23: Regensensor | E23: 142.7 | G23: MFZ12PMD-UC | H23: 88.1 | I23: 23001006 | J23: 4010312601099
A24: 4010312301111 | B24: 20000160 | C24: SNT12-230V/12VDC-1A | D24: Schaltnetzteil 12V DC | E24: 60.7 | G24: NR12-002-3X230V | H24: 75.7 | I24: 22002330 | J24: 4010312202548
A25: 4010312301128 | B25: 20000161 | C25: SNT12-230V/24VDC-0,5A | D25: Schaltnetzteil 24V DC | E25: 60.7 | G25: ER12-002-UC | H25: 62.8 | I25: 22002601 | J25: 4010312205372
A26: 4010312301135 | B26: 20000162 | C26: SNT12-230V/12VDC-2A | D26: Schaltnetzteil 12V DC | E26: 75.2 | G26: R12-020-230V | H26: 40.6 | I26: 22020030 | J26: 4010312201572
A27: 4010312301142 | B27: 20000163 | C27: SNT12-230V/24VDC-1A | D27: Schaltnetzteil 24V DC | E27: 75.2 | G27: ER12SSR-UC | H27: 51.4 | I27: 22100001 | J27: 4010312206720
A28: 4010312401798 | B28: 20000164 | C28: SNT12U-230V/3,3-12VDC-1A | D28: Universal-Schaltnetzteil | E28: 45.8 | G28: ER12DX-UC | H28: 56.3 | I28: 22100002 | J28: 4010312205402
A29: 4010312401804 | B29: 20000165 | C29: WNT12U/3,3-12VDC | D29: Universal-Weitbereichs-Schaltnetzteil | E29: 60 | G29: R12-100-8V | H29: 33.5 | I29: 22100010 | J29: 4010312200414
A30: 4010312401859 | B30: 20000175 | C30: WNT15U/3,3-12VDC | D30: Universal-Weitbereichs-Schaltnetzteil | E30: 60 | G30: WNT12-24VDC-24W/1A | H30: 74.2 | I30: 20000063 | J30: 4010312300084
A31: 4010312107959 | B31: 21100002 | C31: ES12DX-UC | D31: Stromstoßschalter mit patentierter ­Duplex-Technologie und Universal-Steuerspannung, 1 Schließer 16A | E31: 56.89 | G31: RVZ12DX-UC | H31: 67.5 | I31: 23001202 | J31: 4010312603093
A32: 4010312110003 | B32: 21100003 | C32: ES12DX/110-240V | D32: Stromstoßschalter mit patentierter Duplex-Technologie, 1 Schließer 16A | E32: 38.9 | G32: WNT12-24VDC-48W/2A | H32: 109.9 | I32: 20000065 | J32: 4010312300114
A33: 4010312100448 | B33: 21100010 | C33: S12-100-8V | D33: Stromstoßschalter 8V. 1 Schließer 16A/250V AC | E33: 33.5 | G33: AVZ12DX-UC | H33: 68 | I33: 23001302 | J33: 4010312603109
A34: 4010312100455 | B34: 21100011 | C34: S12-100-12V | D34: Stromstoßschalter 12V. 1 Schließer 16A/250V AC | E34: 31 | G34: TGI12DX-UC | H34: 67.6 | I34: 23001402 | J34: 4010312603116
A35: 4010312100462 | B35: 21100020 | C35: S12-100-24V | D35: Stromstoßschalter 24V. 1 Schließer 16A/250V AC | E35: 33.5 | G35: EAW12DX-UC | H35: 67.6 | I35: 23001702 | J35: 4010312603123
A36: 4010312100479 | B36: 21100030 | C36: S12-100-230V | D36: Stromstoßschalter 230V. 1 Schließer 16A/250V AC | E36: 31 | G36: PTN12-230V | H36: 64.5 | I36: 23001802 | J36: 4010312603215
A37: 4010312101254 | B37: 21100054 | C37: S12-100-12V DC | D37: Stromstoßschalter 12V DC. 1 Schließer 16A/250V AC | E37: 33.5 | G37: S2U12DBT-UC | H37: 113.1 | I37: 23002903 | J37: 4010312603307
A38: 4010312101247 | B38: 21100055 | C38: S12-100-24V DC | D38: Stromstoßschalter 24V DC. 1 Schließer 16A/250V AC | E38: 33.5 | G38: MFZ12NP-230V+UC | H38: 62.5 | I38: 23100001 | J38: 4010312602935
A39: 4010312107928 | B39: 21100102 | C39: ESR12NP-230V+UC | D39: Stromstoß-Schaltrelais, 1 Schließer 16A | E39: 61.1 | G39: MFZ12-230V | H39: 61.8 | I39: 23100530 | J39: 4010312603147
A40: 4010312109403 | B40: 21100800 | C40: SDS12/1-10V | D40: 1-10V-Steuer-Dimmschalter für EVG, 1 Schließer 600VA | E40: 71.3 | G40: NLZ12NP-230V+UC | H40: 59.6 | I40: 23100704 | J40: 4010312602911
A41: 4010312206744 | B41: 21100801 | C41: ESW12DX-UC | D41: Stromstoßschalter mit Wolfram-Vorlaufkontakt, 1 Schließer 16A | E41: 57.2 | G41: TLZ12D-plus | H41: 62.3 | I41: 23100800 | J41: 4010312401712
A42: 4010312108116 | B42: 21100802 | C42: SUD12/1-10V | D42: 1-10V-Steuergerät für Universal-Dimmschalter, 1 Schließer 600VA | E42: 68 | G42: TLZ12G-230V+UC | H42: 63.8 | I42: 23100831 | J42: 4010312401460
A43: 4010312107867 | B43: 21100805 | C43: LUD12-230V | D43: Leistungszusatz für Universal-Dimmschalter, Power MOSFET bis 400W | E43: 73.8 | G43: TLZ12-8plus | H43: 57.6 | I43: 23100832 | J43: 4010312401613
A44: 4010312107843 | B44: 21100806 | C44: EUD12NPN-UC | D44: Universal-Dimmschalter mit Universal-Steuerspannung, Power MOSFET bis 400W | E44: 70.3 | G44: TLZ12-9 | H44: 57.7 | I44: 23100836 | J44: 4010312401620
A45: 4010312109991 | B45: 21100807 | C45: EUD12NPN-BT/300W-230V | D45: Universal-Dimmschalter mit Bluetooth, Power MOSFET bis 300W | E45: 93.2 | G45: WNT15-12VDC/24W | H45: 52.5 | I45: 20000072 | J45: 4010312401880
A46: 4010312110027 | B46: 21100808 | C46: EUD12NPN/110-240V | D46: Universal-Dimmschalter, Power MOSFET bis 400W | E46: 47 | G46: WNT15-24VDC/24W | H46: 52.5 | I46: 20000073 | J46: 4010312401910
A47: 4010312109656 | B47: 21100810 | C47: EUD12DK/800W-UC | D47: Universal-Dimmschalter mit Drehknopf, Power MOSFET bis 800W | E47: 79.8 | G47: TLZ12-8 | H47: 44.9 | I47: 23100934 | J47: 4010312401637
A48: 4010312108086 | B48: 21100830 | C48: EUD12F | D48: Universal-Dimmschalter, Power MOSFET bis 300W und Abschaltrelais | E48: 86.4 | G48: A2Z12-UC | H48: 79.8 | I48: 23200302 | J48: 4010312603178
A49: 4010312109489 | B49: 21100905 | C49: EUD12D-UC | D49: Multifunktions-Universal-Dimmschalter, Power MOSFET bis 400W | E49: 84.3 | G49: S2U12DDX-UC | H49: 88.7 | I49: 23200901 | J49: 4010312603208
A50: 4010312109526 | B50: 21100906 | C50: MOD12D-UC | D50: Digital einstellbarer Motordimmer, Power MOSFET bis 300W | E50: 84.4 | G50: SU12DBT/1+1-UC | H50: 103.7 | I50: 23200902 | J50: 4010312603277
A51: 4010312101513 | B51: 21100930 | C51: XS12-100-230V | D51: Stromstoßschalter 230V. 1 Schließer 25A/250V AC | E51: 36.1 | G51: P3K12-230V | H51: 43.9 | I51: 24000899 | J51: 4010312701065
A52: 4010312108055 | B52: 21110002 | C52: ES12-110-UC | D52: Stromstoßschalter, 1 Schließer + 1 Öffner 16A | E52: 58.2 | G52: ST12-16A | H52: 20.9 | I52: 24100900 | J52: 4010312700358
A53: 4010312100486 | B53: 21110010 | C53: S12-110-8V | D53: Stromstoßschalter 8V. 1 Schließer + 1 Öffner 16A/250V AC | E53: 41.5 | G53: WSZ110DSS-16A | H53: 106.3 | I53: 28016110 | J53: 4010312501795
A54: 4010312100493 | B54: 21110011 | C54: S12-110-12V | D54: Stromstoßschalter 12V. 1 Schließer + 1 Öffner 16A/250V AC | E54: 39.4 | G54: WSZ110CEE-16A | H54: 107.4 | I54: 28016111 | J54: 4010312501801
A55: 4010312100509 | B55: 21110020 | C55: S12-110-24V | D55: Stromstoßschalter 24V. 1 Schließer + 1 Öffner 16A/250V AC | E55: 41.5 | G55: WSZ110DSS-16A+PRCD MID | H55: 206.2 | I55: 28016112 | J55: 4010312501832
A56: 4010312100516 | B56: 21110030 | C56: S12-110-230V | D56: Stromstoßschalter 230V. 1 Schließer + 1 Öffner 16A/250V AC | E56: 39.4 | G56: WSZ110CEE-16A+PRCD MID | H56: 202.4 | I56: 28016113 | J56: 4010312501856
A57: 4010312101261 | B57: 21110054 | C57: S12-110-12V DC | D57: Stromstoßschalter 12V DC. 1 Schließer + 1 Öffner 16A/250V AC | E57: 41.5 | G57: WSZ110FBSS-16A MID | H57: 121.4 | I57: 28016114 | J57: 4010312501924
A58: 4010312101278 | B58: 21110055 | C58: S12-110-24V DC | D58: Stromstoßschalter 24V DC. 1 Schließer + 1 Öffner 16A/250V AC | E58: 41.5 | G58: DSZ180CEE-16A MID | H58: 213.7 | I58: 28016128 | J58: 4010312501863
A59: 4010312101346 | B59: 21110211 | C59: SS12-110-12V | D59: Stromstoß-Serienschalter 12V. 1+1 Schließer 16A/250V AC | E59: 46 | G59: WSZ15D-32A MID | H59: 67 | I59: 28032015 | J59: 4010312501627
A60: 4010312101124 | B60: 21110230 | C60: SS12-110-230V | D60: Stromstoß-Serienschalter 230V. 1+1 Schl. 16A/250V AC | E60: 46 | G60: DSZ180CEE-32A MID | H60: 225.5 | I60: 28032128 | J60: 4010312501825
A61: 4010312107683 | B61: 21110601 | C61: ES12Z-110-UC | D61: Stromstoßschalter, 1 Schließer + 1 Öffner 16A | E61: 68.2 | G61: WZR12-32A | H61: 74.5 | I61: 28032410 | J61: 4010312501252
A62: 4010312101551 | B62: 21110930 | C62: XS12-110-230V | D62: Stromstoßschalter 230V. 1 Schließer + 1 Öffner 25A/250V AC | E62: 43.9 | G62: EVA12-32A | H62: 75.1 | I62: 28032411 | J62: 4010312500828
A63: 4010312108048 | B63: 21200002 | C63: ES12-200-UC | D63: Stromstoßschalter, 2 Schließer 16A | E63: 59.1 | G63: WSZ15DE-32A | H63: 59 | I63: 28032615 | J63: 4010312501702
A64: 4010312100523 | B64: 21200010 | C64: S12-200-8V | D64: Stromstoßschalter 8V. 2 Schließer 16A/250V AC | E64: 41.5 | G64: WSZ14DRS-32A | H64: 75 | I64: 28032715 | J64: 4010312501900
A65: 4010312100530 | B65: 21200011 | C65: S12-200-12V | D65: Stromstoßschalter 12V. 2 Schließer 16A/250V AC | E65: 39.4 | G65: WSZ15D-65A MID | H65: 71.5 | I65: 28065615 | J65: 4010312501696
A66: 4010312100547 | B66: 21200020 | C66: S12-200-24V | D66: Stromstoßschalter 24V. 2 Schließer 16A/250V AC | E66: 41.5 | G66: DSZ15WD-3x5A MID | H66: 204.1 | I66: 28305015 | J66: 4010312501641
A67: 4010312100554 | B67: 21200030 | C67: S12-200-230V | D67: Stromstoßschalter 230V. 2 Schließer 16A/250V AC | E67: 39.4 | G67: DSZ15WDM-3x5A MID | H67: 243.7 | I67: 28305515 | J67: 4010312501665
A68: 4010312101285 | B68: 21200054 | C68: S12-200-12V DC | D68: Stromstoßschalter 12V DC. 2 Schließer 16A/250V AC | E68: 41.5 | G68: DSZ14WDRS-3x5A MID | H68: 209.1 | I68: 28305712 | J68: 4010312501450
A69: 4010312101292 | B69: 21200055 | C69: S12-200-24V DC | D69: Stromstoßschalter 24V DC. 2 Schließer 16A/250V AC | E69: 41.5 | G69: DSZ14DRS-3x80A MID | H69: 200.5 | I69: 28365715 | J69: 4010312501733
A70: 4010312108093 | B70: 21200302 | C70: ESR12DDX-UC | D70: Multifunktions-Stromstoß-Schaltrelais, 1+1 Schließer 16A | E70: 76.1 | G70: DSZ15D-3x80A MID | H70: 157.6 | I70: 28380015 | J70: 4010312501634
A71: 4010312107737 | B71: 21200401 | C71: EGS12Z-UC | D71: Stromstoß-Gruppenschalter, 1 + 1 Schließer 10A | E71: 78.4 | G71: DSZ15DZE-3x80A | H71: 180 | I71: 28380215 | J71: 4010312501894
A72: 4010312107690 | B72: 21200601 | C72: ES12Z-200-UC | D72: Stromstoßschalter, 2 Schließer 16A | E72: 68.2 | G72: DSZ15DM-3x80A MID | H72: 243.7 | I72: 28380512 | J72: 4010312501726
A73: 4010312101605 | B73: 21200930 | C73: XS12-200-230V | D73: Stromstoßschalter 230V. 2 Schließer 25A/250V AC | E73: 43.9 | G73: DSZ15DMOD-3x80A MID | H73: 251 | I73: 28380515 | J73: 4010312501917
A74: 4010312100592 | B74: 21220030 | C74: S12-220-230V | D74: 4-poliger elektromechanischer 16A-Stromstoßschalter 230V. 2 Schließer + 2 Öffner 16A/250V AC | E74: 57.2 | G74: DSZ15DZMOD-3x80A MID | H74: 243.7 | I74: 28380516 | J74: 4010312328170
A75: 4010312101759 | B75: 21220930 | C75: XS12-220-230V | D75: Stromstoßschalter 230V. 2 Schließer + 2 Öffner 25A/250V AC | E75: 60.2 | G75: DSZ15DE-3x80A | H75: 116 | I75: 28380615 | J75: 4010312501719
A76: 4010312100639 | B76: 21310030 | C76: S12-310-230V | D76: 4-poliger elektromechanischer 16A-Stromstoßschalter 230V. 3 Schließer + 1 Öffner 16A/250V AC | E76: 57.2 | G76: DSZ14DRSZ-3x80A MID | H76: 232.2 | I76: 28465715 | J76: 4010312501887
A77: 4010312101704 | B77: 21310930 | C77: XS12-310-230V | D77: Stromstoßschalter 230V. 3 Schließer + 1 Öffner 25A/250V AC | E77: 60.2 | G77: DSZ15DZ-3x80A MID | H77: 210.9 | I77: 28480315 | J77: 4010312501870
A78: 4010312104484 | B78: 21400030 | C78: S12-400-230V | D78: 4-poliger elektromechanischer 16A-Stromstoßschalter 230V. 4 Schließer 16A/250V AC | E78: 57.2 | G78: S09-12V | H78: 33.4 | I78: 29100011 | J78: 4010312104187
A79: 4010312108130 | B79: 21400301 | C79: ESR12Z-4DX-UC | D79: Stromstoß-Schaltrelais, 4 x 1 Schließer 16A | E79: 106.7 | G79: S09-230V | H79: 36.4 | I79: 29100030 | J79: 4010312104200
A80: 4010312110010 | B80: 21400302 | C80: ESR12Z-4DX/110-240V | D80: Stromstoß-Schaltrelais, 4 x 1 Schließer 16A | E80: 75 | G80: WNT15-24VDC/48W | H80: 61.8 | I80: 20000075 | J80: 4010312401903
A81: 4010312108031 | B81: 21400401 | C81: EGS12Z2-UC | D81: Stromstoß-Gruppenschalter, 2 + 2 Schließer 5A | E81: 99.7 | G81: OnWall-al | H81: 368.5 | I81: 30000001 | J81: 4010312323786
A82: 4010312101650 | B82: 21400930 | C82: XS12-400-230V | D82: Stromstoßschalter 230V. 4 Schließer 25A/250V AC | E82: 60.2 | G82: OnWall-sz | H82: 368.5 | I82: 30000002 | J82: 4010312323793
A83: 4010312201596 | B83: 22000015 | C83: RC12-230V | D83: 3-fach-RC-Glied | E83: 42 | G83: InWall-10-sz | H83: 394.2 | I83: 30000003 | J83: 4010312323809
A84: 4010312205426 | B84: 22001130 | C84: AR12DX-230V | D84: Stromrelais, 1 Wechsler 16A | E84: 71.4 | G84: OnWall/2-al | H84: 393.6 | I84: 30000005 | J84: 4010312324585
A85: 4010312202524 | B85: 22001330 | C85: NR12-001-3x230V | D85: Netzüberwachungsrelais mit Drehfeldüberwachung, 1 Wechsler 10A | E85: 61.2 | G85: Austausch-Set Lightning > USB-C | H85: 115.7 | I85: 30000007 | J85: 4010312323878
A86: 4010312603161 | B86: 22001430 | C86: BZR12DDX-UC | D86: Betriebsstunden-Impulszähler, 1 Wechsler 10A | E86: 69.1 | G86: OnWall/2-sz | H86: 393.6 | I86: 30000010 | J86: 4010312324592
A87: 4010312205365 | B87: 22001601 | C87: ER12-001-UC | D87: Schaltrelais, 1 Wechsler 16A | E87: 55.7 | G87: UIB70 | H87: 12.8 | I87: 30000011 | J87: 4010312909058
A88: 4010312202548 | B88: 22002330 | C88: NR12-002-3X230V | D88: Netzüberwachungsrelais mit Drehfeldüberwachung, 2 Wechsler 10A | E88: 75.7 | G88: UIB70-rw | H88: 11.4 | I88: 30000012 | J88: 4010312909454
A89: 4010312205372 | B89: 22002601 | C89: ER12-002-UC | D89: Schaltrelais, 2 Wechsler 16A | E89: 62.8 | G89: FVST | H89: 5.3 | I89: 30000015 | J89: 4010312907290
A90: 4010312328491 | B90: 22016001 | C90: ZGW16WL-IP | D90: Modbus-Stromzähler-MQTT-Gateway über WLAN oder LAN. MQTT und REST-API | E90: 128.5 | G90: LS Lichtsensor | H90: 34.2 | I90: 20000080 | J90: 4010312901267
A91: 4010312201572 | B91: 22020030 | C91: R12-020-230V | D91: Schaltrelais 2 Öffner (Ruhestromrelais) 16A/250V AC | E91: 40.6 | G91: FTVW | H91: 2.1 | I91: 30000016 | J91: 4010312907030
A92: 4010312206720 | B92: 22100001 | C92: ER12SSR-UC | D92: Schaltrelais geräuschlos mit Solid-State-Relais | E92: 51.4 | G92: SMW14 | H92: 1.5 | I92: 30000017 | J92: 4010312907023
A93: 4010312205402 | B93: 22100002 | C93: ER12DX-UC | D93: Schaltrelais mit patentierter Duplex-Technologie und Universal-Steuerspannung, 1 Schließer 16A | E93: 56.3 | G93: U2RP | H93: 6 | I93: 30000018 | J93: 4010312908860
A94: 4010312206911 | B94: 22100003 | C94: ER12DX/110-240V | D94: Schaltrelais mit patentierter Duplex-Technologie, 1 Schließer 16A | E94: 38.9 | G94: WS Windsensor | H94: 79.7 | I94: 20000082 | J94: 4010312901281
A95: 4010312200414 | B95: 22100010 | C95: R12-100-8V | D95: Schaltrelais 8V. 1 Schließer 16A/250V AC | E95: 33.5 | G95: USB-Verlängerungskabel | H95: 15.9 | I95: 30000020 | J95: 4010312907702
A96: 4010312200421 | B96: 22100011 | C96: R12-100-12V | D96: Schaltrelais 12V. 1 Schließer 16A/250V AC | E96: 31 | G96: BPS-Ö Blister-Pack | H96: 152 | I96: 30000021 | J96: 4010312314937
A97: 4010312200438 | B97: 22100020 | C97: R12-100-24V | D97: Schaltrelais 24V. 1 Schließer 16A/250V AC | E97: 33.5 | G97: BPD-Ö Blister-Pack | H97: 171.7 | I97: 30000022 | J97: 4010312314944
A98: 4010312200445 | B98: 22100030 | C98: R12-100-230V | D98: Schaltrelais 230V. 1 Schließer 16A/250V AC | E98: 31 | G98: BPS-ES Blister-Pack | H98: 152 | I98: 30000023 | J98: 4010312314968
A99: 4010312200995 | B99: 22100054 | C99: R12-100-12V DC | D99: Schaltrelais 12V DC. 1 Schließer 16A/250V AC | E99: 33.5 | G99: RLC-Glied | H99: 6.6 | I99: 30000025 | J99: 4010312907092
A100: 4010312201008 | B100: 22100055 | C100: R12-100-24V DC | D100: Schaltrelais 24V DC. 1 Schließer 16A/250V AC | E100: 33.5 | G100: DAT71 | H100: 78.8 | I100: 30000026 | J100: 4010312316351
A101: 4010312203255 | B101: 22100231 | C101: FR12-230V | D101: Selbstlernender Feldfreischalter, 1 Schließer 16A | E101: 82.8 | G101: NF2A | H101: 38.1 | I101: 30000028 | J101: 4010312324370
A102: 4010312205457 | B102: 22100430 | C102: SBR12-230V/240µF | D102: Strombegrenzungsrelais kapazitiv, 1 Schließer 16A | E102: 49.5 | G102: WP50 | H102: 28.3 | I102: 30000030 | J102: 4010312907306
A103: 4010312206836 | B103: 22100530 | C103: MFSR12DX-230V | D103: Multifunktions-Strom-Relais für Zweirichtungs-Drehstromzähler | E103: 79.8 | G103: MS Multisensor | H103: 309.2 | I103: 20000084 | J103: 4010312901731
A104: 4010312203415 | B104: 22100705 | C104: KR09-12V UC | D104: Koppelrelais, 1 Schließer 6A | E104: 44.6 | G104: SV7x7x14 | H104: 14.1 | I104: 30000031 | J104: 4010312908990
A105: 4010312203385 | B105: 22100706 | C105: KR09-24V UC | D105: Koppelrelais, 1 Schließer 6A | E105: 41.1 | G105: mTronic | H105: 126 | I105: 30000033 | J105: 4010312324127
A106: 4010312203378 | B106: 22100730 | C106: KR09-230V | D106: Koppelrelais, 1 Schließer 6A | E106: 41.1 | G106: BPB55 Blister-Pack | H106: 153.3 | I106: 30000035 | J106: 4010312317822
A107: 4010312206683 | B107: 22100800 | C107: KRW12DX-UC | D107: Koppelrelais, 1 Schließer 16A | E107: 55 | G107: BPD55 Blister-Pack | H107: 169.1 | I107: 30000036 | J107: 4010312317839
A108: 4010312201206 | B108: 22100930 | C108: XR12-100-230V | D108: Installationsschütz 230V. 1 Schließer 25A/250V AC | E108: 37.2 | G108: BPS55 Blister-Pack | H108: 139.7 | I108: 30000037 | J108: 4010312317846
A109: 4010312205440 | B109: 22110002 | C109: ER12-110-UC | D109: Schaltrelais, 1 Schließer + 1 Öffner 16A | E109: 57.1 | G109: FGM | H109: 82 | I109: 30000040 | J109: 4010312303290
A110: 4010312200452 | B110: 22110010 | C110: R12-110-8V | D110: Schaltrelais 8V. 1 Schließer + 1 Öffner 16A/250V AC | E110: 41.5 | G110: FAS260SA | H110: 130.5 | I110: 30000041 | J110: 4010312320075
A111: 4010312200469 | B111: 22110011 | C111: R12-110-12V | D111: Schaltrelais 12V. 1 Schließer + 1 Öffner 16A/250V AC | E111: 39.4 | G111: OnWall/C-al | H111: 399.6 | I111: 30000043 | J111: 4010312328033
A112: 4010312200476 | B112: 22110020 | C112: R12-110-24V | D112: Schaltrelais 24V. 1 Schließer + 1 Öffner 16A/250V AC | E112: 41.5 | G112: OnWall/C-sz | H112: 399.6 | I112: 30000044 | J112: 4010312328040
A113: 4010312200483 | B113: 22110030 | C113: R12-110-230V | D113: Schaltrelais 230V. 1 Schließer + 1 Öffner 16A/250V AC | E113: 39.4 | G113: FRM60M10 | H113: 266.3 | I113: 30000048 | J113: 4010312321249
A114: 4010312201015 | B114: 22110054 | C114: R12-110-12V DC | D114: Schaltrelais 12V DC. 1 Schließer + 1 Öffner 16A/250V AC | E114: 41.5 | G114: FRM60M20 | H114: 304.3 | I114: 30000049 | J114: 4010312321256
A115: 4010312201022 | B115: 22110055 | C115: R12-110-24V DC | D115: Schaltrelais 24V DC. 1 Schließer + 1 Öffner 16A/250V AC | E115: 41.5 | G115: FPP12 | H115: 34 | I115: 30000051 | J115: 4010312311769
A116: 4010312201251 | B116: 22110930 | C116: XR12-110-230V | D116: Installationsschütz 230V. 1 Schließer + 1 Öffner 25A/250V AC | E116: 45.5 | G116: FUA12-230V | H116: 121.8 | I116: 30000052 | J116: 4010312316955
A117: 4010312205433 | B117: 22200002 | C117: ER12-200-UC | D117: Schaltrelais, 2 Schließer 16A | E117: 57.1 | G117: FRWB-rw | H117: 158.4 | I117: 30000054 | J117: 4010312321027
A118: 4010312200490 | B118: 22200010 | C118: R12-200-8V | D118: Schaltrelais 8V. 2 Schließer 16A/250V AC | E118: 41.5 | G118: SWS55/W-an | H118: 12.2 | I118: 30000055 | J118: 4010312909034
A119: 4010312200506 | B119: 22200011 | C119: R12-200-12V | D119: Schaltrelais 12V. 2 Schließer 16A/250V AC | E119: 39.4 | G119: FHMB-rw | H119: 166.8 | I119: 30000056 | J119: 4010312321034
A120: 4010312200513 | B120: 22200020 | C120: R12-200-24V | D120: Schaltrelais 24V. 2 Schließer 16A/250V AC | E120: 41.5 | G120: SWS55/DW-an | H120: 12.2 | I120: 30000057 | J120: 4010312909065
A121: 4010312200520 | B121: 22200030 | C121: R12-200-230V | D121: Schaltrelais 230V. 2 Schließer 16A/250V AC | E121: 39.4 | G121: FTLZ12-8plus | H121: 121.8 | I121: 30000058 | J121: 4010312328026
A122: 4010312201039 | B122: 22200054 | C122: R12-200-12V DC | D122: Schaltrelais 12V DC. 2 Schließer 16A/250V AC | E122: 41.5 | G122: F4PT-wg | H122: 58 | I122: 30000072 | J122: 4010312317396
A123: 4010312201046 | B123: 22200055 | C123: R12-200-24V DC | D123: Schaltrelais 24V DC. 2 Schließer 16A/250V AC | E123: 41.5 | G123: MiniSafe2 | H123: 315.1 | I123: 30000075 | J123: 4010312323939
A124: 4010312201305 | B124: 22200930 | C124: XR12-200-230V | D124: Installationsschütz 230V. 2 Schließer 25A/250V AC | E124: 45.5 | G124: MiniSafe2-REG | H124: 425.3 | I124: 30000076 | J124: 4010312323946
A125: 4010312200568 | B125: 22220030 | C125: R12-220-230V | D125: Schaltrelais 230V. 2 Schließer + 2 Öffner 16A/250V AC | E125: 58.9 | G125: WP2 | H125: 410.3 | I125: 30000077 | J125: 4010312324608
A126: 4010312201473 | B126: 22220930 | C126: XR12-220-230V | D126: Installationsschütz 230V. 2 Schließer + 2 Öffner 25A/250V AC | E126: 62 | G126: FMH2S-ws | H126: 63.2 | I126: 30000080 | J126: 4010312303368
A127: 4010312200605 | B127: 22310030 | C127: R12-310-230V | D127: Schaltrelais 230V. 3 Schließer + 1 Öffner 16A/250V AC | E127: 58.9 | G127: FMH2S-rw | H127: 63.2 | I127: 30000082 | J127: 4010312303375
A128: 4010312201428 | B128: 22310930 | C128: XR12-310-230V | D128: Installationsschütz 230V. 3 Schließer + 1 Öffner 25A/250V AC | E128: 62 | G128: FMH2S-sz | H128: 63.2 | I128: 30000084 | J128: 4010312303382
A129: 4010312200643 | B129: 22400030 | C129: R12-400-230V | D129: Schaltrelais 230V. 4 Schließer 16A/250V AC | E129: 58.9 | G129: FMH2S-wg | H129: 63.2 | I129: 30000085 | J129: 4010312303399
A130: 4010312206553 | B130: 22400501 | C130: LRW12D-UC | D130: Digital einstellbares Licht-Dämmerungs-Regen-Wind-Sensorrelais, 4 OptoMOS | E130: 81.4 | G130: FMH2S-an | H130: 63.2 | I130: 30000087 | J130: 4010312303405
A131: 4010312205211 | B131: 22400601 | C131: MTR12-UC | D131: Motor-Trennrelais, 2 + 2 Schließer 5A | E131: 74.2 | G131: FMH4S-ws | H131: 66.5 | I131: 30000090 | J131: 4010312301371
A132: 4010312205310 | B132: 22400602 | C132: DCM12-UC | D132: DC-Motorrelais, 2 Schließer 24V DC/90W | E132: 71.4 | G132: FMH4S-rw | H132: 66.5 | I132: 30000092 | J132: 4010312301562
A133: 4010312201374 | B133: 22400930 | C133: XR12-400-230V | D133: Installationsschütz 230V. 4 Schließer 25A/250V AC | E133: 62 | G133: FMH4S-sz | H133: 66.5 | I133: 30000094 | J133: 4010312301555
A134: 4010312205327 | B134: 22500501 | C134: MSR12-UC | D134: Multifunktions-Sensorrelais, 5 OptoMOS | E134: 100.2 | G134: FMH4S-wg | H134: 66.5 | I134: 30000095 | J134: 4010312301586
A135: 4010312603284 | B135: 23001003 | C135: MFZ12DBT-UC | D135: Digital einstellbares Multifunktions-Zeitrelais mit Display und Bluetooth, 1 Wechsler 10A | E135: 101.1 | G135: FMH4S-an | H135: 66.5 | I135: 30000097 | J135: 4010312301579
A136: 4010312603079 | B136: 23001004 | C136: MFZ12DDX-UC | D136: Digital einstellbares Multifunktions-Zeitrelais, 1 Wechsler 10A | E136: 70.1 | G136: IRT3 | H136: 6 | I136: 30000100 | J136: 4010312328217
A137: 4010312603086 | B137: 23001005 | C137: MFZ12DX-UC | D137: Analog einstellbares Multifunktions-Zeitrelais, 1 Wechsler 10A | E137: 69.8 | G137: R-ws | H137: 4.9 | I137: 30000180 | J137: 4010312902356
A138: 4010312601099 | B138: 23001006 | C138: MFZ12PMD-UC | D138: Vollelektronisches Multifunktions-Zeitrelais, Power MOSFET bis 400W | E138: 88.1 | G138: R-al | H138: 6 | I138: 30000181 | J138: 4010312902363
A139: 4010312603093 | B139: 23001202 | C139: RVZ12DX-UC | D139: Analog einstellbares Zeitrelais mit Rückfallverzögerung, 1 Wechsler 10A | E139: 67.5 | G139: R-rw | H139: 4.9 | I139: 30000182 | J139: 4010312902370
A140: 4010312603109 | B140: 23001302 | C140: AVZ12DX-UC | D140: Analog einstellbares Zeitrelais mit Ansprechverzögerung, 1 Wechsler 10A | E140: 68 | G140: R-wg | H140: 4.9 | I140: 30000185 | J140: 4010312902400
A141: 4010312603116 | B141: 23001402 | C141: TGI12DX-UC | D141: Analog einstellbares Zeitrelais mit Taktgeber, 1 Wechsler 10A | E141: 67.6 | G141: R-an | H141: 4.9 | I141: 30000187 | J141: 4010312902424
A142: 4010312603123 | B142: 23001702 | C142: EAW12DX-UC | D142: Analog einstellbares Zeitrelais mit Einschalt- und Ausschaltwischer, 1 Wechsler 10A | E142: 67.6 | G142: FMT55/2-rw | H142: 54.8 | I142: 30000192 | J142: 4010312312469
A143: 4010312603215 | B143: 23001802 | C143: PTN12-230V | D143: Prüftaster für Notleuchten mit Rückfall­verzögerung, 1 Wechsler 16A | E143: 64.5 | G143: FMT55/2-wg | H143: 54.8 | I143: 30000195 | J143: 4010312312483
A144: 4010312603307 | B144: 23002903 | C144: S2U12DBT-UC | D144: 2-Kanal-Schaltuhr mit Display und Bluetooth | E144: 113.1 | G144: FK Fensterkontakt | H144: 32.8 | I144: 20000086 | J144: 4010312903001
A145: 4010312602935 | B145: 23100001 | C145: MFZ12NP-230V+UC | D145: Analog einstellbares Multifunktions-Zeitrelais, 1 Schließer 16A | E145: 62.5 | G145: FHS8-wg | H145: 102.9 | I145: 30000205 | J145: 4010312300947
A146: 4010312603147 | B146: 23100530 | C146: MFZ12-230V | D146: Analog einstellbares Multifunktions-Zeitrelais, 1 Schließer 10A | E146: 61.8 | G146: FHS8B-wg | H146: 102.9 | I146: 30000206 | J146: 4010312328194
A147: 4010312602911 | B147: 23100704 | C147: NLZ12NP-230V+UC | D147: Nachlaufschalter, 1 Schließer 16A | E147: 59.6 | G147: FT4S-ws | H147: 62 | I147: 30000220 | J147: 4010312303191
A148: 4010312401712 | B148: 23100800 | C148: TLZ12D-plus | D148: Digital einstellbarer Treppenlicht-Zeitschalter, 1 Schließer 16A | E148: 62.3 | G148: FT4B-nw | H148: 62 | I148: 30000221 | J148: 4010312312902
A149: 4010312401460 | B149: 23100831 | C149: TLZ12G-230V+UC | D149: Treppenlicht-Zeitschalter, geräuschloses Solid-State-Relais 400W | E149: 63.8 | G149: FT4CH-w | H149: 62 | I149: 30000222 | J149: 4010312300978
A150: 4010312401613 | B150: 23100832 | C150: TLZ12-8plus | D150: Treppenlicht-Zeitschalter, 1 Schließer 16A | E150: 57.6 | G150: FT4CH-hg | H150: 62 | I150: 30000223 | J150: 4010312300985
A151: 4010312401620 | B151: 23100836 | C151: TLZ12-9 | D151: Treppenlicht-Zeitschalter, 1 Schließer 16A | E151: 57.7 | G151: FT4CH-sz | H151: 62 | I151: 30000224 | J151: 4010312300992
A152: 4010312401637 | B152: 23100934 | C152: TLZ12-8 | D152: Treppenlicht-Zeitschalter, 1 Schließer 16A | E152: 44.9 | G152: FT55R-weiß | H152: 62 | I152: 30000225 | J152: 4010312313985
A153: 4010312603178 | B153: 23200302 | C153: A2Z12-UC | D153: Analog einstellbare 2-Stufen-Ansprechverzögerung, 1+1 Schließer 10A | E153: 79.8 | G153: FT55R-alpinweiß | H153: 62 | I153: 30000226 | J153: 4010312313992
A154: 4010312603208 | B154: 23200901 | C154: S2U12DDX-UC | D154: Digital einstellbare 2-Kanal-Schaltuhr, 1+1 Schließer 16A | E154: 88.7 | G154: FT55EL-ws | H154: 62 | I154: 30000227 | J154: 4010312316658
A155: 4010312603277 | B155: 23200902 | C155: SU12DBT/1+1-UC | D155: 2-Kanal-Schaltuhr mit Display und Bluetooth | E155: 103.7 | G155: FT4B-cr | H155: 62 | I155: 30000229 | J155: 4010312312995
A156: 4010312701065 | B156: 24000899 | C156: P3K12-230V | D156: Phasenkontrolle | E156: 43.9 | G156: FMH4-ws | H156: 66.5 | I156: 30000230 | J156: 4010312301029
A157: 4010312700358 | B157: 24100900 | C157: ST12-16A | D157: Steckdose | E157: 20.9 | G157: FMH4-rw | H157: 66.5 | I157: 30000232 | J157: 4010312301036
A158: 4010312501795 | B158: 28016110 | C158: WSZ110DSS-16A MID | D158: Mobiler Wechselstromzähler, MID | E158: 106.3 | G158: FMH4-sz | H158: 66.5 | I158: 30000234 | J158: 4010312301012
A159: 4010312501801 | B159: 28016111 | C159: WSZ110CEE-16A | D159: Mobiler Wechselstromzähler, MID | E159: 107.4 | G159: FMH4-wg | H159: 66.5 | I159: 30000235 | J159: 4010312301067
A160: 4010312501832 | B160: 28016112 | C160: WSZ110DSS-16A+PRCD MID | D160: Mobiler Wechselstromzähler mit Personenschutz-Zwischenschalter PRCD, MID | E160: 206.2 | G160: FMH4-an | H160: 66.5 | I160: 30000237 | J160: 4010312301043
A161: 4010312501856 | B161: 28016113 | C161: WSZ110CEE-16A+PRCD MID | D161: Mobiler Wechselstromzähler mit Personenschutz-Zwischenschalter PRCD, MID | E161: 202.4 | G161: FT4B-na | H161: 62 | I161: 30000240 | J161: 4010312314180
A162: 4010312501863 | B162: 28016128 | C162: DSZ180CEE-16A MID | D162: Mobiler Drehstromzähler, MID | E162: 213.7 | G162: FT4BL-lw | H162: 62 | I162: 30000241 | J162: 4010312314197
A163: 4010312501627 | B163: 28032015 | C163: WSZ15D-32A MID | D163: Wechselstromzähler, MID geeicht | E163: 67 | G163: FT55RS-alpinweiß | H163: 62 | I163: 30000243 | J163: 4010312314210
A164: 4010312501825 | B164: 28032128 | C164: DSZ180CEE-32A MID | D164: Mobiler Drehstromzähler, MID | E164: 225.5 | G164: FT55ES-wg | H164: 62 | I164: 30000244 | J164: 4010312314227
A165: 4010312501252 | B165: 28032410 | C165: WZR12-32A | D165: Wechselstromzähler mit Reset, ohne MID | E165: 74.5 | G165: FT4BI-an | H165: 62 | I165: 30000245 | J165: 4010312319758
A166: 4010312500828 | B166: 28032411 | C166: EVA12-32A | D166: Wechselstromzähler mit Energieverbrauchsanzeige | E166: 75.1 | G166: FT4BI-ww | H166: 62 | I166: 30000246 | J166: 4010312319765
A167: 4010312501702 | B167: 28032615 | C167: WSZ15DE-32A | D167: Wechselstromzähler, ohne MID | E167: 59 | G167: FMT55/4-rw | H167: 57.2 | I167: 30000262 | J167: 4010312312544
A168: 4010312501900 | B168: 28032715 | C168: WSZ14DRS-32A | D168: Wechselstromzähler, MID | E168: 75 | G168: RS Regensensor | H168: 142.7 | I168: 20000087 | J168: 4010312206546
A169: 4010312501696 | B169: 28065615 | C169: WSZ15D-65A MID | D169: Wechselstromzähler, MID | E169: 71.5 | G169: FMT55/4-wg | H169: 57.2 | I169: 30000265 | J169: 4010312312568
A170: 4010312501641 | B170: 28305015 | C170: DSZ15WD-3x5A MID | D170: Wandler-Drehstromzähler, MID | E170: 204.1 | G170: FSM61-UC | H170: 66.2 | I170: 30000300 | J170: 4010312300152
A171: 4010312501665 | B171: 28305515 | C171: DSZ15WDM-3x5A MID | D171: M-Bus-Wandler-Drehstromzähler, MID | E171: 243.7 | G171: F4USM61B | H171: 72.2 | I171: 30000301 | J171: 4010312321386
A172: 4010312501450 | B172: 28305712 | C172: DSZ14WDRS-3x5A MID | D172: RS485-Bus-Wandler-Drehstromzähler mit Display, MID | E172: 209.1 | G172: FWS61-24V DC | H172: 79.6 | I172: 30000305 | J172: 4010312301937
A173: 4010312501733 | B173: 28365715 | C173: DSZ14DRS-3x80A MID | D173: RS485-Bus-Drehstromzähler mit Display, MID | E173: 200.5 | G173: FWZ12-65A | H173: 95.5 | I173: 30000308 | J173: 4010312311059
A174: 4010312501634 | B174: 28380015 | C174: DSZ15D-3x80A MID | D174: Drehstromzähler, MID | E174: 157.6 | G174: R2-ws | H174: 5.4 | I174: 30000310 | J174: 4010312903681
A175: 4010312501894 | B175: 28380215 | C175: DSZ15DZE-3x80A | D175: Zweirichtungs-Drehstromzähler, ohne MID | E175: 180 | G175: SNT12-230V/12VDC-1A | H175: 60.7 | I175: 20000160 | J175: 4010312301111
A176: 4010312501726 | B176: 28380512 | C176: DSZ15DM-3x80A MID | D176: M-Bus-Drehstromzähler, MID | E176: 243.7 | G176: R2-al | H176: 11.6 | I176: 30000311 | J176: 4010312903742
A177: 4010312328170 | B177: 28380516 | C177: DSZ15DZMOD-3x80A MID | D177: Modbus-Zweirichtungs-Drehstromzähler, MID | E177: 243.7 | G177: SNT12-230V/24VDC-0,5A | H177: 60.7 | I177: 20000161 | J177: 4010312301128
A178: 4010312501719 | B178: 28380615 | C178: DSZ15DE-3x80A | D178: Drehstromzähler, ohne MID | E178: 116 | G178: R2-rw | H178: 5.4 | I178: 30000312 | J178: 4010312903704
A179: 4010312501887 | B179: 28465715 | C179: DSZ14DRSZ-3x80A MID | D179: RS485-Bus-Zweirichtungs-Drehstromzähler mit Display, MID | E179: 232.2 | G179: R2-wg | H179: 5.4 | I179: 30000315 | J179: 4010312903728
A180: 4010312501870 | B180: 28480315 | C180: DSZ15DZ-3x80A MID | D180: Zweirichtungs-Drehstromzähler, MID | E180: 210.9 | G180: R2-an | H180: 5.4 | I180: 30000317 | J180: 4010312903711
A181: 4010312104187 | B181: 29100011 | C181: S09-12V | D181: 1-poliger elektromechanischer 16A-Stromstoßschalter | E181: 33.4 | G181: R3-ws | H181: 5.6 | I181: 30000320 | J181: 4010312903766
A182: 4010312104200 | B182: 29100030 | C182: S09-230V | D182: 1-poliger elektromechanischer 16A-Stromstoßschalter | E182: 36.4 | G182: R3-al | H182: 14.8 | I182: 30000321 | J182: 4010312903827
A183: 4010312323786 | B183: 30000001 | C183: OnWall-al | D183: Universal-Wand-Dockingstation für Lightning-iPads, mit Ladefunktion, Alu natur | E183: 368.5 | G183: R3-rw | H183: 5.6 | I183: 30000322 | J183: 4010312903780
A184: 4010312323793 | B184: 30000002 | C184: OnWall-sz | D184: Universal-Wand-Dockingstation für Lightning-iPads, mit Ladefunktion, Alu schwarz eloxiert | E184: 368.5 | G184: R3-wg | H184: 5.6 | I184: 30000325 | J184: 4010312903803
A185: 4010312323809 | B185: 30000003 | C185: InWall-10-sz | D185: Unterputz-Wand-Dockingstation für iPads 10,2 Zoll mit Ladefunktion, Alu schwarz eloxiert mit schwarzer Glasblende | E185: 394.2 | G185: R3-an | H185: 5.6 | I185: 30000327 | J185: 4010312903797
A186: 4010312323878 | B186: 30000007 | C186: Austausch-Set Lightning > USB-C | D186: USB-C Kabel zum Austausch von Lightning auf USB-C für OnWall | E186: 115.7 | G186: SO55 | H186: 9.1 | I186: 30000346 | J186: 4010312908150
A187: 4010312909058 | B187: 30000011 | C187: UIB70 | D187: Universal-Installationsbox blau | E187: 12.8 | G187: FRP61-230V | H187: 69.3 | I187: 30000350 | J187: 4010312300251
A188: 4010312909454 | B188: 30000012 | C188: UIB70-rw | D188: Universal-Installationsbox reinweiß | E188: 11.4 | G188: FRP70-230V | H188: 99.9 | I188: 30000352 | J188: 4010312306482
A189: 4010312907290 | B189: 30000015 | C189: FVST | D189: Funk-Verschlüsselungsstecker | E189: 5.3 | G189: FARP60-230V | H189: 84.5 | I189: 30000353 | J189: 4010312310137
A190: 4010312907030 | B190: 30000016 | C190: FTVW | D190: Funktaster-Verschlüsselungswippe | E190: 2.1 | G190: HP+BF | H190: 5.7 | I190: 30000356 | J190: 4010312909119
A191: 4010312907023 | B191: 30000017 | C191: SMW14 | D191: Steckbrücken-Montagewerkzeug | E191: 1.5 | G191: FSSG-230V | H191: 101.9 | I191: 30000358 | J191: 4010312323885
A192: 4010312908860 | B192: 30000018 | C192: U2RP | D192: Universal-2-fach-Rastplatte BR61+62+62-IP, grau | E192: 6 | G192: FSRP-230V | H192: 84.3 | I192: 30000359 | J192: 4010312314999
A193: 4010312907702 | B193: 30000020 | C193: USB-Verlängerungskabel | D193: USB-Verlängerungskabel | E193: 15.9 | G193: FT-KF | H193: 9.1 | I193: 30000360 | J193: 4010312901809
A194: 4010312314937 | B194: 30000021 | C194: BPS-Ö Blister-Pack | D194: Blisterpack Schalten | E194: 152 | G194: P10 Probare | H194: 170.1 | I194: 30000370 | J194: 4010312317068
A195: 4010312314944 | B195: 30000022 | C195: BPD-Ö Blister-Pack | D195: Blisterpack Dimmen | E195: 171.7 | G195: R12-100-12V | H195: 31 | I195: 22100011 | J195: 4010312200421
A196: 4010312314968 | B196: 30000023 | C196: BPS-ES Blister-Pack | D196: Blisterpack Schalten | E196: 152 | G196: FGTZ-230V | H196: 88.9 | I196: 30000379 | J196: 4010312324462
A197: 4010312314951 | B197: 30000024 | C197: BPD-ES Blister-Pack | D197: Blisterpack Dimmen | E197: 171.7 | G197: R12-100-24V | H197: 33.5 | I197: 22100020 | J197: 4010312200438
A198: 4010312907092 | B198: 30000025 | C198: RLC-Glied | D198: Reichweiten-Verlängerung für FTS14TG | E198: 6.6 | G198: FIW-USB | H198: 99.2 | I198: 30000387 | J198: 4010312311158
A199: 4010312316351 | B199: 30000026 | C199: DAT71 | D199: Datenübertrager für die Baureihe 71 | E199: 78.8 | G199: FAM-USB | H199: 96.7 | I199: 30000390 | J199: 4010312312971
A200: 4010312324370 | B200: 30000028 | C200: NF2A | D200: Netzfilter bis 2A, 230V/50Hz | E200: 38.1 | G200: FPE-1 | H200: 70 | I200: 30000398 | J200: 4010312315552
A201: 4010312907306 | B201: 30000030 | C201: WP50 | D201: WET.PROTECT 50ml | E201: 28.3 | G201: FTKE-rw | H201: 64.2 | I201: 30000400 | J201: 4010312315231
... 687 more rows

Sheet Ausschreibungstexte (hidden)
A1: 1
A2: 2
A3: 3
A4: 4
A5: 5 | C5: Menge
A6: 6 | B6: Ausschreibung "Eltako - Das System im Gebäude"
A7: 7
B8: SmartHome Zentrale MiniSafe mit App GFA4 Zentrale für eine gewerkeübergreifende Hausautomationslösung. Verbindet eine Vielzahl an Funksensoren und Funkaktoren. Optionaler Offlinebetrieb über eigenen Access-Point ohne Onlineverbindung. Verschlüsselte Kommunikation. Spannungsversorgung: 12V DC, 100V-240V AC, 50/60Hz; Funkprotokolle: EnOcean/868,3MHz, LAN: 1x Ethernet-RJ 45; Fabrikat/ Typ: Eltako MiniSafe oder gleichwertig | C8: =Stückliste!D134 -> 0 | D8: =IF(C8>0,C8,"") -> 
A10: 8 | B10: wibutler pro-Home-Server mit App WPHS Zentrale für eine gewerkeübergreifende Hausautomationslösung. Verbindet eine Vielzahl an Funksensoren und Funkaktoren. Optionaler Offlinebetrieb über eigenen Access-Point ohne Onlineverbindung. Verschlüsselte Kommunikation. Spannungsversorgung: 12V DC, 100V-240V AC, 50/60Hz; Funkprotokolle: EnOcean/868,3MHz, Z-Wave, ZigBee, WLAN, Bluetooth, Bluetooth Smart; LAN: 1x Ethernet-RJ 45; Festplatte: Integrierte 8GB SSD; Arbeitsspeicher: 1GB DDR3-RAM; Prozessor: 1GHz CPU ARMADA 370 ARM v7; Audio: integrierter Lautsprecher, 3,5mm Klinkenanschluss. Abmessungen (LxBxH): 11,7x11,7x4,1cm; Farbe: weiß. Fabrikat/ Typ: Eltako WPHS oder gleichwertig | C10: =Stückliste!D135 -> 0
A11: 9
A12: 10 | B12: Funk-Antennenmodul FAM14 Funk-Antennenmodul für den Eltako-RS485-Bus als Reiheneinbaugerät für Montage auf Tragschiene DIN-EN 60715 TH35 2 Teilungseinheiten = 36mm breit, 58mm tief Mit integriertem Schaltnetzteil 12V DC/12 W. Bidirektional. Verschlüsselter Funk. Stand-by-Verlust: 1 Watt Versorgungsspannung: 230V Fabrikat/ Typ: Eltako FAM14 oder gleichwertig | C12: =Stückliste!D15 -> 0
A13: 11
A14: 12 | B14: Funk-Empfangsmodul FEM Funk-Empfangsmodul für den RS485 Sub-Bus Maße: LxBxH: 78x40x22mm Bei Anschluss einer größeren Funkantenne FA250 in optimierter Position kann die Empfangsreichweite erhöht werden Fabrikat/ Typ: Eltako FEM oder gleichwertig | C14: =Stückliste!D19 -> 0
A15: 13
A16: 14 | B16: RS485-Bus-Gateway FGW14 Mehrfach-Gateway. Bidirektional. Reiheneinbaugerät für Montage auf Tragschiene DIN-EN 60715 TH35 1 Teilungseinheiten = 18mm breit, 58mm tief Zum Einkoppeln von bis zu drei FEM, zur Direktverbindung mit dem Rechner GFVS-Safe II, zur Verbindung mit den Bus-Komponenten der älteren Baureihe 12, einer RS232-Schnittstelle oder als Busverbinder von zwei RS485-Bussen der Baureihe 14 Stand-by-Verlust: 0,5 Watt Fabrikat/ Typ: Eltako FGW14 oder gleichwertig | C16: =Stückliste!D9 -> 0
A17: 15
A18: 16 | B18: RS485-Bus-Gateway FGW14-USB Gateway mit USB-A-Anschluss. Bidirektional. Reiheneinbaugerät für Montage auf Tragschiene DIN-EN 60715 TH35 1 Teilungseinheiten = 18mm breit, 58mm tief Zum Anschluss eines PCs über eine USB-Schnittstelle, zum Einkoppeln von bis zu drei FEM oder als Busverbinder von zwei RS485-Bussen der Baureihe 14 Stand-by-Verlust: 0,3 Watt Fabrikat/ Typ: Eltako FGW14-USB oder gleichwertig | C18: =Stückliste!D10 -> 0
A19: 17
B20: RS485-Bus-Gateway BGW14 RS485-Bus-Gateway. Bidirektional. 1 Teilungseinheit = 18mm breit, 58mm tief. Anschluss an den Eltako-RS485-Bus. Querverdrahtung Bus und Stromversorgung mit Steckbrücke. Betrieb in Verbindung mit FAM14 oder FTS14KS. Mit bis zu 8 BGW14 lassen sich Daten von bis zu 128 Sensoren in den RS485-Bus einspeisen. Stand-by-Verlust: 0,3 Watt Fabrikat/ Typ: Eltako BGW14 oder gleichwertig | C20: =Stückliste!D11 -> 0
A22: 18 | B22: DALI-Gateway FDG14 Bidirektional. 2 Teilungseinheiten = 36mm breit, 58mm tief. Anschluss an den Eltako-RS485 Bus. Querverdrahtung nur Bus mit Steckbrücke. Betrieb in Verbindung mit FAM14. Versorgungsspannung 230V an den Klemmen N und L. An die Klemmen DALI +/- können bis zu 64 Stück DALI-Geräte angeschlossen werden. Stand-by-Verlust: 1 Watt Fabrikat/ Typ: Eltako FDG14 oder gleichwertig | C22: =Stückliste!D42 -> 0 | D22: =IF(C22>0,C22,"") -> 
A23: 19
A24: 20 | B24: RS485-Bus-Wetterdaten-Gateway FWG14MS Wetterdaten-Gateway für Multisensor MS. Bidirektional. 1 Teilungseinheit = 18mm breit, 58mm tief. Anschluss an den Eltako-RS485-Bus. Quer­verdrahtung Bus und Stromversorgung mit Steckbrücke. Betrieb in Verbindung mit FAM14 oder FTS14KS. Mit dem PC-Tool PCT14 können 96 Eingänge UND bzw. ODER verknüpft und auf bis zu 12 Ausgängen ausgegeben werden. Stand-by-Verlust: 0,3 Watt Fabrikat/ Typ: Eltako FWG14MS oder gleichwertig | C24: =Stückliste!D48 -> 0
A25: 113
A26: 112 | B26: RS485-Bus-Aktor 4-Kanal-Stromstoß-Schaltrelais FSR14-4x Stromstoß-Schaltrelais mit 4 Kanälen, je 1 Schließer 4A/250V AC, Glühlampen 1000W, potentialgetrennt von der Versorgungsspannung, mit DX-Technologie. Bidirektional. Reiheneinbaugerät für Montage auf Tragschiene DIN-EN 60715 TH35 1 Teilungseinheit = 18mm breit, 58mm tief Stand-by-Verlust: 0,1 Watt Versorgungsspannung: 12V DC Fabrikat/ Typ: Eltako FSR14-4x oder gleichwertig | C26: =Stückliste!D33 -> 0
A27: 21
A28: 22 | B28: RS485-Bus-Aktor 2-Kanal-Stromstoß-Schaltrelais FSR14-2x Stromstoß-Schaltrelais mit 2 Kanälen, 1+1 Schließer potenzialfrei 16A/250V AC, Glühlampen 2000W, mit DX-Technologie. Bidirektional. Reiheneinbaugerät für Montage auf Tragschiene DIN-EN 60715 TH35 1 Teilungseinheit = 18mm breit, 58mm tief Stand-by-Verlust: 0,1 Watt Versorgungsspannung: 12V DC Fabrikat/ Typ: Eltako FSR14-2x oder gleichwertig | C28: =Stückliste!D36 -> 0
A29: 23
A30: 24 | B30: RS485-Bus-Aktor 4-Kanal-Stromstoß-Schaltrelais FSR14-LED Stromstoß-Schaltrelais mit 4 Kanälen, je 1 Schließer 230V-LED bis 400W, Glühlampen bis 1800W, potenzialgetrennt von der Versorgungsspannung, mit DX-Technologie. Bidirektional. 2 Teilungseinheiten = 36mm breit, 58mm tief. Stand-by-Verlust: 0,1 Watt Versorgungsspannung: 12V DC Fabrikat/ Typ: Eltako F4SR14-LED oder gleichwertig | C30: =Stückliste!D35 -> 0
A31: 25
A32: 26 | B32: RS485-Bus-Aktor für Beschattungselemente und Rollladen FSB14 Schaltaktor Beschattungselemente und Rollladen mit 2 Kanälen für zwei 230V-Motoren. Bidirektional. Reiheneinbaugerät für Montage auf Tragschiene DIN-EN 60715 TH35 1 Teilungseinheit = 18mm breit, 58mm tief Anschluss an den Eltako-RS485-Bus. Querverdrahtung Bus und Stromversorgung mit Steckbrücke. Kontakte: 2+2 Schließer 4A/250V AC potenzialgetrennt von der Versorgungsspannung 12V Stand-by-Verlust: 0,1 Watt Versorgungsspannung: 12V DC Fabrikat/ Typ: Eltako FSB14 oder gleichwertig | C32: =Stückliste!D38 -> 0
A33: 27
A34: 28 | B34: RS485-Bus-Aktor Universal-Dimmschalter FUD14 Universal-Dimmschalter, Power MOSFET bis 400W. Automatische Lampenerkennung. Bidirektional. Reiheneinbaugerät für Montage auf Tragschiene DIN-EN 60715 TH35 1 Teilungseinheit = 18mm breit, 58mm tief Mindesthelligkeit und Dimmgeschwindigkeit einstellbar Mit Kinderzimmer-, Schlummer- und Lichtweckerschaltung. Zusätzlich mit Lichtszenensteuerung und Konstantlichtregelung. Schaltung im Nulldurchgang mit Soft-Ein und Soft-Aus zur Lampenschonung Schaltleistung: Lampen bis 400W, abhängig von den Lüftungsverhältnissen, dimmbare Energiesparlampen ESL und dimmbare 230V-LED-Lampen zusätzlich abhängig von der Lampenelektronik Stand-by-Verlust: 0,3 Watt Versorgungsspannung: 12V DC Fabrikat/ Typ: Eltako FUD14 oder gleichwertig | C34: =Stückliste!D39 -> 0
A35: 29
A36: 30 | B36: RS485-Bus-Aktor Universal-Dimmschalter FUD14/800W Universal-Dimmschalter, Power MOSFET bis 800W. Automatische Lampenerkennung. Reiheneinbaugerät für Montage auf Tragschiene DIN-EN 60715 TH35 2 Teilungseinheiten = 36mm breit, 58mm tief Mindesthelligkeit und Dimmgeschwindigkeit einstellbar Mit Kinder­zimmer-, Schlummer- und Lichtweckerschaltung. Zusätzlich mit Lichtszenensteuerung und Konstantlichtregelung. Schaltung im Nulldurchgang mit Soft-Ein und Soft-Aus zur Lampenschonung Schaltleistung: Lampen bis 800W, abhängig von den Lüftungsverhältnissen, dimmbare Energiesparlampen ESL und dimmbare 230V-LED-Lampen, zusätzlich abhängig von der Lampenelektronik Stand-by-Verlust: 0,3 Watt Versorgungsspannung: 12V DC Fabrikat/ Typ: Eltako FUD14/800W oder gleichwertig | C36: =Stückliste!D40 -> 0
A37: 31
A38: 32 | B38: RS485-Bus-Aktor Dimmschalter-Steuergerät FSG14 für EVG 1-10V Dimmschalter-Steuergerät für EVG 1-10V, 1 Schließer nicht potenzialfrei 600VA und 1-10V-Steuerausgang 40mA. Bidirektional. Reiheneinbaugerät für Montage auf Tragschiene DIN-EN 60715 TH35 1 Teilungseinheiten = 18mm breit, 58mm tief Anschluss an den Eltako-RS485-Bus. Querverdrahtung Bus und Stromversorgung mit Steckbrücke Mindesthelligkeit und Dimmgeschwindigkeit einstellbar. Mit Lichtszenensteuerung und Konstantlichtregelung. Schaltung im Nulldurchgang zur Kontaktschonung Schaltleistung: Leuchtstofflampen oder NV-Halogenlampen mit EVG 600VA Stand-by-Verlust: 0,9 Watt Versorgungsspannung: 12V DC Fabrikat/ Typ: Eltako FSG14 oder gleichwertig | C38: =Stückliste!D41 -> 0
A39: 33
A40: 34 | B40: 4-Kanal-Heiz-Kühl-Relais F4HK14 Heiz-Kühl-Relais mit 4 Kanälen Reiheneinbaugerät für Montage auf Tragschiene DIN-EN 60715 TH35 1 Teilungseinheit = 18 mm breit, 58mm tief Anschluss an den Eltako-RS485-Bus. Querverdrahtung Bus und Stromversorgung mit Steckbrücke. Mit dem oberen und dem mittleren Drehschalter wird eingelernt und anschließend werden damit eine von drei Automatik-Funktionen und gegebenenfalls ein Korrekturwert eingestellt. Der untere Drehschalter ermöglicht eine freie Wahl der 4 Kanäle als Heiz-Relais (H) oder Kühl-Relais (K). Kontakte: je 1 Schließer potenzialfrei 4A/250V AC mit DX-Technologie Stand-by-Verlust: 0,1 Watt Versorgungsspannung: 12V DC Fabrikat/ Typ: Eltako F4HK14 oder gleichwertig | C40: =Stückliste!D44 -> 0
A41: 35
A42: 36 | B42: RS485-Bus-Display-Schaltuhr FSU14 Display-Schaltuhr mit 8 Kanälen für den Eltako-RS485-Bus Reiheneinbaugerät für Montage auf Tragschiene DIN-EN 60715 TH35 1 Teilungseinheit = 18mm breit, 58mm tief Mit Astro-Funktion Stand-by-Verlust: nur 0,1 Watt Anschluss an den Eltako-RS485-Bus, Querverdrahtung Bus und Stromversorgung mit Steckbrücke. Versorgungsspannung: 12V DC Bis zu 60 Schaltuhr-Speicherplätze werden frei auf die Kanäle verteilt. Mit Datum und automatischer Sommerzeit/Winterzeit-Umstellung. Gangreserve ca. 20 Tage. Fabrikat/ Typ: Eltako FSU14 oder gleichwertig | C42: =Stückliste!D46 -> 0
A43: 37
A44: 38 | B44: RS485-Bus-Multifunktions-Sensorrelais FMSR14 Multifunktions-Sensorrelais mit Display und 5 Kanälen (Helligkeit, Dämmerung, Wind, Regen und Frost) für den Eltako-RS485-Bus. Reiheneinbaugerät für Montage auf Tragschiene DIN-EN 60715 TH35 1 Teilungseinheit = 18mm breit, 58mm tief Anschluss an den Eltako-RS485-Bus, Querverdrahtung Bus und Stromversorgung mit Steckbrücke. Stand-by-Verlust: 0,1 Watt Fabrikat/ Typ: Eltako FMSR14 oder gleichwertig | C44: =Stückliste!D47 -> 0
A45: 39
A46: 40 | B46: Funk-Wetterdaten-Sendemodul FWS61-24V DC Funk-Wetterdaten-Sendemodul FWS61 für die sieben Wetterdaten des Multisensors MS für Einbaumontage Maße: 45mm lang, 45mm breit, 18mm tief Stand-by-Verlust: 0,3 Watt Fabrikat/ Typ: Eltako FWS61-24V DC oder gleichwertig | C46: =Stückliste!D56 -> 0
A47: 41
A48: 42 | B48: Multisensor MS Multisensor erfasst sekündlich die Wetterdaten: Helligkeit (3 Himmelsrichtungen), Wind, Regen, Frost Kompaktes Kunststoffgehäuse Maße: lxbxh = 118x96x77mm Schutzklasse: IP44 Fabrikat/Typ: Eltako Multisensor MS oder gleichwertig | C48: =Stückliste!D51 -> 0
A49: 43
A50: 44 | B50: RS485-Bus-Telegramm-Duplizierer FTD14 Telegramm-Duplizierer für den Eltako-RS485-Bus mit austauschbarer Antenne. Telegramme eingelernter IDs werden dupliziert und mit einer neuen Ausgangs-ID direkt in den Eltako-Gebäudefunk gesendet. Funk-Telegramme können gezielt in dezentrale Aktoren eingelernt werden Stand-by-Verlust: 0,5 Watt Fabrikat/Typ: Eltako FTD14 oder gleichwertig | C50: =Stückliste!D12 -> 0
A51: 45
A52: 46 | B52: Busbrücken-Verbinder BBV14 Busbrücken-Verbinder für Drahtverbindungen der Bus- und Stromversorgungsbrücken, Baureihe 14, 45 cm lang. 4-adrige Litze mit angelöteten Steckbrücken auf beiden Seiten. Kann Busteile auf verschiedenen Tragschienen verbinden Fabrikat/Typ: Eltako BBV14 oder gleichwertig | C52: =Stückliste!D4 -> 0
A53: 47
A54: 48 | B54: RS485-Busankoppler FBA14 Busankoppler für Drahtverbindungen der Bus- und Stromversorgungsbrücken Reiheneinbaugerät für Montage auf Tragschiene DIN-EN 60715 TH35 1 Teilungseinheiten = 18mm breit, 58mm tief Der Busankoppler FBA14 kann sowohl verschiedene Busteile verbinden als auch Stromversorgungen einspeisen Fabrikat/ Typ: Eltako FBA14 oder gleichwertig | C54: =Stückliste!D5 -> 0
A55: 49
A56: 50 | B56: Schaltnetzteil FSNT14-12V/12W Schaltnetzteil, kurzschlussfest Für Einbaumontage 1 Teilungseinheit = 18mm breit, 58mm tief Stabilisierte Ausgangsspannung ± 1%, geringe Restwelligkeit Überlast- und Übertemperatursicherung mit autorecovery-Funktion Nennleistung: 12W Stand-by-Verlust: nur 0,2W Primär: 230V AC Sekundär: 12V DC Kurzschlussfest Fabrikat/Typ: Eltako FSNT14-12V/12W oder gleichwertig | C56: =Stückliste!D8 -> 0
A57: 51
A58: 52 | B58: Taster-Eingabemodul FTS14EM Taster-Eingabemodul für den Eltako-RS485-Bus, 10 Steuereingänge für Universal-Steuerspannung Reiheneinbaugerät für Montage auf Tragschiene DIN-EN 60715 TH35 2 Teilungseinheiten = 36mm breit, 58mm tief Anschluss an den Eltako-RS485-Bus. Querverdratung Bus und Stromversorgung mit Steckbrücken Steuerspannung: 8..230VUC Stand-by-Verlust: nur 0,1 Watt Fabrikat/ Typ: Eltako FTS14EM oder gleichwertig | C58: =Stückliste!D20 -> 0
A59: 53
A60: 54 | B60: Taster-Eingabemodul FTS14KS FTS14-Kommunikationsschnittstelle für den Eltako-RS485-Bus mit ­integriertem Schaltnetzteil 12V DC-1A Reiheneinbaugerät für Montage auf Tragschiene DIN-EN 60715 TH35 2 Teilungseinheiten = 36mm breit, 58mm tief Querverdratung Bus und Stromversorgung mit Steckbrücken Versorgungsspannung: 230V Stand-by-Verlust: nur 0,6 Watt Fabrikat/ Typ: Eltako FTS14KS oder gleichwertig | C60: =Stückliste!D16 -> 0
A61: 55
A62: 56 | B62: Schaltnetzteil SNT12-230V/12VDC-1,0A Schaltnetzteil, kurzschlussfest Reiheneinbaugerät für Montage auf Tragschiene DIN-EN 60715 TH35 1 Teilungseinheit = 18mm breit, 58mm tief Stabilisierte Ausgangsspannung ± 1%, geringe Restwelligkeit Überlast- und Übertemperatursicherung mit autorecovery-Funktion Nennleistung: 12W Stand-by-Verlust: nur 0,2W Primär: 230V AC Sekundär: 12V DC Kurzschlussfest Fabrikat/Typ: Eltako SNT12-230V/12VDC1,0A oder gleichwertig | C62: =Stückliste!D32 -> 0
A63: 57
A64: 58 | B64: Taster-Gateway FTS14TG Taster-Gateway für FTS14-Systeme Reiheneinbaugerät für Montage auf Tragschiene DIN-EN 60715 TH35 2 Teilungseinheiten = 36mm breit, 58mm tief Anschluss an den Eltako-RS485-Bus. Querverdratung Bus und Stromversorgung mit Steckbrücken Betrieb in Verbindung mit FAM14 oder FTS14KS Mit bis zu 3 Taster-Gateways FTS14TG lassen sich die Telegramme von bis zu 90 über einen 2-Draht-Bus verbunden 4-fach-Bus-Taster B4T65, B4FT65 und Taster-Koppler FTS61BTK mit den daran angeschlossenen konventionellen Tastern einspeisen. Über nur 2 Adern erfolgt die Datenübertragung und die Stromversorgung gleichzeitig. Dadurch entfallen zahlreiche einzelne Taster-Steuerleitungen. Fabrikat/ Typ: Eltako FTS14TG oder gleichwertig | C64: =Stückliste!D21 -> 0
A65: 59
A66: 60 | B66: Bus-Taster im E-Design B4T65-wg Bus-Taster für Einzel-Montage 84x84x16mm oder Montage in das E-Design-Schaltersystem. Zum Anschluss an Taster-Gateways FTS14TG. Stand-by-Verlust nur 0,2 Watt. Lieferumfang: 1x Rahmen R1E mit eingerasteter Elektronik, 1x Wippe, 1x Doppelwippe. Montage: Anschrauben oder Ankleben Farbe: reinweiß glänzend Fabrikat/ Typ: Eltako B4T65-wg oder gleichwertig | C66: =Stückliste!#REF! -> 
A67: 61
A68: 62 | B68: Bus-Tasterkoppler FTS61BTK Bus-Tasterkoppler für 4 konventionelle Taster zum Anschluss an Taster-Gateways FTS14TG über einen 2-Draht-Tasterbus. Für Einbaumontage. 45mm lang, 45mm breit, 18mm tief. Bis zu 30 Bus-Taster und/oder Bus­Tasterkoppler FTS61BTK können an die Klemmen BP und BN eines Taster-Gateways FTS14TG angeschlossen werden. Die zulässige Gesamtleitungslänge beträgt 150m. Durch ein RLC-Glied an dem am weitesten entfernten FTS61BTK kann die Leitungslänge auf 250m erweitert werden. Stand-by-Verlust: nur 0,2 Watt Fabrikat/ Typ: Eltako FTS61BTK oder gleichwertig | C68: =Stückliste!D23 -> 0
A69: 63
A70: 64 | B70: Bus-Tasterkoppler FTS61BTKL Bus-Tasterkoppler für 4 konventionelle Taster mit integrierten 24V-LED´s zum Anschluss an Taster-Gateways FTS14TG über einen 2-Draht-Tasterbus. Für Einbaumontage. 45mm lang, 45mm breit, 18mm tief. Bis zu 30 Bus-Taster und/oder Bus­Tasterkoppler FTS61BTKL können an die Klemmen BP und BN eines Taster-Gateways FTS14TG angeschlossen werden. Die zulässige Gesamtleitungslänge beträgt 150m. Durch ein RLC-Glied an dem am weitesten entfernten FTS61BTKL kann die Leitungslänge auf 250m erweitert werden. Stand-by-Verlust: nur 0,2 Watt Fabrikat/ Typ: Eltako FTS61BTKL oder gleichwertig | C70: =Stückliste!D25 -> 0
A71: 65
A72: 66 | B72: Funk-Ausgabemodul FTS14FA Funk-Ausgabemodul Taster-Telegramme für FTS14-Systeme mit FTS14EM und/oder FTS14TG Reiheneinbaugerät für Montage auf Tragschiene DIN-EN 60715 TH35 1 Teilungseinheit = 18mm breit, 58mm tief Anschluss an den Eltako-RS485-Bus. Querverdratung Bus und Stromversorgung mit Steckbrücken Betrieb in Verbindung mit FAM14 oder FTS14KS. Maximal 8 Stück FTS14FA können so an einen Bus angeschlossen werden. Jedes Taster-Telegramm eines FTS14EM oder FTS14TG wird mit einer eigenen ID in den Eltako-Gebäudefunk gesendet. Stand-by-Verlust: nur 0,5 Watt Fabrikat/ Typ: Eltako FTS14FA oder gleichwertig | C72: =Stückliste!D30 -> 0
A73: 67
A74: 68 | B74: Schaltnetzteil FSNT61-24V/6W Schaltnetzteil, kurzschlussfest Für Einbaumontage 45mm lang, 45mm breit, 33mm tief Stabilisierte Ausgangsspannung ± 1%, geringe Restwelligkeit Überlast- und Übertemperatursicherung mit autorecovery-Funktion Nennleistung: 6W Stand-by-Verlust: nur 0,1W Primär: 230V AC Sekundär: 24V DC Kurzschlussfest Fabrikat/Typ: Eltako FSNT61-24V/6W oder gleichwertig | C74: =Stückliste!D6 -> 0
A75: 69
A76: 70 | B76: Funksensor Temperatur-Regler FTR78S-wg Funk-Temperatur-Regler mit Drehrad für Einzel-Montage 78x83x13mm. Stromversorgung mit der integrierten Solarzelle oder mit einer Batterie. Farbe: reinweiß glänzend Fabrikat/ Typ: Eltako FTR78S-wg oder gleichwertig | C76: =Stückliste!#REF! -> 
B78: Bus-Temperatur-Regler mit Handrad BTR55H/12V DC-wg reinweiß glänzend zum Anschluss an das RS485-Bus-Gateway BGW14. Für Einzel-Montage oder Montage in das E-Design-Schaltersystem. 84x84 mm, 27mm hoch. Einbautiefe 33 mm. Stromversorgung mit einem 12V DC-Schaltnetzeil. Stand-by-Verlust nur 0,1 Watt. Smart Home Sensor. Farbe: reinweiß glänzend Fabrikat/ Typ: Eltako BTR55H/12V DC-wg oder gleichwertig | C78: =Stückliste!#REF! -> 
B80: Bus-Uhren-Thermo-Hygrostat mit Display BUTH55D reinweiß glänzend zum Anschluss an das RS485-Bus-Gateway BGW14. Für Einzel-Montage oder Montage in das 55er Schaltersystem. 80x80 mm, 14 mm hoch. Einbautiefe 33 mm. Mit einstellbaren Tages- und Nacht-Solltemperaturen und Soll-Luft feuchtigkeit. Display beleuchtet. Betriebsbereit voreingestellt. Stromversorgung mit einem 12V DC-Schaltnetzteil. Stand-by-Verlust nur 0,1 Watt. Smart Home Sensor. Farbe: reinweiß glänzend Fabrikat/ Typ: Eltako BUTH55D/12V DC-wg oder gleichwertig | C80: =Stückliste!#REF! -> 
A81: 71
B82: Bus-Temperatur-Fühler BTF55/12V DC-wg Bus-Temperatur-Fühler reinweiß glänzend zum Anschluss an das RS485- Bus-Gateway BGW14. Für Einzel-Montage oder Montage in das 55er Schaltersystem. 80x80 mm, 17mm hoch. Einbautiefe 33 mm. Über den 4-Draht-Bus erfolgt die Datenübertragung und die Strom versorgung mit einem 12V DC-Schaltnetzteil. Stand-by-Verlust nur 0,1 Watt. Smart Home Sensor. Farbe: reinweiß glänzend Fabrikat/ Typ: Eltako BTF55/12V DC-wg oder gleichwertig | C82: =Stückliste!#REF! -> 
A84: 72 | B84: Funk-Powerline-Gateway FPLG14 Bidirektional. Übersetzt die Telegramme von Funk und Powerline in beide Richtungen. 2 Teilungseinheiten = 36mm breit, 58mm tief. Stand-by-Verlust: nur 0,4 Watt. Fabrikat/ Typ: Eltako FPLG14 oder gleichwertig | C84: =Stückliste!D22 -> 0
A85: 73
A86: 74 | B86: Temperatur-Regler für Heizen und Kühlen PL-SAMTEMP Powerline-Temperatur-Regler mit Display, weiß. 50x50mm, für die Montage in Schaltersysteme. Zusätzlich je ein potenzialfreier Steuerkontakt 3A/250V AC für Direktanschluss Heizen und Kühlen. Display beleuchtet. Stand-by-Verlust: nur 0,4 Watt. Fabrikat/ Typ: Eltako PL-SAMTEMP oder gleichwertig | C86: =Stückliste!D110 -> 0 | D86: =IF(C86>0,C86,"") -> 
A87: 75
A88: 76 | B88: Eltako-Gebäudefunk-Server GFVS-Safe II Gebäudefunk-Server GFVS-Safe II mit WLAN- und ggf. M2M-Kommunikation Maße (HxBxT) 199x180x39mm Gebäudefunk Visualisierungs- und Steuerungssoftware GFVS 3.0 vorinstalliert CPU Intel Atom N2800 2x1,86 GHz 2 GB DDR 3 RAM 60 GB SSD Festplatte Anschlüsse: 1x Intel® 10/100/1000, 4x USB 2.0 (2x HighCurrent 1.3A), 1x LAN RJ-45, 1x HDMI, 1x VGA, 1x Line out, 1x Mic in Stromverbrauch: 11 Watt (ohne GSM-Modem), 13 Watt (mit GSM-Modem) Fabrikat/ Typ: Eltako-Gebäudefunk-Server GFVS-Safe II oder gleichwertig | C88: =Stückliste!#REF! -> 
A89: 77
A90: 78 | B90: Gebäudefunk-Visualisierungs- und Steuerungs-Software GFVS 3.0 Gebäudefunk-Visualisierungs- und Steuerungs-Software für bis zu 100 Funk-Sensoren, bis zu 128 Funk-Aktoren, 5 Kameras und 25 Timer. Für LAN-Verbindungen ist mindestens ein LAN-Access-Point BSC-BAP für den Empfang am Server und das Senden der Funk-Telegramme vom Server zusätzlich erforderlich. Fabrikat/Typ: Eltako GFVS 3.0 oder gleichwertig | C90: =Stückliste!#REF! -> 
A91: 79
A92: 80 | B92: Smart Home-Zentrale GFVS-Touch II Touch-PC für Dauerbetrieb mit integriertem Funk-Antennenmodul sowie der bereits installierten Funk-Visualisierungs- und Steuerungs-Software GFVS 3.0 für alle erforderlichen Sensoren und Aktoren, 5 Clients, 5 Kameras und eine freie Anzahl Sensoren, Aktoren und Timer. Smartphone-Verbindung über WLAN. Für den 24/7-Dauerbetrieb geeignet. Fabrikat/ Typ: GFVS-Touch II oder gleichwertig | C92: =Stückliste!#REF! -> 
A93: 81
A94: 82 | B94: VESA Wandhalterung zur Wandbefestigung GFVS-Touch Fabrikat/ Typ: VESA Wandhalterung oder gleichwertig | C94: =Stückliste!D133 -> 0
A95: 83
A96: 84 | B96: Funksensor Temperatur-Regler TF-TRHB55-wg Funk-Temperatur-Regler mit Handrad für Einzel-Montage,Innenmaß 55x55mm. Mit Batterie. Farbe: reinweiß glänzend Fabrikat/ Typ: Eltako TF-TRHB55-wg oder gleichwertig | C96: =Stückliste!#REF! -> 
A97: 85
A98: 86 | B98: Flächen-Funktaster FT4F-... Flächen-Funktaster, 80x80mm außen, Rahmen-Innenmaß 63x63mm, 15mm hoch batterie- und leitungslose Funktechnologie Lieferumfang: 1x Rahmen, 1x Flächenwippe, 1x Flächen-Doppelwippe, Befestigungsrahmen, Halteplatte, Funkmodul und Klebefolie Funktelegramme verschlüsselbar. Montage: Anschrauben oder Ankleben Farbe:... Fabrikat/ Typ: Eltako FT4F-... oder gleichwertig | C98: =Stückliste!D126 -> 0
A99: 87
A100: 88 | B100: Funktaster FT55-... Flächen-Funktaster, 80x80mm außen, Rahmen-Innenmaß 55x55mm, 15mm hoch batterie- und leitungslose Funktechnologie. Funktelegramme verschlüsselbar. Lieferumfang: 1x Rahmen, 1x Wippe, 1x Doppelwippe, Befestigungsrahmen, Halteplatte, Funkmodul und Klebefolie Funktelegramme verschlüsselbar. Montage: Anschrauben oder Ankleben Farbe:... Fabrikat/ Typ: Eltako FT55-... oder gleichwertig | C100: =Stückliste!D125 -> 0
A101: 89
A102: 90 | B102: Bus-Taster B4T55 Bus-Taster für Einzel-Montage 80x80x15mm. Zum Anschluss an Taster-Gateways FTS14TG. Lieferumfang: 1x Halteplatte, 1x Befestigungsrahmen mit eingerasteter Elektronik, 1x Rahmen R, 1x Wippe, 1x Doppelwippe Montage: Anschrauben Farbe:... Fabrikat/ Typ: Eltako B4T55-... oder gleichwertig | C102: =Stückliste!#REF! -> 
A103: 91
A104: 92 | B104: Funktaster FT55R-... Funktaster, Wippe mit Radius, Rahmen-Innenmaß 55x55mm, 15mm hoch batterie- und leitungslose Funktechnologie. Funktelegramme verschlüsselbar. Lieferumfang: 1x Wippe, 1x Doppelwippe, Befestigungsrahmen, Halteplatte, Funkmodul und Klebefolie Montage: Anschrauben oder Ankleben Farbe:... Fabrikat/ Typ: Eltako FT55R-... oder gleichwertig | C104: =Stückliste!D127 -> 0
A105: 93
A106: 98 | B106: Fernbedienung FFD-al/anso Funk-Fernbedienung mit Display 185x50mm, 17mm hoch. Stromversorgung mit Lithium-Ionen-Akku, dessen Spannung überwacht und ggf. im Display angezeigt wird. Displaybeleuchtung. Mit Wandhalter und Ladegerät. 50 Kanäle können individuell belegt und auch mit Text versehen werden. Jeder Kanal kann 4 auswertbare Funktelegramme in den Eltako-Gebäudefunk senden. Mit Wandhalter. Farbe: Oberseite alu lackiert, Unterseite Anthrazit-Soft-Lackierung. Fabrikat/ Typ: Eltako FFD-al/anso oder gleichwertig | C106: =Stückliste!D128 -> 0
A107: 99
A108: 100 | B108: Fernbedienung FF8-al/anso Funk-Fernbedienung 185x50mm, 17mm hoch batterielose Funktechnologie enthält 2 Funkmodule mit 2 Doppelwippen sendet 8 auswertbare Signale. Funktelegramme verschlüsselbar. Mit Wandhalter. Farbe: Oberseite alu lackiert, Unterseite und Wippen Anthrazit-Soft-Lackierung Fabrikat/ Typ: Eltako FF8-al/anso oder gleichwertig | C108: =Stückliste!D129 -> 0
A109: 101
A110: 102 | B110: Funkhandsender FHS12-... Funkhandsender, 154x50mm, 16mm hoch batterielose Funktechnologie enthält 3 Funkmodule mit 3 Doppelwippen sendet 12 auswertbare Signale. Funktelegramme verschlüsselbar. Lieferumfang: 2x Beschriftungsetiketten, 1x Klebefolie Farbe:... Fabrikat/ Typ: Eltako FHS12-... oder gleichwertig | C110: =Stückliste!D130 -> 0
A111: 103
A112: 104 | B112: Regensensor RS Regensensor meldet Regen an das nachgeschaltete Sensorrelais LRW12D Kompaktes Kunststoffgehäuse Maße: lxbxh = 118x96x77mm Schutzklasse: IP44 Fabrikat/Typ: Eltako Regensensor RS oder gleichwertig | C112: =Stückliste!D53 -> 0
A113: 105
A114: 106 | B114: Lichtsensor LS Lichtsensor Maße: 38x28x95mm Schutzklasse: IP54 Fabrikat/Typ: Eltako Lichtsensor LS oder gleichwertig | C114: =Stückliste!D52 -> 0
A115: 107
A116: 108 | B116: Windsensor WS Windsensor Stabiles Kunststoffgehäuse Maße: Durchmesser x Höhe = 125x117mm Schutzklasse: IP54 angeschlossene Messleitung 5m Fabrikat/Typ: Eltako Windsensor WS oder gleichwertig | C116: =Stückliste!D54 -> 0
A117: 109
A118: 110 | B118: Digital einstellbares Sensorrelais LRW12D-UC Licht-Dämmerungs-Regen-Wind-Sensorrelais Reiheneinbaugerät für Montage auf Tragschiene DIN-EN 60715 TH35 1 Teilungseinheit = 18mm breit, 58mm tief wertet die Signale des Lichtsensors LS, des Regensensors RS und des Windsensors WS aus Funktionen: LS = Lichtsensor, WS = Windsensor, RS = Regensensor, DSR = Dämmerungsrelais, TST = Test und OFF = aus- bzw. einschalten aller Funktionen 4 OptoMOS-Halbleiterausgänge 50mA/8..230V UC Stand-by-Verlust: nur 0,05–0,5 Watt. Einschaltdauer: 100% Fabrikat/Typ: Eltako LRW12D-UC oder gleichwertig | C118: =Stückliste!D55 -> 0
A119: 111
A120: 112 | B120: Schaltnetzteil SNT12-230V/24VDC-0,5A Schaltnetzteil, kurzschlussfest Reiheneinbaugerät für Montage auf Tragschiene DIN-EN 60715 TH35 1 Teilungseinheit = 18mm breit, 58mm tief Stabilisierte Ausgangsspannung ± 1%, geringe Restwelligkeit Überlast- und Übertemperatursicherung mit autorecovery-Funktion Nennleistung: 12W Stand-by-Verlust: nur 0,2W Primär: 230V AC Sekundär: 24V DC Kurzschlussfest Fabrikat/Typ: Eltako SNT12-230V/24VDC-0,5A oder gleichwertig | C120: =Stückliste!D31 -> 0
A121: 113
A122: 114 | B122: Schaltnetzteil SNT61-230V/12V DC-0,5A Schaltnetzteil, kurzschlussfest Für Einbaumontage 45mm lang, 55mm breit, 32mm tief Stabilisierte Ausgangsspannung ± 1%, geringe Restwelligkeit Überlast- und Übertemperatursicherung mit autorecovery-Funktion Nennleistung: 6W Stand-by-Verlust: nur 0,1W Primär: 230V AC Sekundär: 12V DC Kurzschlussfest Fabrikat/Typ: Eltako SNT61-230V/12V DC-0,5A oder gleichwertig | C122: =Stückliste!D7 -> 0
A123: 115
A124: 116 | B124: 1- und 2-Level-Funkrepeater FRP61-230V 1- und 2-Level-Funkrepeater für Einbaumontage Maße: 45mm lang, 55mm breit, 33mm tief nur Netzanschluss erforderlich empfängt und verstärkt die Signale aller Sensoren im Empfangsbereich Versorgungsspannung: 230V Stand-by-Verlust: 0,9 Watt Fabrikat/ Typ: Eltako FRP61-230V oder gleichwertig | C124: =Stückliste!D150 -> 0
A125: 117
A126: 118 | B126: Funkantenne mit Magnetfuß FA250 Funkantenne mit Magnetfuß, schwarz Höhe: 10cm Kabel: 250cm lang Fabrikat/ Typ: Eltako FA250 oder gleichwertig | C126: =Stückliste!D17 -> 0
A127: 119
A128: 120 | B128: HF-Masse FHM175 HF-Masse für die HF-Funkantenne FA250, Aluminiumscheibe eloxiert, 4mm dick, 175mm Durchmesser Fabrikat/ Typ: Eltako FHM175 oder gleichwertig | C128: =Stückliste!D18 -> 0
B130: Bus-Temperatur-Regler mit Handrad BTR65H/12VDC-wg Bus-Temperatur-Regler mit Handrad zum Anschluss an das RS485-Bus-Gateway BGW14. Für Einzel-Montage oder Montage in das E-Design-Schaltersystem. 84x84mm, 27mm hoch. Einbautiefe 33mm. Datenübertragung und Stromversorgung mit 12V DC-Schaltnetzteil über den 4-Draht-Bus. Sendet bei einer Ist- oder Soll-Temperaturänderung von mind. 0,15°C innerhalb von 20 Sekunden eine Meldung in den RS485-Bus. Messgenauigkeit ca. 1°C. Solltemperatur zwischen +12°C und +28°C mit dem Handrad einstellbar. Frostschutz. Smart Home Sensor. Farbe: reinweiß glänzend Fabrikat/ Typ: Eltako BTR65H/12VDC-wg oder gleichwertig | C130: =Stückliste!#REF! -> 
B132: Bus-Uhren-Thermo-Hygrostat mit Display BUTH65D/12V DC-wg Bus-Uhren-Thermo-Hygrostat mit Display zum Anschluss an das RS485-Bus-Gateway BGW14. Für Einzel-Montage oder Montage in das E-Design-Schaltersystem. 84x84mm, 14mm hoch. Einbautiefe 33mm. Tages- und Nacht-Solltemperaturen und Soll-Luftfeuchtigkeit einstellbar. Display beleuchtet. Betriebsbereit voreingestellt. Datenübertragung und Stromversorgung mit 12V DC-Schaltnetzteil über den 4-Draht-Bus. 60 Schaltuhr-Speicherplätze. Mit Datum und automatischer Sommerzeit/Winterzeit-Umstellung. Sendet alle 20 Sekunden bei einer Ist-Temperaturänderung von mindestens 0,15°C oder einer Änderung der Luftfeuchtigkeit um 5% eine Meldung in den RS485-Bus. Eine Änderung der Soll-Temperatur oder der Soll-Luftfeuchtigkeit wird sofort gesendet. Smart Home Sensor. Farbe: reinweiß glänzend Fabrikat/ Typ: Eltako BUTH65D/12V DC-wg oder gleichwertig | C132: =Stückliste!#REF! -> 
B134: Bus-Temperatur-Fühler BTF65/12VDC-wg Bus-Temperatur-Fühler reinweiß glänzend zum Anschluss an das RS485- Bus-Gateway BGW14. Für Einzel-Montage oder Montage in das E-DesignSchaltersystem. 84x84 mm, 17mm hoch. Einbautiefe 33 mm. Über den 4-Draht-Bus erfolgt die Datenübertragung und die Stromversorgung mit einem 12V DC-Schaltnetzteil. Stand-by-Verlust nur 0,1 Watt. Smart Home Sensor. Farbe: reinweiß glänzend Fabrikat/ Typ: Eltako BTF65/12V DC-wg oder gleichwertig | C134: =Stückliste!#REF! -> 
B136: Funkaktor Stromstoß-Schaltrelais FSR61NP-230V Funkaktor Stromstoß-Schaltrelais für Einbaumontage Maße: 45mm lang, 45mm breit, 33mm tief Verschlüsselter Funk, bidirektionaler Funk und Repeater-Funktion zuschaltbar Funktion: Stromstoßschalter oder Schaltrelais Rückfallverzögerung mit Ausschaltvorwarnung und Taster-Dauerlicht zuschaltbar Versorgungs-, Schalt- und Steuerspannung örtlich 230V Kontakt: 1 Schließer nicht potenzialfrei 10A/250V Stand-by-Verlust: 0,8 Watt Fabrikat/ Typ: Eltako FSR61NP-230V oder gleichwertig | C136: =Stückliste!D141 -> 0
B138: Funkaktor Multifunktions-Stromstoß-Schalter FMS61NP-230V Funkaktor Multifunktions-Stromstoß-Schalter für Einbaumontage Maße: 45mm lang, 45mm breit, 33mm tief Verschlüsselter Funk, bidirektionaler Funk und Repeater-Funktion zuschaltbar Funktion: 2xS = 2-fach-Stromstoßschalter mit je 1 Schließer. 2S = Stromstoßschalter mit 2 Schließern WS = Stromstoßschalter mit 1 Schließer und 1 Öffner SS1 = Serienschalter 1+1 Schließer mit Schaltfolge 1 SS2 = Serienschalter 1+1 Schließer mit Schaltfolge 2 Versorgungs-, Schalt- und Steuerspannung örtlich 230V Kontakt: 1+1 Schließer nicht potenzialfrei 10A/250V Stand-by-Verlust: 0,8 Watt Fabrikat/ Typ: Eltako FMS61NP-230V oder gleichwertig | C138: =Stückliste!D142 -> 0
B140: Funkaktor Universal-Dimmschalter FUD61NPN-230V Funkaktor Universal-Dimmschalter für Einbaumontage Maße: 45mm lang, 45mm breit, 33mm tief Verschlüsselter Funk, bidirektionaler Funk und Repeater-Funktion zuschaltbar für R-, L- und C-Lasten mit automatische Lasterkennung auch für dimmbare Energiesparlampen (ESL) und LED Mindesthelligkeit und Dimmgeschwindigkeit einstellbar mit Lichtwecker-, Kinderzimmer- und Schlummerschaltung Versorgungs- und gegebenenfalls Steuerspannung örtlich 230V Schaltleistung: R-, L- und C-Lasten bis 300W, ESL und dimmbare 230V-LED-Lampen zusätzlich abhängig von der Lampenelektronik Stand-by-Verlust: 0,7 Watt Fabrikat/ Typ: Eltako FUD61NPN-230V oder gleichwertig | C140: =Stückliste!D143 -> 0
B142: Funkaktor Universal-Dimmschalter ohne N, FUD61NP-230V Funkaktor Universal-Dimmschalter für Einbaumontage Maße: 45mm lang, 45mm breit, 33mm tief Verschlüsselter Funk, bidirektionaler Funk und Repeater-Funktion zuschaltbar ohne N-Anschluss Mindesthelligkeit und Dimmgeschwindigkeit einstellbar mit Lichtwecker-, Kinderzimmer- und Schlummerschaltung für R-, L- und C-Lasten mit automatischer Lasterkennung Versorgungs- und gegebenenfalls Steuerspannung örtlich 230V Schaltleistung: 300 Watt Stand-by-Verlust: 0,7 Watt Fabrikat/ Typ: Eltako FUD61NP-230V oder gleichwertig | C142: =Stückliste!D144 -> 0
B144: Funkaktor PWM-LED-Dimmschalter FLD61 PWM-Dimmschalter für LED 12-36V DC, bis 4A Maße: 45mm lang, 45mm breit, 33mm tief Verschlüsselter Funk, bidirektionaler Funk und Repeater-Funktion zuschaltbar Zusätzlich mit Lichtszenensteuerung über PC oder mit Funktastern. Universal-Steuerspannung 8..230V UC, galvanisch getrennt von der Versorgungs- und Schaltspannung. Schaltleistung: LED bis 12-36V DC, 4A Stand-by-Verlust: 0,2-0,4 Watt Fabrikat/ Typ: Eltako FLD61 oder gleichwertig | C144: =Stückliste!D145 -> 0
B146: Funkaktor Konstantstrom-LED-Dimmschalter FKLD61 DC-Konstantstromquelle für LED bis 1000mA bzw. 30 Watt Maße: 45mm lang, 45mm breit, 33mm tief Verschlüsselter Funk, bidirektionaler Funk und Repeater-Funktion zuschaltbar Mindesthelligkeit und Dimmgeschwindigkeit einstellbar. Mit Kinderzimmer- und Schlummerschaltung. Zusätzlich mit Lichtszenensteuerung über PC oder mit Funktastern. Universal-Steuerspannung 8..230V UC, galvanisch getrennt von der Versorgungs- und Schaltspannung. Schaltleistung: LED bis 1000mA bzw. 30 Watt Stand-by-Verlust: 0,3 Watt Fabrikat/ Typ: Eltako FKLD61 oder gleichwertig | C146: =Stückliste!D146 -> 0
B148: Funkaktor für Beschattungselemente und Rollladen FSB61NP-230V Funkaktor Stromstoß-Gruppenschalter für Beschattungselemente und Rollladen für Einbaumontage Maße: 45mm lang, 45mm breit, 33mm tief Verschlüsselter Funk, bidirektionaler Funk und Repeater-Funktion zuschaltbar 4 unterschiedliche Funktionsweisen (GS1-4) möglich Versorgungs-, Schalt- und Steuerspannung örtlich 230V Kontakt: 1+1 Schließer nicht potenzialfrei 4A/250V Stand-by-Verlust: 0,8 Watt Fabrikat/ Typ: Eltako FSB61NP-230V oder gleichwertig | C148: =Stückliste!D147 -> 0
B150: Funkaktor Heiz-Kühl-Relais FHK61-230V Funkaktor Heiz-Kühl-Relais FHK61-230V für Einbaumontage Maße: 45mm lang, 45mm breit, 33mm tief Verschlüsselter Funk, bidirektionaler Funk und Repeater-Funktion zuschaltbar mit 5 Betriebsarten (3 x Heizen, 2 x Kühlen) Versorgungsspannung: 230V Kontakte: 1 Schließer potenzialfrei 10A/250V AC Stand-by-Verlust: 0,8 Watt Fabrikat/ Typ: Eltako FHK61-230V oder gleichwertig | C150: =Stückliste!D148 -> 0 | D150: =IF(C150>0,C150,"") -> 
B152: Funk-Sendemodul FSM61-UC Funk-2-fach-Sendemodul für Einbaumontage Maße: 45mm lang, 45mm breit, 18mm tief hat zwei Kanäle und kann damit wie ein Funktaster örtliche und zentrale Steuersignale in den Eltako-Gebäudefunk einspeisen Steuerspannung: 8..230V UC ständige Stromversorgung: keine Fabrikat/ Typ: Eltako FSM61-UC oder gleichwertig | C152: =Stückliste!D149 -> 0
B154: Funkrepeater FRP65/230V-wg 2-Level-Funkrepeater im Gehäuse für Aufputzmontage 84x84x30mm oder Montage in das E-Design-Schaltersystem. nur Netzanschluss erforderlich empfängt und verstärkt die Signale aller Sensoren im Empfangsbereich Versorgungsspannung: 230V Stand-by-Verlust: 0,8 Watt Fabrikat/ Typ: Eltako FRP65/230V-wg oder gleichwertig | C154: =Stückliste!D151 -> 0
B156: Funkaktor Stromstoß-Schaltrelais FSR71NP Funkaktor Stromstoß-Schaltrelais für Montage in die 230V-Netzanschlussleitung, zum Beispiel in Zwischendecken und Leuchten. Glühlampen 2000W. Mit Lichtszenensteuerung über PC oder mit Funktastern. Verschlüsselter Funk, bidirektionaler Funk und Repeater-Funktion zuschaltbar. Maße: 166mm lang, 46mm breit und 31mm tief. Mit Kabel-Zugentlastung. Kontakt: 1 Schließer nicht potenzialfrei 16A/250V AC Stand-by-Verlust: 0,8 Watt Fabrikat/ Typ: Eltako FSR71NP oder gleichwertig | C156: =Stückliste!D152 -> 0
B158: Funkaktor Universal-Dimmschalter FUD71 Universal-Dimmschalter, Power MOSFET bis 400W. Automatische Lampenerkennung. Mindesthelligkeit und Dimmgeschwindigkeit einstellbar. Mit Kinderzimmer-, Schlummer- und Lichtweckerschaltung sowie Konstantlichtregelung und Master-Slave-Betrieb. Zusätzlich mit Licht-szenensteuerung über PC oder mit Funktastern. Verschlüsselter Funk, bidirektionaler Funk und Repeater-Funktion zuschaltbar. Maße: 166mm lang, 46mm breit und 31mm tief. Mit Kabel-Zugentlastung. Stand-by-Verlust: 0,7 Watt Fabrikat/ Typ: Eltako FUD71 oder gleichwertig | C158: =Stückliste!D153 -> 0
B160: Funkaktor Dimmschalter-Steuergerät FSG71 für EVG 1-10V Dimmschalter-Steuergerät für EVG 1-10V, 1 Schließer nicht potenzialfrei 600VA und 1-10V-Steuerausgang 40mA. Mindesthelligkeit und Dimmgeschwindigkeit einstellbar. Mit Kinderzimmer-, Schlummer- und Licht-wecker-schaltung sowie Konstantlichtregelung und Master-Slave-Betrieb. Zusätzlich mit Lichtszenensteuerung über PC oder mit Funktastern. Verschlüsselter Funk, bidirektionaler Funk und Repeater-Funktion zuschaltbar. Maße: 166mm lang, 46mm breit und 31mm tief. Mit Kabel-Zugentlastung. Stand-by-Verlust: 1,4 Watt Fabrikat/ Typ: Eltako FSG71 oder gleichwertig | C160: =Stückliste!D154 -> 0
B162: Funk-DALI-Gateway FDG71L Bidirektional. Montage zum Beispiel in Zwischendecken und Leuchten. Versorgungsspannung 230V an den Klemmen N und L. An den Klemmen DALI +/- werden 130mA für bis zu 64 Stück DALI-Geräte bereitgestellt. Mit dem Gateway FDG71L werden DALI-Geräte mit EnOcean-Funksendern angesteuert. Maße: 252mm lang, 46mm breit und 31mm tief. Mit Kabel-Zugentlastung. Stand-by-Verlust: 2 Watt Fabrikat/ Typ: Eltako FDG71L oder gleichwertig | C162: =Stückliste!D155 -> 0
B164: Funkaktor PWM-Dimmschalter für LED FRGBW71L PWM-Dimmschalter mit 4 Kanälen für LED 12-36 V DC, je bis 2 A. Mindesthelligkeit und Dimmgeschwindigkeit einstellbar. Mit Schlummer- und Lichtweckerschaltung. Zusätzlich mit Lichtszenensteuerung über PC oder mit Funktastern. Verschlüsselter Funk, bidirektionaler Funk und Repeater-Funktion zuschaltbar. Maße: 252mm lang, 46mm breit und 31mm tief. Mit Kabel-Zugentlastung. Stand-by-Verlust:0,3-0,5 Watt Fabrikat/ Typ: Eltako FRGBW71L oder gleichwertig | C164: =Stückliste!D156 -> 0
B166: Funkaktor für Beschattungselemente und Rollladen FSB71-24V DC Schaltaktor Beschattungselemente und Rollladen für einen 24V DC-Motor. Verschlüsselter Funk, bidirektionaler Funk und RepeaterFunktion zuschaltbar. Maße: 166mm lang, 46mm breit und 31mm tief. Mit Kabel-Zugentlastung. Kontakt: 1+1 Schließer 4A/250V AC, nicht potentialfrei Stand-by-Verlust: 0,9 Watt Fabrikat/ Typ: Eltako FSB71-24V DC oder gleichwertig | C166: =Stückliste!D157 -> 0
B168: Funkaktor für Beschattungselemente und Rollladen FSB71 Schaltaktor Beschattungselemente und Rollladen für einen 230V-Motor. Verschlüsselter Funk, bidirektionaler Funk und RepeaterFunktion zuschaltbar. Maße: 166mm lang, 46mm breit und 31mm tief. Mit Kabel-Zugentlastung. Kontakt: 1+1 Schließer 4A/250V AC, nicht potentialfrei Stand-by-Verlust: 0,8 Watt Fabrikat/ Typ: Eltako FSB71 oder gleichwertig | C168: =Stückliste!#REF! -> 
B170: Funkrepeater FRP70-230V 1- und 2-Level-Funkrepeater mit kleiner Antenne und mit Antenne FA250 Stand-by-Verlust nur 0,6 Watt Fabrikat/ Typ: Eltako FRP70-230V oder gleichwertig | C170: =Stückliste!D158 -> 0
B172: Funkaktor Steckdosen-Schaltaktor FSSA-230V 1 Schließer nicht potenzialfrei 10A/250V AC Glühlampen 2000 Watt ESL und LED bis 400 Watt. Verschlüsselter Funk, bidirektionaler Funk und Repeater-Funktion zuschaltbar Zuordnung von bis zu 35 Funktaster Stand-by-Verlust: nur 0,8 Watt Fabrikat/ Typ: Eltako FSSA-230V oder gleichwertig | C172: =Stückliste!D159 -> 0
B174: Funkaktor Steckdosen-Universal-Dimmschalter FSUD-230V Automatische Lampenerkennung Mindesthelligkeit einstellbar Mit Kinderzimmer- und Schlummerschaltung Verschlüsselter Funk, bidirektionaler Funk und Repeater-Funktion zuschaltbar Zuordnung von bis zu 35 Funktaster Kontakt: Power MOSFET bis 300W Stand-by-Verlust: nur 0,7 Watt Fabrikat/ Typ: Eltako FSUD-230V oder gleichwertig | C174: =Stückliste!D160 -> 0
B176: Funkaktor Steckdosen-Heizaktor FSHA 1 Schließer nicht potenzialfrei 10A/250VAC. Verschlüsselter Funk, bidirektionaler Funk und Repeater-Funktion zuschaltbar. Stand-by-Verlust: nur 0,8 Watt Fabrikat/ Typ: Eltako FSHA-230V oder gleichwertig | C176: =Stückliste!#REF! -> 
B178: Funk-Steckdosen-Repeater FSRP-230V 1- und 2-Level-Funk-Steckdosen-Repeater empfängt und verstärkt die Signale aller Sensoren im Empfangsbereich Versorgungsspannung: 230V Stand-by-Verlust: 0,9 Watt Fabrikat/ Typ: Eltako FSRP-230V oder gleichwertig | C178: =Stückliste!D161 -> 0

Sheet Changelog (hidden)
A1: Datum | B1: Änderungen
A2: 2022-08-19 | B2: Logikkorrektur am Ende der Stückliste, Artikel werden aus der Gesamtpreisliste verwendet
A3: 2022-09-14 | B3: Minisafe2 REG und Netzteil eingefügt
A4: 2022-11-09 | B4: FRGBW14, FSR14M-2x, FDG62 eingefügt
A5: 2022-11-13 | B5: Integration neues Schalterprogramm mit 6 verschiedenen Farben
A6: 2023-02-01 | B6: Änderungen Scheffler (Bilderintegration)
A7: 2023-02-03 | B7: Fehler Mengenerfassung und TE-Berechnung FSB14 beseitigt
A8: 2023-02-03 | B8: Abfrage alle Temperaturfühler und Sensoren überarbeitet
A9: 2023-02-03 | B9: Preisliste 1.5.2023 aktualisiert
A10: 2023-02-16 | B10: TE bei FSB14, Zeilen ausblenden Makro angepasst, Logik für SNT bei 1+n Technik
A11: 2022-04-20 | B11: Fehler bei FSB14 falsche TE
A12: 2024-02-01 | B12: SNT gegen WNT ersetzt
A13: 2024-07-03 | B13: SNT12 gegen WNT15 getauscht, Onwall USB-C Varianten ersetzt
A14: 2024-07-05 | B14: WMS Multisensor geändert
